Workbook

Sheet Inputs
A2: Base year prices per tariff component for 2013-14 ($ Nominal) | G2: Calculated tariffs which exclude MDBA / BCR cost recovery for 2013-14 ($ Nominal)
B3: High Security Entitlement ($/ML) | C3: General Security Entitlement ($/ML) | D3: Usage ($/ML delivered) | G3: High Security Entitlement ($/ML) | H3: General Security Entitlement ($/ML) | I3: Usage ($/ML delivered)
B4: 2013-14 | C4: 2013-14 | D4: 2013-14 | G4: 2013-14 | H4: 2013-14 | I4: 2013-14
A5: Border | B5: 11.45 | C5: 3.21 | D5: 9.43 | G5: =B5*(1-$B$155) -> 7.377911775 | H5: =C5*(1-$B$155) -> 2.068392734 | I5: =D5*(1-$B$155) -> 6.076306379
A6: Gwydir | B6: 14.55 | C6: 4.06 | D6: 12.97 | G6: =B6*(1-$C$155) -> 14.38978164 | H6: =C6*(1-$C$155) -> 4.015293021 | I6: =D6*(1-$C$155) -> 12.82717992
A7: Namoi | B7: 16.22 | C7: 9.09 | D7: 19.98 | G7: =B7*(1-$D$155) -> 16.01985733 | H7: =C7*(1-$D$155) -> 8.977836198 | I7: =D7*(1-$D$155) -> 19.73346174
A8: Peel | B8: 25.19 | C8: 2.77 | D8: 41.61 | G8: =B8*(1-$E$155) -> 25.07631511 | H8: =C8*(1-$E$155) -> 2.757498724 | I8: =D8*(1-$E$155) -> 41.42221008
A9: Lachlan | B9: 12.36 | C9: 4.42 | D9: 18.04 | G9: =B9*(1-$F$155) -> 12.36 | H9: =C9*(1-$F$155) -> 4.42 | I9: =D9*(1-$F$155) -> 18.04
A10: Macquarie | B10: 11.42 | C10: 4.24 | D10: 13.98 | G10: =B10*(1-$G$155) -> 11.3528425 | H10: =C10*(1-$G$155) -> 4.215065865 | I10: =D10*(1-$G$155) -> 13.89778792
A11: Murray | B11: 3.14 | C11: 2.33 | D11: 4.97 | G11: =B11*(1-$H$155) -> 1.701787852 | H11: =C11*(1-$H$155) -> 1.262791622 | I11: =D11*(1-$H$155) -> 2.693594147
A12: Murrumbidgee | B12: 2.98 | C12: 1.59 | D12: 3.78 | G12: =B12*(1-$I$155) -> 2.636082537 | H12: =C12*(1-$I$155) -> 1.406500414 | I12: =D12*(1-$I$155) -> 3.343755701
A13: Lowbidgee
A15: Fish River | B15: 2013-14 | C15: 2013-14 | D15: 2013-14 | G15: 2013-14 | H15: 2013-14 | I15: 2013-14
B16: Access | C16: Usage < MAQ | D16: Usage > MAQ | G16: Access | H16: Usage < MAQ | I16: Usage > MAQ
A17: Raw water - major customers | B17: 0.38 | C17: 0.43 | D17: 0.81 | G17: =B17 -> 0.38 | H17: =C17 -> 0.43 | I17: =D17 -> 0.81
A18: Raw water - minor customers | B18: 0.47 | C18: 0.85 | D18: 1.33 | G18: =B18 -> 0.47 | H18: 0.85 | I18: 1.33
A19: Filtered water - major customers | B19: 0.57 | C19: 0.61 | D19: 1.18 | G19: 0.57 | H19: 0.61 | I19: 1.18
A20: Filtered water - minor customers | B20: 0.6733136235 | C20: 1.04 | D20: 1.71 | G20: 0.6733136235 | H20: 1.04 | I20: 1.71
A22: High security premium (times) | B22: Water sharing plan ratio (WSP) | C22: Average Water Allocation | D22: High security premium (times)
B23: 2014-17 | C23: 2014-15 | D23: 2014-15
A24: Border | B24: 1.28 | C24: ='Demand and Allocations data'!M$41 -> 2.318499677 | D24: =B24*C24 -> 2.967679587
A25: Gwydir | B25: 1.81 | C25: ='Demand and Allocations data'!O$41 -> 2.246650589 | D25: =B25*C25 -> 4.066437565
A26: Namoi | B26: 1.25 | C26: ='Demand and Allocations data'!Q$41 -> 1.720536962 | D26: 2.150671203
A27: Peel | B27: 6.73 | C27: ='Demand and Allocations data'!S$41 -> 1.467351431 | D27: 9.875275128
A28: Lachlan | B28: 2.45 | C28: ='Demand and Allocations data'!U$41 -> 1.645064806 | D28: 4.030408774
A29: Macquarie | B29: 1.88 | C29: ='Demand and Allocations data'!W$41 -> 1.960784314 | D29: 3.68627451
A30: Murray | B30: 1.25 | C30: ='Demand and Allocations data'!Y$41 -> 1.411111111 | D30: 1.763888889
A31: Murrumbidgee | B31: 1.63 | C31: ='Demand and Allocations data'!AA$41 -> 1.412543353 | D31: 2.302445665
A32: Lowbidgee | B32: 0 | C32: 0 | D32: 0
A35: Tariff Structure 2014-17 | B35: 2014-15 | C35: 2015-16 | D35: 2016-17
A36: Target Variable / Fixed ratio (%) | B36: 0.6 | C36: =B36 -> 0.6 | D36: =C36 -> 0.6
A38: Fish River
A39: Raw Water /Filtered Water (%) | B39: 0.8 | C39: =B39 -> 0.8 | D39: =C39 -> 0.8
A40: Target Variable / Fixed ratio (%)
A41: Raw Water | B41: 0.45 | C41: =B41 -> 0.45 | D41: =C41 -> 0.45
A42: Filtered Water | B42: 0.4 | C42: =B42 -> 0.4 | D42: =C42 -> 0.4
A44: Peel Valley Annual real price increase cap | B44: 0.1 | C44: 0.1 | D44: 0.1
A45: Forecast water entitlements and usage
B46: High Security Entitlement (ML) | C46: General Security Entitlement (ML) | D46: Forecast water volumes (ML) | G46: Total Entitlements | H46: % High security | I46: % General security
B47: 2014-15 | C47: 2014-15 | D47: 2014-15 | G47: 2014-15 | H47: 2014-15 | I47: 2014-15
A48: Border | B48: 3122 | C48: 263238 | D48: ='Demand and Allocations data'!C$35 -> 140676.9395 | G48: =SUM(B48:C48) -> 266360 | H48: =B48/G48 -> 0.01172097913 | I48: =C48/G48 -> 0.9882790209
A49: Gwydir | B49: 21457.9 | C49: 509665 | D49: ='Demand and Allocations data'!D$35 -> 245876.7405 | G49: =SUM(B49:C49) -> 531122.9 | H49: =B49/G49 -> 0.040401007 | I49: =C49/G49 -> 0.959598993
A50: Namoi | B50: 8881 | C50: 256076 | D50: ='Demand and Allocations data'!E$35 -> 158960.9705 | G50: 264957 | H50: 0.03351864642 | I50: 0.9664813536
A51: Peel | B51: 17382 | C51: 30528 | D51: ='Demand and Allocations data'!F$35 -> 11163.91 | G51: 47910 | H51: 0.3628052599 | I51: 0.6371947401
A52: Lachlan | B52: 60745 | C52: 632837 | D52: ='Demand and Allocations data'!G$35 -> 227697.179 | G52: 693582 | H52: 0.0875815693 | I52: 0.9124184307
A53: Macquarie | B53: 42606 | C53: 631716 | D53: ='Demand and Allocations data'!H$35 -> 279670.6685 | G53: 674322 | H53: 0.06318346428 | I53: 0.9368165357
A54: Murray | B54: 261400.7 | C54: 2075822 | D54: ='Demand and Allocations data'!I$35 -> 1459688.934 | G54: 2337222.7 | H54: 0.1118424445 | I54: 0.8881575555
A55: Murrumbidgee | B55: 436928 | C55: 2260113 | D55: ='Demand and Allocations data'!J$35 -> 1759739.925 | G55: 2697041 | H55: 0.1620027282 | I55: 0.8379972718
A56: Lowbidgee | B56: 0 | C56: 747000 | D56: 0 | G56: 747000 | H56: 0 | I56: 1
B57: =SUM(B48:B56) -> 852522.6 | C57: =SUM(C48:C56) -> 7406995 | D57: 4283475.267 | G57: =SUM(G48:G56) -> 8259517.6 | H57: =B57/G57 -> 0.1032169966 | I57: =C57/G57 -> 0.8967830034
A59: Fish River | B59: 2014-15
A60: BULK RAW WATER
A61: Minimum Annual Quantity (MAQ)
A62: - Delta Electricity | B62: 8184
A63: - Sydney Catchment Authority | B63: 3650
A64: - Oberon Council | B64: 1064
A65: - Individual Minor Customers | B65: 200
A66: Number of Minor Customers | B66: 74
A67: Usage
A68: - Delta Electricity | B68: ='Demand and Allocations data'!AE$35 -> 6189.8482
A69: - Sydney Catchment Authority | B69: ='Demand and Allocations data'!AF$35 -> 2411.62875
A70: - Oberon Council | B70: ='Demand and Allocations data'!AG$35 -> 717.08692
A71: - Individual Minor Customers | B71: ='Demand and Allocations data'!AI$35 -> 52.09287623
A72: BULK FILTERED WATER
A73: Minimum Annual Quantity (MAQ)
A74: - Lithgow Council | B74: 1778
A75: - Individual Minor Customers | B75: 200
A76: Number of Minor Customers | B76: 208
A77: Usage
A78: - Lithgow Council | B78: ='Demand and Allocations data'!AH$35 -> 985.5005
A79: - Individual Minor Customers | B79: ='Demand and Allocations data'!AJ$35 -> 131.8055767
A82: PTRM Data | B82: 2014-15 | C82: 2015-16 | D82: 2016-17 | G82: CPI applicable to 2014-15 prices
A83: CPI Forecast | B83: 0.0255 | C83: 0.0255 | D83: 0.0255 | G83: CPI All Groups, Weighted Average of Eight Capital Cities, Index Numbers
A84: Nominal Vanilla WACC | B84: 0.0691578 | C84: 0.0691578 | D84: 0.0691578 | G84: CPI Index March 2013 | H84: 102.4
A85: Real Vanila WACC | B85: =(1+B84)/(1+B83)-1 -> 0.04257220868 | C85: =(1+C84)/(1+C83)-1 -> 0.04257220868 | D85: 0.04257220868 | G85: CPI Index March 2014 | H85: 105.4
A86: Forecast CPI Index | B86: =(1+B83) -> 1.0255 | C86: =B86*(1+C83) -> 1.05165025 | D86: =C86*(1+D83) -> 1.078467331 | G86: CPI 2014-15 | H86: =H85/H84-1 -> 0.029296875
A88: PTRM Building block requirement (user share) | G88: Unsmoothed($'000 Real 2013-14)
A89: Unsmoothed ($'000 Nominal) | B89: 2014-15 | C89: 2015-16 | D89: 2016-17 | G89: 2014-15 | H89: 2015-16 | I89: 2016-17
A90: Border | B90: 1530.982883 | C90: 1593.602123 | D90: 1609.884444 | G90: =B90/B$86 -> 1492.913586 | H90: =C90/C$86 -> 1515.334707 | I90: =D90/D$86 -> 1492.752165
A91: Gwydir | B91: 4960.175402 | C91: 5153.872239 | D91: 5367.80686 | G91: =B91/B$86 -> 4836.836082 | H91: 4900.74741 | I91: 4977.254947
A92: Namoi | B92: 5261.849178 | C92: 5439.20203 | D92: 5601.201464 | G92: 5131.008462 | H92: 5172.063649 | I92: 5193.668182
A93: Peel | B93: 1338.385267 | C93: 1381.438523 | D93: 1411.250677 | G93: 1305.105088 | H93: 1313.591208 | I93: 1308.570632
A94: Lachlan | B94: 6894.410523 | C94: 7252.368801 | D94: 7523.18979 | G94: 6722.974669 | H94: 6896.17941 | I94: 6975.816116
A95: Macquarie | B95: 6687.960611 | C95: 6939.238642 | D95: 7351.339428 | G95: 6521.658324 | H95: 6598.428177 | I95: 6816.469274
A96: Murray | B96: 5103.058689 | C96: 5148.078664 | D96: 5292.985689 | G96: 4976.166445 | H96: 4895.238378 | I96: 4907.877628
A97: Murrumbidgee | B97: 9280.19384 | C97: 9555.40899 | D97: 9725.270628 | G97: 9049.433291 | H97: 9086.10918 | I97: 9017.677537
A98: Lowbidgee | B98: 544.3161258 | C98: 573.9863639 | D98: 655.1136899 | G98: 530.7812051 | H98: 545.7958707 | I98: 607.4488033
A99: Fish River | B99: 9685.539501 | C99: 10054.28789 | D99: 10397.12643 | G99: 9444.699659 | H99: 9560.486381 | I99: 9640.650324
A102: Other Costs | G102: ACCC Final decision: Rebates for each ICD
A103: ICD Rebates ($'000 Real 2013-14) | B103: 2014-15 | C103: 2015-16 | D103: 2016-17 | G103: ICD | H103: Entitlements | I103: 2014/15 | J103: 2015/16 | K103: 2016/17
A104: Border | B104: 0 | C104: 0 | D104: 0 | G104: Jemalong | H104: 99087 | I104: 67447.58822 | J104: 61654.21427 | K104: 59282.06725
A105: Gwydir | B105: 0 | C105: 0 | D105: 0 | G105: Murray Irrigation | H105: 1392519 | I105: 958437.9989 | J105: 896971.5368 | K105: 871223.7565
A106: Namoi | B106: 0 | C106: 0 | D106: 0 | G106: Western Murray | H106: 48657 | I106: 33489.466 | J106: 31341.7225 | K106: 30442.05093
A107: Peel | B107: 0 | C107: 0 | D107: 0 | G107: West Corugan | H107: 77278 | I107: 53188.62556 | J107: 49777.53727 | K107: 48348.66128
A108: Lachlan | B108: =I104/1000 -> 67.44758822 | C108: =J104/1000 -> 61.65421427 | D108: =K104/1000 -> 59.28206725 | G108: Moira | H108: 38615 | I108: 26577.79415 | J108: 24873.30937 | K108: 24159.31514
A109: Macquarie | B109: 0 | C109: 0 | D109: 0 | G109: Eagle Creek | H109: 13620 | I109: 9374.324906 | J109: 8773.13152 | K109: 8521.296703
A110: Murray | B110: =SUM(I105:I109)/1000 -> 1081.068209 | C110: =SUM(J105:J109)/1000 -> 1011.737237 | D110: =SUM(K105:K109)/1000 -> 982.6950805 | G110: Murrumbidgee Irrigation | H110: 1198779.3 | I110: 650930.6736 | J110: 622704.3265 | K110: 611001.4452
A111: Murrumbidgee | B111: =SUM(I110:I111)/1000 -> 936.5862263 | C111: =SUM(J110:J111)/1000 -> 895.9729798 | D111: =SUM(K110:K111)/1000 -> 879.1343857 | G111: Coleambally | H111: 526074.4 | I111: 285655.5527 | J111: 273268.6533 | K111: 268132.9405
A112: Lowbidgee | B112: 0 | C112: 0 | D112: 0 | G112: Total rebates | I112: 2085102.024 | J112: 1969364.432 | K112: 1921111.534
A113: Fish River | B113: 0 | C113: 0 | D113: 0
A116: MDBA / BCR costs ($'000 Real 2013-14) | B116: 2014-15 | C116: 2015-16 | D116: 2016-17
A117: Border | B117: 700 | C117: 700 | D117: 700
A118: Gwydir | B118: 0 | C118: 0 | D118: 0
A119: Namoi | B119: 0 | C119: 0 | D119: 0
A120: Peel | B120: 0 | C120: 0 | D120: 0
A121: Lachlan | B121: 0 | C121: 0 | D121: 0
A122: Macquarie | B122: 0 | C122: 0 | D122: 0
A123: Murray | B123: 10200 | C123: 10400 | D123: 9300
A124: Murrumbidgee | B124: 2300 | C124: 2300 | D124: 2100
A125: Lowbidgee | B125: 0 | C125: 0 | D125: 0
A126: Fish River | B126: 0 | C126: 0 | D126: 0
A130: IPART Model Data - Year 2013-14 ($,000)
A132: Real $2009-10 | B132: Border Rivers | C132: Gwydir | D132: Namoi | E132: Peel | F132: Lachlan | G132: Macquarie | H132: Murray | I132: Murrumbidgee | J132: Fish River
A133: MDBA / BCR costs
A134: MDBA | B134: 18.29319784 | C134: 55.75069819 | D134: 64.46174478 | E134: 4.355523296 | F134: 0 | G134: 39.19970966 | H134: 5520.190225 | I134: 1224.773151 | J134: 0
A135: BRC | B135: 715 | C135: 0 | D135: 0 | E135: 0 | F135: 0 | G135: 0 | H135: 0 | I135: 0 | J135: 0
A136: Total | B136: =SUM(B134:B135) -> 733.2931978 | C136: 55.75069819 | D136: 64.46174478 | E136: 4.355523296 | F136: 0 | G136: 39.19970966 | H136: 5520.190225 | I136: 1224.773151 | J136: 0
A138: Tariff Revenue
A139: High Security Entitlement | B139: =B145*B150/10^3 -> 32.37282286 | C139: 282.4605509 | D139: 125.1477436 | E139: 396.1389036 | F139: 680.0082921 | G139: 440.2328237 | H139: 730.8131966 | I139: 1176.935451
A140: General Security Entitlement | B140: 762.5197185 | C140: 1872.560831 | D140: 2105.630805 | E140: 77.46445082 | F140: 2530.328853 | G140: 2421.366245 | H140: 4394.06629 | I140: 3269.146067
A141: Usage | B141: 1266.9997 | C141: 2907.898037 | D141: 2993.34233 | E141: 491.4820973 | F141: 4216.976548 | G141: 3804.233535 | H141: 6927.165357 | I141: 6166.41822
A142: Total | B142: =SUM(B139:B141) -> 2061.892241 | C142: 5062.919419 | D142: 5224.120879 | E142: 965.0854517 | F142: 7427.313693 | G142: 6665.832603 | H142: 12052.04484 | I142: 10612.49974 | J142: 10312.52213
A144: Tariffs
A145: High Security Entitlement | B145: 10.35930332 | C145: 13.16341462 | D145: 14.67664403 | E145: 22.79149092 | F145: 11.18841375 | G145: 10.33555956 | H145: 2.838790811 | I145: 2.693658708
A146: General Security Entitlement | B146: 2.898377781 | C146: 3.674101284 | D146: 8.232210965 | E146: 2.506048035 | F146: 3.997700994 | G146: 3.832998127 | H146: 2.116374922 | I146: 1.443927847
A147: Usage | B147: 8.53 | C147: 11.73800574 | D147: 18.08036547 | E147: 37.65539274 | F147: 16.32471024 | G147: 12.64568972 | H147: 4.494142759 | I147: 3.414697844
A149: Volumes
A150: High Security Entitlement | B150: 3125 | C150: 21458 | D150: 8527 | E150: 17381 | F150: 60777.9 | G150: 42594 | H150: 257438.2 | I150: 436928.2
A151: General Security Entitlement | B151: 263085 | C151: 509665 | D151: 255779.5 | E151: 30911 | F151: 632946 | G151: 631716 | H151: 2076223 | I151: 2264064.7
A152: Usage | B152: 148534.5486 | C152: 247733.5675 | D152: 165557.623 | E152: 13052.10387 | F152: 258318.6155 | G152: 300832.4275 | H152: 1541376.349 | I152: 1805845.935
A155: Proportion of tariffs which recover MDBA / BCR costs | B155: =B136/B142 -> 0.355640893 | C155: =C136/C142 -> 0.0110115713 | D155: 0.01233925215 | E155: 0.004513096005 | F155: 0 | G155: 0.00588069218 | H155: 0.4580293466 | I155: 0.1154085447 | J155: 0

Sheet Demand and Allocations data
B3: Demand | L3: General Security and High Security Allocations | AD3: Fish River
A4: Year | C4: Border | D4: Gwydir | E4: Namoi | F4: Peel | G4: Lachlan | H4: Macquarie | I4: Murray | J4: Murrumbidgee | M4: Border | O4: Gwydir | Q4: Namoi | S4: Peel | U4: Lachlan | W4: Macquarie | Y4: Murray | AA4: Murrumbidgee | AE4: Actual Water usage
A5: Counter | B5: FY ending | C5: Actual | D5: Actual | E5: Actual | F5: Actual | G5: Actual | H5: Actual | I5: Actual | J5: Actual | L5: FY ending | M5: Actual | O5: Actual | Q5: Actual | S5: Actual | U5: Actual | W5: Actual | Y5: Actual | AA5: Actual | AD5: FY ending | AI5: Minor customers
M6: GS | N6: HS | O6: GS | P6: HS | Q6: GS | R6: HS | S6: GS | T6: HS | U6: GS | V6: HS | W6: GS | X6: HS | Y6: GS | Z6: HS | AA6: GS | AB6: HS | AE6: Delta Electricity | AF6: SCA | AG6: Oberon Council | AH6: Lithgow Council | AI6: Raw | AJ6: Filtered
A7: 1 | B7: 1994 | C7: 68087 | D7: 98862.55 | E7: 122249.2 | F7: 9980.2 | G7: 284975.05 | H7: 514616.38 | I7: 1826143 | J7: 2087709 | L7: 1994 | M7: 0.07 | N7: 1 | O7: 0 | P7: 1 | Q7: 0.27 | R7: 1 | S7: 1 | T7: 1 | U7: 1.2 | V7: 1 | W7: 1 | X7: 1 | Y7: 1.3 | Z7: 1 | AA7: 1.2 | AB7: 1 | AD7: 1994 | AE7: 5201 | AF7: 3736 | AG7: 704 | AH7: 2088 | AI7: 117.2728551 | AJ7: 301.137834
A8: =A7+1 -> 2 | B8: 1995 | C8: 63884 | D8: 45180.76 | E8: 39635.9 | F8: 11916.2 | G8: 389862.37 | H8: 167019.87 | I8: 2135851 | J8: 2565241 | L8: 1995 | M8: 0 | N8: 1 | O8: 0 | P8: 1 | Q8: 0 | R8: 1 | S8: 0.5 | T8: 1 | U8: 0.8 | V8: 1 | W8: 0.8 | X8: 1 | Y8: 0.95 | Z8: 1 | AA8: 1 | AB8: 1 | AD8: 1995 | AE8: 6281 | AF8: 3293 | AG8: 596 | AH8: 1480 | AI8: 42.82278481 | AJ8: 109.9620253
A9: =A8+1 -> 3 | B9: 1996 | C9: 139403 | D9: 178003 | E9: 97586 | F9: 5942 | G9: 385000 | H9: 199100 | I9: 2033592.896 | J9: 2159000 | L9: 1996 | M9: 0.05 | N9: 1 | O9: 0.18 | P9: 1 | Q9: 0.3 | R9: 1 | S9: 0.3 | T9: 1 | U9: 1 | V9: 1 | W9: 0.55 | X9: 1 | Y9: 1 | Z9: 1 | AA9: 1.05 | AB9: 1 | AD9: 1996 | AE9: 7662 | AF9: 3215 | AG9: 622 | AH9: 1138 | AI9: 45.34177215 | AJ9: 116.4303797
A10: 4 | B10: 1997 | C10: 169812 | D10: 394616 | E10: 198965.3 | F10: 5641 | G10: 436000 | H10: 348937 | I10: 2372283.84 | J10: 2611000 | L10: 1997 | M10: 0.65 | N10: 1 | O10: 0.75 | P10: 1 | Q10: 1 | R10: 1 | S10: 0.65 | T10: 1 | U10: 1 | V10: 1 | W10: 0.85 | X10: 1 | Y10: 1 | Z10: 1 | AA10: 1 | AB10: 1 | AD10: 1997 | AE10: 7451 | AF10: 3650 | AG10: 734 | AH10: 1098 | AI10: 72.49085795 | AJ10: 186.1448664
A11: 5 | B11: 1998 | C11: 187883 | D11: 454913 | E11: 323274.03 | F11: 16020 | G11: 414000 | H11: 403989 | I11: 1972012.6 | J11: 2442000 | L11: 1998 | M11: 0.55 | N11: 1 | O11: 0.82 | P11: 1 | Q11: 1 | R11: 1 | S11: 1 | T11: 1 | U11: 0.65 | V11: 1 | W11: 0.1 | X11: 1 | Y11: 0.84 | Z11: 1 | AA11: 0.9 | AB11: 1 | AD11: 1998 | AE11: 7243 | AF11: 3003 | AG11: 827 | AH11: 970 | AI11: 53.73839662 | AJ11: 137.9915612
A12: 6 | B12: 1999 | C12: 164331 | D12: 374762 | E12: 216487.31 | F12: 5561 | G12: 278000 | H12: 336071 | I12: 2063827.2 | J12: 2119000 | L12: 1999 | M12: 0.35 | N12: 1 | O12: 1.681853282 | P12: 1 | Q12: 2.319354839 | R12: 1 | S12: 1 | T12: 1 | U12: 1 | V12: 1 | W12: 1 | X12: 1 | Y12: 0.93 | Z12: 1 | AA12: 0.85 | AB12: 1 | AD12: 1999 | AE12: 7204 | AF12: 3317 | AG12: 855 | AH12: 898 | AI12: 47.86075949 | AJ12: 122.8987342
A13: 7 | B13: 2000 | C13: 180863 | D13: 417837 | E13: 246477.68 | F13: 7309 | G13: 285000 | H13: 385748 | I13: 1252922.342 | J13: 1713000 | L13: 2000 | M13: 0.6 | N13: 1 | O13: 0.4936573548 | P13: 1 | Q13: 0.6670445344 | R13: 1 | S13: 1 | T13: 1 | U13: 0.74 | V13: 1 | W13: 1 | X13: 1 | Y13: 0.35 | Z13: 1 | AA13: 0.78 | AB13: 1 | AD13: 2000 | AE13: 7294 | AF13: 3468 | AG13: 767 | AH13: 858 | AI13: 50.09985935 | AJ13: 128.6483826
A14: 8 | B14: 2001 | C14: 231793 | D14: 425315 | E14: 248842.49 | F14: 10241 | G14: 407000 | H14: 464188 | I14: 2224902 | J14: 2198000 | L14: 2001 | M14: 0.4 | N14: 1 | O14: 0.4469803922 | P14: 1 | Q14: 1.226720648 | R14: 1 | S14: 1 | T14: 1 | U14: 0.84 | V14: 1 | W14: 1 | X14: 1 | Y14: 0.95 | Z14: 1 | AA14: 0.9 | AB14: 1 | AD14: 2001 | AE14: 8136.524 | AF14: 3779.438 | AG14: 968.542 | AH14: 926.604 | AI14: 50.37974684 | AJ14: 129.3670886
A15: 9 | B15: 2002 | C15: 182622 | D15: 443145 | E15: 280339.88 | F15: 14671 | G15: 439572.22 | H15: 545663.54 | I15: 2076048 | J15: 2254000 | L15: 2002 | M15: 0.9616007471 | N15: 1 | O15: 0.2662352941 | P15: 1 | Q15: 0.2980161943 | R15: 1 | S15: 1 | T15: 1 | U15: 0.58 | V15: 1 | W15: 0.9 | X15: 1 | Y15: 1.05 | Z15: 1 | AA15: 0.72 | AB15: 1 | AD15: 2002 | AE15: 8359 | AF15: 3677 | AG15: 838 | AH15: 1019 | AI15: 50.37974684 | AJ15: 129.3670886
A16: 10 | B16: 2003 | C16: 123803 | D16: 278986 | E16: 236853.11 | F16: 21805 | G16: 237252.44 | H16: 375914.33 | I16: 969209 | J16: 1730000 | L16: 2003 | M16: 0.1383938411 | N16: 1 | O16: 0 | P16: 1 | Q16: 0 | R16: 1 | S16: 0.6 | T16: 1 | U16: 0.03 | V16: 1 | W16: 0 | X16: 1 | Y16: 0.1 | Z16: 1 | AA16: 0.38 | AB16: 1 | AD16: 2003 | AE16: 8303 | AF16: 4390 | AG16: 911 | AH16: 1183 | AI16: 66.33333333 | AJ16: 170.3333333
A17: 11 | B17: 2004 | C17: 100542.36 | D17: 159250 | E17: 80652.71 | F17: 13325 | G17: 43509.97 | H17: 174168.35 | I17: 1306721 | J17: 1655000 | L17: 2004 | M17: 0.5394395847 | N17: 1 | O17: 0.3071568627 | P17: 1 | Q17: 0.4646963563 | R17: 1 | S17: 0.35 | T17: 1 | U17: 0 | V17: 0.7 | W17: 0.19 | X17: 1 | Y17: 0.55 | Z17: 1 | AA17: 0.41 | AB17: 0.95 | AD17: 2004 | AE17: 6734 | AF17: 3005 | AG17: 732 | AH17: 968 | AI17: 60.4556962 | AJ17: 155.2405063
A18: 12 | B18: 2005 | C18: 107563.76 | D18: 154840 | E18: 96650 | F18: 15165 | G18: 21164.7 | H18: 63783.6 | I18: 1244515.1 | J18: 1533411 | L18: 2005 | M18: 0.1667033994 | N18: 1 | O18: 0.04598039216 | P18: 1 | Q18: 0.1413360324 | R18: 1 | S18: 0.65 | T18: 1 | U18: 0 | V18: 0.3 | W18: 0.09 | X18: 1 | Y18: 0.49 | Z18: 0.97 | AA18: 0.4 | AB18: 0.95 | AD18: 2005 | AE18: 4960 | AF18: 1878 | AG18: 677 | AH18: 735 | AI18: 45.34177215 | AJ18: 116.4303797
A19: 13 | B19: 2006 | C19: 134417.37 | D19: 218496 | E19: 141325.3 | F19: 14753 | G19: 112435.93 | H19: 180723 | I19: 1644734.3 | J19: 1942641 | L19: 2006 | M19: 0.3804940351 | N19: 1 | O19: 0.2188263003 | P19: 1 | Q19: 0.299757195 | R19: 1 | S19: 0.45 | T19: 1 | U19: 0.19 | V19: 1 | W19: 0.44 | X19: 1 | Y19: 0.63 | Z19: 0.97 | AA19: 0.54 | AB19: 0.95 | AD19: 2006 | AE19: 6367 | AF19: 2098 | AG19: 725 | AH19: 959 | AI19: 63.81434599 | AJ19: 163.8649789
A20: 14 | B20: 2007 | C20: 131933.8 | D20: 129467 | E20: 66558.5 | F20: 9718 | G20: 57260.2 | H20: 204745 | I20: 559114.7 | J20: 934075 | L20: 2007 | M20: 0.2518418989 | N20: 1 | O20: 0 | P20: 1 | Q20: 0 | R20: 1 | S20: 0 | T20: 1 | U20: 0 | V20: 0.8 | W20: 0 | X20: 1 | Y20: 0 | Z20: 0.69 | AA20: 0.1 | AB20: 0.9 | AD20: 2007 | AE20: 6590 | AF20: 3115 | AG20: 749 | AH20: 795 | AI20: 47 | AJ20: 112
A21: 15 | B21: 2008 | C21: 112269 | D21: 79132 | E21: 51211.6 | F21: 9080 | G21: 30776.5 | H21: 30867 | I21: 226153 | J21: 471430 | L21: 2008 | M21: 0.2534980989 | N21: 1 | O21: 0.2424509804 | P21: 1 | Q21: 0.1362753036 | R21: 1 | S21: 0.5 | T21: 1 | U21: 0 | V21: 0.3 | W21: 0.05 | X21: 1 | Y21: 0 | Z21: 0.5 | AA21: 0.13 | AB21: 0.9 | AD21: 2008 | AE21: 4366.7 | AF21: 1077.2 | AG21: 600.971 | AH21: 747.338 | AI21: 40 | AJ21: 110
A22: 16 | B22: 2009 | C22: 117688 | D22: 143199 | E22: 97482 | F22: 10183 | G22: 27797.6 | H22: 65439 | I22: 301558 | J22: 568580 | L22: 2009 | M22: 0.2374144487 | N22: 1 | O22: 0 | P22: 1 | Q22: 0.2373279352 | R22: 1 | S22: 0.8 | T22: 1 | U22: 0 | V22: 0.3 | W22: 0.1 | X22: 1 | Y22: 0.09 | Z22: 0.95 | AA22: 0.21 | AB22: 0.95 | AD22: 2009 | AE22: 3596.64 | AF22: 249.636 | AG22: 582.9084 | AH22: 747.906 | AI22: 42 | AJ22: 104
A23: 17 | B23: 2010 | C23: 100850 | D23: 46959 | E23: 75152 | F23: 17517 | G23: 11786.7 | H23: 73820 | I23: 414880 | J23: 822914 | L23: 2010 | M23: 0.02688212928 | N23: 1 | O23: 0 | P23: 1 | Q23: 0.005748987854 | R23: 1 | S23: 0 | T23: 1 | U23: 0 | V23: 0.1 | W23: 0 | X23: 1 | Y23: 0.27 | Z23: 0.97 | AA23: 0.27 | AB23: 0.95 | AD23: 2010 | AE23: 3824.4 | AF23: 0 | AG23: 591.114 | AH23: 747.193 | AI23: 40 | AJ23: 88
A24: 18 | B24: 2011 | C24: 163725 | D24: 245148 | E24: 149958 | F24: 6915 | G24: 85698.8 | H24: 203146 | I24: 773243 | J24: 1279759 | L24: 2011 | M24: 1 | N24: 1 | O24: 0.829 | P24: 1 | Q24: 1.093 | R24: 1 | S24: 1 | T24: 1 | U24: 1 | V24: 1 | W24: 1 | X24: 1 | Y24: 1 | Z24: 1 | AA24: 1 | AB24: 0.9996 | AD24: 2011 | AE24: 4248.2 | AF24: 223.876 | AG24: 617.913 | AH24: 764.464 | AI24: 30 | AJ24: 97
A25: 19 | B25: 2012 | C25: 134199.8 | D25: 200724.1 | E25: 128271.7 | F25: 4218.7 | G25: 212768.7 | H25: 296617.9 | I25: 1670161.2 | J25: 1738425.6 | L25: 2012 | M25: 1 | N25: 1 | O25: 1 | P25: 1 | Q25: 1.165 | R25: 1 | S25: 1 | T25: 1 | U25: 1 | V25: 1 | W25: 0.49 | X25: 1 | Y25: 1 | Z25: 1 | AA25: 1 | AB25: 1 | AD25: 2012 | AE25: 4111.5 | AF25: 43.425 | AG25: 658.29 | AH25: 754.505 | AI25: 35.82559775 | AJ25: 91.99437412
A26: 20 | B26: 2013 | C26: 197868.7 | D26: 428699.4 | E26: 281246.7 | F26: 13317.1 | G26: 394082.4 | H26: 558856.4 | I26: 2125906.5 | J26: 2369612.9 | L26: 2013 | M26: 1 | N26: 1 | O26: 1.62 | P26: 1 | Q26: 1 | R26: 1 | S26: 0.83 | T26: 1 | U26: 0 | V26: 1 | W26: 0.64 | X26: 1 | Y26: 1 | Z26: 1 | AA26: 1 | AB26: 1 | AD26: 2013 | AE26: 5864 | AF26: 1014 | AG26: 585 | AH26: 833 | AI26: 40.7 | AJ26: 65.3
B34: Forecasts (20 year moving average) | L34: Forecasts (20 year moving average) | AD34: Forecasts (20 year moving average)
B35: 2015 | C35: =AVERAGE(C7:C26) -> 140676.9395 | D35: 245876.7405 | E35: 158960.9705 | F35: 11163.91 | G35: =AVERAGE(G7:G26) -> 227697.179 | H35: 279670.6685 | I35: =AVERAGE(I7:I26) -> 1459688.934 | J35: 1759739.925 | L35: 2015 | M35: =AVERAGE(M7:M26) -> 0.4313134092 | N35: 1 | O35: 0.4451070429 | P35: 1 | Q35: 0.5812139013 | R35: 1 | S35: 0.6815 | T35: 1 | U35: 0.5015 | V35: 0.825 | W35: 0.51 | X35: 1 | Y35: 0.675 | Z35: 0.9525 | AA35: 0.692 | AB35: 0.97748 | AD35: 2015 | AE35: =AVERAGE(AE7:AE26) -> 6189.8482 | AF35: 2411.62875 | AG35: 717.08692 | AH35: 985.5005 | AI35: =AVERAGE(AI7:AI26) -> 52.09287623 | AJ35: =AVERAGE(AJ7:AJ26) -> 131.8055767
L40: Forecast Average Water Allocation
L41: 2015 | M41: =N35/M35 -> 2.318499677 | O41: =P35/O35 -> 2.246650589 | Q41: =R35/Q35 -> 1.720536962 | S41: =T35/S35 -> 1.467351431 | U41: =V35/U35 -> 1.645064806 | W41: =X35/W35 -> 1.960784314 | Y41: =Z35/Y35 -> 1.411111111 | AA41: =AB35/AA35 -> 1.412543353

Sheet Total Tariffs
A1: Total Tariffs | B1: Check | C1: =IF(D1>0.001,"Error","Ok") -> Ok | D1: =SUM(Border!D1,Gwydir!D1,Namoi!D1,Peel!D1,Lachlan!D1,Macquarie!D1,Murray!D1,Murrumbidgee!D1,Lowbidgee!D1,'Fish River'!D1) -> 4.687080946e-09
B3: 2014-15 | C3: 2015-16 | D3: 2016-17
A4: CPI Forecast | B4: =Inputs!H86 -> 0.029296875 | C4: =Inputs!C83 -> 0.0255 | D4: =Inputs!D83 -> 0.0255
A5: CPI Index | B5: =1+B4 -> 1.029296875 | C5: =B5*(1+C4) -> 1.055543945 | D5: =C5*(1+D4) -> 1.082460316
C7: Indicative Prices | G7: Indicative Prices | K7: Indicative Prices
A8: Tariffs ($ Nominal) | B8: 2014-15 | C8: 2015-16 | D8: 2016-17 | F8: 2014-15 | G8: 2015-16 | H8: 2016-17 | J8: 2014-15 | K8: 2015-16 | L8: 2016-17
B9: High Security Entitlement ($/ML) | F9: General Security Entitlement ($/ML) | J9: Usage ($/ML delivered)
A10: Border | B10: =SUM('SW Costs Tariffs'!B10,'MDBA & BCR Tariffs'!B10) -> 9.832585534 | C10: =SUM('SW Costs Tariffs'!C10,'MDBA & BCR Tariffs'!C10) -> 10.11834059 | D10: =SUM('SW Costs Tariffs'!D10,'MDBA & BCR Tariffs'!D10) -> 10.41245877 | F10: =SUM('SW Costs Tariffs'!F10,'MDBA & BCR Tariffs'!F10) -> 3.313223428 | G10: =SUM('SW Costs Tariffs'!G10,'MDBA & BCR Tariffs'!G10) -> 3.409512481 | H10: =SUM('SW Costs Tariffs'!H10,'MDBA & BCR Tariffs'!H10) -> 3.508619603 | J10: =SUM('SW Costs Tariffs'!J10,'MDBA & BCR Tariffs'!J10) -> 9.626989795 | K10: =SUM('SW Costs Tariffs'!K10,'MDBA & BCR Tariffs'!K10) -> 9.906769821 | L10: =SUM('SW Costs Tariffs'!L10,'MDBA & BCR Tariffs'!L10) -> 10.1947381
A11: Gwydir | B11: =SUM('SW Costs Tariffs'!B11,'MDBA & BCR Tariffs'!B11) -> 13.5662053 | C11: =SUM('SW Costs Tariffs'!C11,'MDBA & BCR Tariffs'!C11) -> 14.10698202 | D11: =SUM('SW Costs Tariffs'!D11,'MDBA & BCR Tariffs'!D11) -> 14.6693152 | F11: =SUM('SW Costs Tariffs'!F11,'MDBA & BCR Tariffs'!F11) -> 3.33614007 | G11: =SUM('SW Costs Tariffs'!G11,'MDBA & BCR Tariffs'!G11) -> 3.469125443 | H11: =SUM('SW Costs Tariffs'!H11,'MDBA & BCR Tariffs'!H11) -> 3.607411885 | J11: =SUM('SW Costs Tariffs'!J11,'MDBA & BCR Tariffs'!J11) -> 12.14886838 | K11: =SUM('SW Costs Tariffs'!K11,'MDBA & BCR Tariffs'!K11) -> 12.63314715 | L11: =SUM('SW Costs Tariffs'!L11,'MDBA & BCR Tariffs'!L11) -> 13.13673025
A12: Namoi | B12: =SUM('SW Costs Tariffs'!B12,'MDBA & BCR Tariffs'!B12) -> 16.51074492 | C12: =SUM('SW Costs Tariffs'!C12,'MDBA & BCR Tariffs'!C12) -> 17.04589807 | D12: =SUM('SW Costs Tariffs'!D12,'MDBA & BCR Tariffs'!D12) -> 17.59839682 | F12: =SUM('SW Costs Tariffs'!F12,'MDBA & BCR Tariffs'!F12) -> 7.677019575 | G12: =SUM('SW Costs Tariffs'!G12,'MDBA & BCR Tariffs'!G12) -> 7.925850333 | H12: =SUM('SW Costs Tariffs'!H12,'MDBA & BCR Tariffs'!H12) -> 8.182746298 | J12: =SUM('SW Costs Tariffs'!J12,'MDBA & BCR Tariffs'!J12) -> 19.93444413 | K12: =SUM('SW Costs Tariffs'!K12,'MDBA & BCR Tariffs'!K12) -> 20.58056764 | L12: =SUM('SW Costs Tariffs'!L12,'MDBA & BCR Tariffs'!L12) -> 21.24763358
A13: ="Peel Valley (" &Peel!H36*100& "% price cap)" -> Peel Valley (10% price cap) | B13: =SUM('SW Costs Tariffs'!B13,'MDBA & BCR Tariffs'!B13) -> 28.39207006 | C13: =SUM('SW Costs Tariffs'!C13,'MDBA & BCR Tariffs'!C13) -> 32.02767463 | D13: =SUM('SW Costs Tariffs'!D13,'MDBA & BCR Tariffs'!D13) -> 36.12881837 | F13: =SUM('SW Costs Tariffs'!F13,'MDBA & BCR Tariffs'!F13) -> 3.122113301 | G13: =SUM('SW Costs Tariffs'!G13,'MDBA & BCR Tariffs'!G13) -> 3.52189991 | H13: =SUM('SW Costs Tariffs'!H13,'MDBA & BCR Tariffs'!H13) -> 3.972879193 | J13: =SUM('SW Costs Tariffs'!J13,'MDBA & BCR Tariffs'!J13) -> 46.89932652 | K13: =SUM('SW Costs Tariffs'!K13,'MDBA & BCR Tariffs'!K13) -> 52.90478529 | L13: =SUM('SW Costs Tariffs'!L13,'MDBA & BCR Tariffs'!L13) -> 59.67924304
A14: Lachlan | B14: =SUM('SW Costs Tariffs'!B14,'MDBA & BCR Tariffs'!B14) -> 12.83861419 | C14: =SUM('SW Costs Tariffs'!C14,'MDBA & BCR Tariffs'!C14) -> 13.43138885 | D14: =SUM('SW Costs Tariffs'!D14,'MDBA & BCR Tariffs'!D14) -> 14.05153265 | F14: =SUM('SW Costs Tariffs'!F14,'MDBA & BCR Tariffs'!F14) -> 3.185437237 | G14: =SUM('SW Costs Tariffs'!G14,'MDBA & BCR Tariffs'!G14) -> 3.332512806 | H14: =SUM('SW Costs Tariffs'!H14,'MDBA & BCR Tariffs'!H14) -> 3.486379035 | J14: =SUM('SW Costs Tariffs'!J14,'MDBA & BCR Tariffs'!J14) -> 18.41751516 | K14: =SUM('SW Costs Tariffs'!K14,'MDBA & BCR Tariffs'!K14) -> 19.26787456 | L14: =SUM('SW Costs Tariffs'!L14,'MDBA & BCR Tariffs'!L14) -> 20.15749611
A15: Macquarie | B15: =SUM('SW Costs Tariffs'!B15,'MDBA & BCR Tariffs'!B15) -> 12.54856596 | C15: =SUM('SW Costs Tariffs'!C15,'MDBA & BCR Tariffs'!C15) -> 13.11016474 | D15: =SUM('SW Costs Tariffs'!D15,'MDBA & BCR Tariffs'!D15) -> 13.69689732 | F15: =SUM('SW Costs Tariffs'!F15,'MDBA & BCR Tariffs'!F15) -> 3.404132255 | G15: =SUM('SW Costs Tariffs'!G15,'MDBA & BCR Tariffs'!G15) -> 3.55648086 | H15: =SUM('SW Costs Tariffs'!H15,'MDBA & BCR Tariffs'!H15) -> 3.715647678 | J15: =SUM('SW Costs Tariffs'!J15,'MDBA & BCR Tariffs'!J15) -> 14.40134406 | K15: =SUM('SW Costs Tariffs'!K15,'MDBA & BCR Tariffs'!K15) -> 15.0458621 | L15: =SUM('SW Costs Tariffs'!L15,'MDBA & BCR Tariffs'!L15) -> 15.71922493
A16: Murray | B16: =SUM('SW Costs Tariffs'!B16,'MDBA & BCR Tariffs'!B16) -> 4.653873209 | C16: =SUM('SW Costs Tariffs'!C16,'MDBA & BCR Tariffs'!C16) -> 4.799882372 | D16: =SUM('SW Costs Tariffs'!D16,'MDBA & BCR Tariffs'!D16) -> 4.559514106 | F16: =SUM('SW Costs Tariffs'!F16,'MDBA & BCR Tariffs'!F16) -> 2.638416307 | G16: =SUM('SW Costs Tariffs'!G16,'MDBA & BCR Tariffs'!G16) -> 2.721193156 | H16: =SUM('SW Costs Tariffs'!H16,'MDBA & BCR Tariffs'!H16) -> 2.584921383 | J16: =SUM('SW Costs Tariffs'!J16,'MDBA & BCR Tariffs'!J16) -> 6.878254854 | K16: =SUM('SW Costs Tariffs'!K16,'MDBA & BCR Tariffs'!K16) -> 7.094051072 | L16: =SUM('SW Costs Tariffs'!L16,'MDBA & BCR Tariffs'!L16) -> 6.738795542
A17: Murrumbidgee | B17: =SUM('SW Costs Tariffs'!B17,'MDBA & BCR Tariffs'!B17) -> 3.565903894 | C17: =SUM('SW Costs Tariffs'!C17,'MDBA & BCR Tariffs'!C17) -> 3.647696837 | D17: =SUM('SW Costs Tariffs'!D17,'MDBA & BCR Tariffs'!D17) -> 3.670324942 | F17: =SUM('SW Costs Tariffs'!F17,'MDBA & BCR Tariffs'!F17) -> 1.548746165 | G17: =SUM('SW Costs Tariffs'!G17,'MDBA & BCR Tariffs'!G17) -> 1.58427054 | H17: =SUM('SW Costs Tariffs'!H17,'MDBA & BCR Tariffs'!H17) -> 1.594098396 | J17: =SUM('SW Costs Tariffs'!J17,'MDBA & BCR Tariffs'!J17) -> 4.311760385 | K17: =SUM('SW Costs Tariffs'!K17,'MDBA & BCR Tariffs'!K17) -> 4.410661417 | L17: =SUM('SW Costs Tariffs'!L17,'MDBA & BCR Tariffs'!L17) -> 4.438022492
A18: Lowbidgee | F18: =SUM('SW Costs Tariffs'!F18,'MDBA & BCR Tariffs'!F18) -> 0.7313673838 | G18: =SUM('SW Costs Tariffs'!G18,'MDBA & BCR Tariffs'!G18) -> 0.7921168913 | H18: =SUM('SW Costs Tariffs'!H18,'MDBA & BCR Tariffs'!H18) -> 0.85791243 | J18: =SUM('SW Costs Tariffs'!J18,'MDBA & BCR Tariffs'!J18) -> 0 | K18: =SUM('SW Costs Tariffs'!K18,'MDBA & BCR Tariffs'!K18) -> 0 | L18: =SUM('SW Costs Tariffs'!L18,'MDBA & BCR Tariffs'!L18) -> 0
A20: Fish River | B20: Access ($/KL) | F20: Usage < MAQ ($/KL) | J20: Usage > 200kl ($/KL)
A21: Raw water - major customers | B21: =SUM('SW Costs Tariffs'!B21,'MDBA & BCR Tariffs'!B21) -> 0.3312539443 | C21: =SUM('SW Costs Tariffs'!C21,'MDBA & BCR Tariffs'!C21) -> 0.3434308918 | D21: =SUM('SW Costs Tariffs'!D21,'MDBA & BCR Tariffs'!D21) -> 0.3560554659 | F21: =SUM('SW Costs Tariffs'!F21,'MDBA & BCR Tariffs'!F21) -> 0.3721564695 | G21: =SUM('SW Costs Tariffs'!G21,'MDBA & BCR Tariffs'!G21) -> 0.3858370004 | H21: =SUM('SW Costs Tariffs'!H21,'MDBA & BCR Tariffs'!H21) -> 0.4000204298
A22: Raw water - minor customers * | B22: =SUM('SW Costs Tariffs'!B22,'MDBA & BCR Tariffs'!B22) -> 66.25078886 | C22: =SUM('SW Costs Tariffs'!C22,'MDBA & BCR Tariffs'!C22) -> 68.68617837 | D22: =SUM('SW Costs Tariffs'!D22,'MDBA & BCR Tariffs'!D22) -> 71.21109319 | F22: =SUM('SW Costs Tariffs'!F22,'MDBA & BCR Tariffs'!F22) -> 0.3721564695 | G22: =SUM('SW Costs Tariffs'!G22,'MDBA & BCR Tariffs'!G22) -> 0.3858370004 | H22: =SUM('SW Costs Tariffs'!H22,'MDBA & BCR Tariffs'!H22) -> 0.4000204298 | J22: =SUM('SW Costs Tariffs'!J22,'MDBA & BCR Tariffs'!J22) -> 0.7034104138 | K22: =SUM('SW Costs Tariffs'!K22,'MDBA & BCR Tariffs'!K22) -> 0.7292678923 | L22: =SUM('SW Costs Tariffs'!L22,'MDBA & BCR Tariffs'!L22) -> 0.7560758957
A23: Filtered water - major customers | B23: =SUM('SW Costs Tariffs'!B23,'MDBA & BCR Tariffs'!B23) -> 0.6411123221 | C23: =SUM('SW Costs Tariffs'!C23,'MDBA & BCR Tariffs'!C23) -> 0.6646797129 | D23: =SUM('SW Costs Tariffs'!D23,'MDBA & BCR Tariffs'!D23) -> 0.6891134446 | F23: =SUM('SW Costs Tariffs'!F23,'MDBA & BCR Tariffs'!F23) -> 0.6442997992 | G23: =SUM('SW Costs Tariffs'!G23,'MDBA & BCR Tariffs'!G23) -> 0.6679843621 | H23: =SUM('SW Costs Tariffs'!H23,'MDBA & BCR Tariffs'!H23) -> 0.6925395733
A24: Filtered water - minor customers * | B24: =SUM('SW Costs Tariffs'!B24,'MDBA & BCR Tariffs'!B24) -> 128.2224644 | C24: =SUM('SW Costs Tariffs'!C24,'MDBA & BCR Tariffs'!C24) -> 132.9359426 | D24: =SUM('SW Costs Tariffs'!D24,'MDBA & BCR Tariffs'!D24) -> 137.8226889 | F24: =SUM('SW Costs Tariffs'!F24,'MDBA & BCR Tariffs'!F24) -> 0.6442997992 | G24: =SUM('SW Costs Tariffs'!G24,'MDBA & BCR Tariffs'!G24) -> 0.6679843621 | H24: =SUM('SW Costs Tariffs'!H24,'MDBA & BCR Tariffs'!H24) -> 0.6925395733 | J24: =SUM('SW Costs Tariffs'!J24,'MDBA & BCR Tariffs'!J24) -> 1.285412121 | K24: =SUM('SW Costs Tariffs'!K24,'MDBA & BCR Tariffs'!K24) -> 1.332664075 | L24: =SUM('SW Costs Tariffs'!L24,'MDBA & BCR Tariffs'!L24) -> 1.381653018
A25: * Note : Access Fee for minor customers is an Annual Charge
C28: Indicative Prices | G28: Indicative Prices | K28: Indicative Prices
A29: Tariffs ($ Real 2013-14) | B29: 2014-15 | C29: 2015-16 | D29: 2016-17 | F29: 2014-15 | G29: 2015-16 | H29: 2016-17 | J29: 2014-15 | K29: 2015-16 | L29: 2016-17
B30: High Security Entitlement ($/ML) | F30: General Security Entitlement ($/ML) | J30: Usage ($/ML delivered)
A31: Border | B31: =B10/B$5 -> 9.55272067 | C31: 9.585901788 | D31: 9.6192522 | F31: =F10/B$5 -> 3.218919155 | G31: 3.230099984 | H31: 3.241337859 | J31: =J10/B$5 -> 9.352976803 | K31: 9.385464116 | L31: 9.418117183
A32: Gwydir | B32: 13.18007043 | C32: 13.36465628 | D32: 13.55182725 | F32: 3.241183521 | G32: 3.286576043 | H32: 3.332604283 | J32: 11.80307516 | K32: 11.96837631 | L32: 12.13599248
A33: Namoi | B33: 16.04079962 | C33: 16.14892316 | D33: 16.25777552 | F33: 7.458508581 | G33: 7.508782906 | H33: 7.559396107 | J33: 19.36705008 | K33: 19.49759433 | L33: 19.62901851
A34: =A13 -> Peel Valley (10% price cap) | B34: 27.58394662 | C34: 30.34234129 | D34: 33.37657541 | F34: 3.033248596 | G34: 3.336573456 | H34: 3.670230802 | J34: 45.56443108 | K34: 50.12087419 | L34: 55.13296161
A35: Lachlan | B35: 12.47318874 | C35: 12.72461361 | D35: 12.98110651 | F35: 3.094770143 | G35: 3.157152121 | H35: 3.220791546 | J35: 17.89329746 | K35: 18.25397668 | L35: 18.62192619
A36: Macquarie | B36: 12.19139615 | C36: 12.42029268 | D36: 12.6534868 | F36: 3.307240445 | G36: 3.369334717 | H36: 3.432594824 | J36: 13.99143863 | K36: 14.25413141 | L36: 14.52175631
A37: Murray | B37: 4.521410024 | C37: 4.547307 | D37: 4.212176686 | F37: 2.563319069 | G37: 2.578000819 | H37: 2.38800568 | J37: 6.682479099 | K37: 6.720753885 | L37: 6.225443504
A38: Murrumbidgee | B38: 3.464407578 | C38: 3.455750804 | D38: 3.390724711 | F38: 1.504664206 | G38: 1.500904389 | H38: 1.472662206 | J38: 4.189034758 | K38: 4.178567303 | L38: 4.099940134
A39: Lowbidgee | F39: 0.7105504754 | G39: 0.7504347828 | H39: 0.7925578586 | J39: =J18/B$5 -> 0 | K39: =K18/C$5 -> 0 | L39: =L18/D$5 -> 0
A41: Fish River | B41: Access ($/KL) | F41: Usage < MAQ ($/KL) | J41: Usage > 200kl ($/KL)
A42: Raw water - major customers | B42: =B21/B$5 -> 0.3218254639 | C42: =C21/C$5 -> 0.3253591604 | D42: =D21/D$5 -> 0.3289316575 | F42: =F21/B$5 -> 0.3615637806 | G42: =G21/C$5 -> 0.3655338104 | H42: =H21/D$5 -> 0.3695474318
A43: Raw water - minor customers | B43: =B22/B$5 -> 64.36509278 | C43: 65.07183209 | D43: 65.78633151 | F43: =F22/B$5 -> 0.3615637806 | G43: 0.3655338104 | H43: 0.3695474318 | J43: =J22/B$5 -> 0.6833892445 | K43: 0.6908929709 | L43: 0.6984790893
A44: Filtered water - major customers | B44: 0.6228643433 | C44: 0.6297034963 | D44: 0.6366177443 | F44: 0.6259610953 | G44: 0.6328342511 | H44: 0.6397828753
A45: Filtered water - minor customers | B45: 124.5728687 | C45: 125.9406993 | D45: 127.3235489 | F45: 0.6259610953 | G45: 0.6328342511 | H45: 0.6397828753 | J45: =J24/B$5 -> 1.248825439 | K45: 1.262537747 | L45: 1.27640062
B48: Total Revenue ($'000 Nominal) | F48: Total Revenue ($'000 Real 2013-14)
A49: Total Revenue | B49: 2014-15 | C49: 2015-16 | D49: 2016-17 | F49: 2014-15 | G49: 2015-16 | H49: 2016-17
A50: Border | B50: =SUM('SW Costs Tariffs'!B50,'MDBA & BCR Tariffs'!B50) -> 2257.159102 | C50: =SUM('SW Costs Tariffs'!C50,'MDBA & BCR Tariffs'!C50) -> 2322.756765 | D50: =SUM('SW Costs Tariffs'!D50,'MDBA & BCR Tariffs'!D50) -> 2390.274258 | F50: =B50/B$5 -> 2192.913586 | G50: =C50/C$5 -> 2200.530613 | H50: 2208.186502
A51: Gwydir | B51: =SUM('SW Costs Tariffs'!B51,'MDBA & BCR Tariffs'!B51) -> 4978.540264 | C51: =SUM('SW Costs Tariffs'!C51,'MDBA & BCR Tariffs'!C51) -> 5176.995071 | D51: =SUM('SW Costs Tariffs'!D51,'MDBA & BCR Tariffs'!D51) -> 5383.360693 | F51: =B51/B$5 -> 4836.836082 | G51: 4904.575592 | H51: 4973.26379
A52: Namoi | B52: =SUM('SW Costs Tariffs'!B52,'MDBA & BCR Tariffs'!B52) -> 5281.330975 | C52: =SUM('SW Costs Tariffs'!C52,'MDBA & BCR Tariffs'!C52) -> 5452.511677 | D52: =SUM('SW Costs Tariffs'!D52,'MDBA & BCR Tariffs'!D52) -> 5629.240758 | F52: 5131.008462 | G52: 5165.594195 | H52: 5200.413055
A53: =A34 -> Peel Valley (10% price cap) | B53: =SUM('SW Costs Tariffs'!B53,'MDBA & BCR Tariffs'!B53) -> 1112.402697 | C53: =SUM('SW Costs Tariffs'!C53,'MDBA & BCR Tariffs'!C53) -> 1254.845862 | D53: =SUM('SW Costs Tariffs'!D53,'MDBA & BCR Tariffs'!D53) -> 1415.528875 | F53: 1080.740381 | G53: 1188.814419 | H53: 1307.695861
A54: Lachlan | B54: =SUM('SW Costs Tariffs'!B54,'MDBA & BCR Tariffs'!B54) -> 6989.36041 | C54: =SUM('SW Costs Tariffs'!C54,'MDBA & BCR Tariffs'!C54) -> 7312.067805 | D54: =SUM('SW Costs Tariffs'!D54,'MDBA & BCR Tariffs'!D54) -> 7649.675 | F54: 6790.422257 | G54: 6927.298326 | H54: 7066.933436
A55: Macquarie | B55: =SUM('SW Costs Tariffs'!B55,'MDBA & BCR Tariffs'!B55) -> 6712.722533 | C55: =SUM('SW Costs Tariffs'!C55,'MDBA & BCR Tariffs'!C55) -> 7013.143855 | D55: =SUM('SW Costs Tariffs'!D55,'MDBA & BCR Tariffs'!D55) -> 7327.010239 | F55: 6521.658324 | G55: 6644.1041 | H55: 6768.848827
A56: Murray | B56: =SUM('SW Costs Tariffs'!B56,'MDBA & BCR Tariffs'!B56) -> 16733.52083 | C56: =SUM('SW Costs Tariffs'!C56,'MDBA & BCR Tariffs'!C56) -> 17258.51308 | D56: =SUM('SW Costs Tariffs'!D56,'MDBA & BCR Tariffs'!D56) -> 16394.24213 | F56: 16257.23465 | G56: 16350.35012 | H56: 15145.35165
A57: Murrumbidgee | B57: =SUM('SW Costs Tariffs'!B57,'MDBA & BCR Tariffs'!B57) -> 12645.9615 | C57: =SUM('SW Costs Tariffs'!C57,'MDBA & BCR Tariffs'!C57) -> 12936.02832 | D57: =SUM('SW Costs Tariffs'!D57,'MDBA & BCR Tariffs'!D57) -> 13016.27561 | F57: 12286.01952 | G57: 12255.31952 | H57: 12024.71391
A58: Lowbidgee | B58: =SUM('SW Costs Tariffs'!B58,'MDBA & BCR Tariffs'!B58) -> 546.3314357 | C58: =SUM('SW Costs Tariffs'!C58,'MDBA & BCR Tariffs'!C58) -> 591.7113178 | D58: =SUM('SW Costs Tariffs'!D58,'MDBA & BCR Tariffs'!D58) -> 640.8605852 | F58: 530.7812051 | G58: 560.5747827 | H58: 592.0407204
A59: Fish River | B59: =SUM('SW Costs Tariffs'!B59,'MDBA & BCR Tariffs'!B59) -> 9721.399845 | C59: =SUM('SW Costs Tariffs'!C59,'MDBA & BCR Tariffs'!C59) -> 10078.76005 | D59: =SUM('SW Costs Tariffs'!D59,'MDBA & BCR Tariffs'!D59) -> 10449.25686 | F59: 9444.699659 | G59: 9548.404016 | H59: 9653.247062
A87: State Water bulk water charges - ACCC Final Decision | F87: Comparison of proposed prices against 2013-14
A88: Prices ($ Real 2013-14)
B89: IPART-set | C89: ACCCFinal Decision | G89: =$B89 -> IPART-set | H89: =$C89 -> ACCCFinal Decision | L89: =$B89 -> IPART-set | M89: =$C89 -> ACCCFinal Decision
D90: Indicative Prices | I90: =$D90 -> Indicative Prices | N90: =$D90 -> Indicative Prices
B91: 2013-14 | C91: 2014-15 | D91: 2015-16 | E91: 2016-17 | G91: 2013-14 | H91: 2014-15 | I91: 2015-16 | J91: 2016-17 | L91: 2013-14 | M91: 2014-15 | N91: 2015-16 | O91: 2016-17
B92: High Security Entitlement ($/ML) | G92: General Security Entitlement ($/ML) | L92: Usage ($/ML delivered)
A93: Border | B93: =Inputs!B5 -> 11.45 | C93: =B31 -> 9.55272067 | D93: 9.585901788 | E93: 9.6192522 | G93: =Inputs!C5 -> 3.21 | H93: =F31 -> 3.218919155 | I93: =G31 -> 3.230099984 | J93: =H31 -> 3.241337859 | L93: =Inputs!D5 -> 9.43 | M93: =J31 -> 9.352976803 | N93: 9.385464116 | O93: 9.418117183
A94: Gwydir | B94: =Inputs!B6 -> 14.55 | C94: 13.18007043 | D94: 13.36465628 | E94: 13.55182725 | G94: =Inputs!C6 -> 4.06 | H94: 3.241183521 | I94: 3.286576043 | J94: 3.332604283 | L94: =Inputs!D6 -> 12.97 | M94: 11.80307516 | N94: 11.96837631 | O94: 12.13599248
A95: Namoi | B95: =Inputs!B7 -> 16.22 | C95: 16.04079962 | D95: 16.14892316 | E95: 16.25777552 | G95: =Inputs!C7 -> 9.09 | H95: 7.458508581 | I95: 7.508782906 | J95: 7.559396107 | L95: =Inputs!D7 -> 19.98 | M95: 19.36705008 | N95: 19.49759433 | O95: 19.62901851
A96: Peel | B96: =Inputs!B8 -> 25.19 | C96: 27.58394662 | D96: 30.34234129 | E96: 33.37657541 | G96: =Inputs!C8 -> 2.77 | H96: 3.033248596 | I96: 3.336573456 | J96: 3.670230802 | L96: =Inputs!D8 -> 41.61 | M96: 45.56443108 | N96: 50.12087419 | O96: 55.13296161
A97: Lachlan | B97: =Inputs!B9 -> 12.36 | C97: 12.47318874 | D97: 12.72461361 | E97: 12.98110651 | G97: =Inputs!C9 -> 4.42 | H97: 3.094770143 | I97: 3.157152121 | J97: 3.220791546 | L97: =Inputs!D9 -> 18.04 | M97: 17.89329746 | N97: 18.25397668 | O97: 18.62192619
A98: Macquarie | B98: =Inputs!B10 -> 11.42 | C98: 12.19139615 | D98: 12.42029268 | E98: 12.6534868 | G98: =Inputs!C10 -> 4.24 | H98: 3.307240445 | I98: 3.369334717 | J98: 3.432594824 | L98: =Inputs!D10 -> 13.98 | M98: 13.99143863 | N98: 14.25413141 | O98: 14.52175631
A99: Murray | B99: =Inputs!B11 -> 3.14 | C99: 4.521410024 | D99: 4.547307 | E99: 4.212176686 | G99: =Inputs!C11 -> 2.33 | H99: 2.563319069 | I99: 2.578000819 | J99: 2.38800568 | L99: =Inputs!D11 -> 4.97 | M99: 6.682479099 | N99: 6.720753885 | O99: 6.225443504
A100: Murrumbidgee | B100: =Inputs!B12 -> 2.98 | C100: 3.464407578 | D100: 3.455750804 | E100: 3.390724711 | G100: =Inputs!C12 -> 1.59 | H100: 1.504664206 | I100: 1.500904389 | J100: 1.472662206 | L100: =Inputs!D12 -> 3.78 | M100: 4.189034758 | N100: 4.178567303 | O100: 4.099940134
A101: Lowbidgee | H101: 0.7105504754 | I101: 0.7504347828 | J101: 0.7925578586 | M101: 0 | N101: =K39 -> 0 | O101: =L39 -> 0
A103: Fish River | B103: Access | G103: Usage < MAQ | L103: Usage > MAQ
A104: Raw water - major customers | B104: =Inputs!B17 -> 0.38 | C104: =B42 -> 0.3218254639 | D104: 0.3253591604 | E104: 0.3289316575 | G104: =Inputs!C17 -> 0.43 | H104: =F42 -> 0.3615637806 | I104: 0.3655338104 | J104: 0.3695474318 | L104: =Inputs!D17 -> 0.81
A105: Raw water - minor customers | B105: =Inputs!B18*'Fish River'!C36 -> 94 | C105: 64.36509278 | D105: 65.07183209 | E105: 65.78633151 | G105: =Inputs!C18 -> 0.85 | H105: 0.3615637806 | I105: 0.3655338104 | J105: 0.3695474318 | L105: =Inputs!D18 -> 1.33 | M105: =J43 -> 0.6833892445 | N105: =K43 -> 0.6908929709 | O105: =L43 -> 0.6984790893
A106: Filtered water - major customers | B106: =Inputs!B19 -> 0.57 | C106: 0.6228643433 | D106: 0.6297034963 | E106: 0.6366177443 | G106: =Inputs!C19 -> 0.61 | H106: 0.6259610953 | I106: 0.6328342511 | J106: 0.6397828753 | L106: =Inputs!D19 -> 1.18
A107: Filtered water - minor customers | B107: =Inputs!B20*'Fish River'!C49 -> 134.6627247 | C107: 124.5728687 | D107: 125.9406993 | E107: 127.3235489 | G107: =Inputs!C20 -> 1.04 | H107: 0.6259610953 | I107: 0.6328342511 | J107: 0.6397828753 | L107: =Inputs!D20 -> 1.71 | M107: =J45 -> 1.248825439 | N107: =K45 -> 1.262537747 | O107: =L45 -> 1.27640062
A110: Positive change implies real increase in price | B110: % Real change in prices over 2013-14 | G110: =$B110 -> % Real change in prices over 2013-14 | L110: =$B110 -> % Real change in prices over 2013-14
A111: Border | C111: =C93/$B93-1 -> -0.1657012515 | D111: =D93/$B93-1 -> -0.1628033373 | E111: -0.1598906376 | H111: =H93/$G93-1 -> 0.002778553107 | I111: =I93/$G93-1 -> 0.006261677368 | J111: 0.009762572952 | M111: =M93/$L93-1 -> -0.008167889387 | N111: =N93/$L93-1 -> -0.004722787299 | O111: -0.001260107882
A112: Gwydir | C112: =C94/$B94-1 -> -0.0941532352 | D112: -0.08146692216 | E112: -0.0686029383 | H112: =H94/$G94-1 -> -0.2016789356 | I112: -0.1904985116 | J112: -0.1791615066 | M112: =M94/$L94-1 -> -0.08997107454 | N112: -0.07722619067 | O112: -0.0643028157
A113: Namoi | C113: -0.01104811227 | D113: -0.004382049176 | E113: 0.002328946742 | H113: -0.1794820043 | I113: -0.1739512755 | J113: -0.1683832665 | M113: -0.03067817394 | N113: -0.02414442793 | O113: -0.01756664098
A114: Peel | C114: 0.0950355944 | D114: 0.2045391538 | E114: 0.3249930692 | H114: 0.0950355944 | I114: 0.2045391538 | J114: 0.3249930692 | M114: 0.0950355944 | N114: 0.2045391538 | O114: 0.3249930692
A115: Lachlan | C115: 0.009157664867 | D115: 0.02949948287 | E115: 0.05025133547 | H115: -0.2998257595 | I115: -0.2857121898 | J115: -0.2713141298 | M115: -0.008132069881 | N115: 0.01186123505 | O115: 0.03225754952
A116: Macquarie | C116: 0.06754782412 | D116: 0.08759130316 | E116: 0.1080111036 | H116: -0.219990461 | I116: -0.2053455856 | J116: -0.190425749 | M116: 0.0008182137366 | N116: 0.01960882756 | O116: 0.03875223988
A117: Murray | C117: 0.4399394982 | D117: 0.4481869428 | E117: 0.3414575432 | H117: 0.1001369394 | I117: 0.1064381198 | J117: 0.02489514164 | M117: 0.3445631991 | N117: 0.3522643633 | O117: 0.2526043267
A118: Murrumbidgee | C118: 0.1625528785 | D118: 0.1596479207 | E118: 0.1378270843 | H118: -0.05367031068 | I118: -0.05603497549 | J118: -0.07379735492 | M118: 0.1082102534 | N118: 0.1054410855 | O118: 0.084640247
A119: Lowbidgee
A121: Fish River | B121: Access | G121: Usage < MAQ | L121: Usage > MAQ
A122: Raw water - major customers | C122: =C104/$B104-1 -> -0.1530908845 | D122: -0.1437916831 | E122: -0.1343903749 | H122: =H104/$G104-1 -> -0.1591539985 | I122: =I104/$G104-1 -> -0.1499213711 | J122: -0.1405873679
A123: Raw water - minor customers | C123: =C105/$B105-1 -> -0.3152649704 | D123: -0.3077464672 | E123: -0.3001454095 | H123: =H105/$G105-1 -> -0.5746308463 | I123: -0.569960223 | J123: -0.5652383155 | M123: =M105/$L105-1 -> -0.4861735004 | N123: -0.4805316009 | O123: -0.4748277524
A124: Filtered water - major customers | C124: =C106/$B106-1 -> 0.09274446199 | D124: 0.104742976 | E124: 0.1168732356 | H124: =H106/$G106-1 -> 0.02616572994 | I124: 0.03743319848 | J124: 0.04882438568
A125: Filtered water - minor customers | C125: =C107/$B107-1 -> -0.07492686678 | D125: -0.06476941158 | E125: -0.05450042586 | H125: =H107/$G107-1 -> -0.3981143315 | I125: -0.3915055278 | J125: -0.3848241584 | M125: -0.269692726 | N125: -0.2616738319 | O125: -0.2535668892
A128: Positive change implies real increase in price | B128: % Average real change in prices over 2013-14
C129: 2014-15 | D129: 2015-16 | E129: 2016-17
A130: Border | B130: =SUMPRODUCT(Border!B$88:B$90,Border!C$34:C$36)/10^3 -> 2207.324419 | C130: =F50/$B130-1 -> -0.00652864296 | D130: -0.003077846993 | E130: 0.0003905553525
A131: Gwydir | B131: =SUMPRODUCT(Gwydir!B$88:B$90,Gwydir!C$34:C$36)/10^3 -> 5570.473669 | C131: -0.131701114 | D131: -0.119540656 | E131: -0.1072098918
A132: Namoi | B132: =SUMPRODUCT(Namoi!B$88:B$90,Namoi!C$34:C$36)/10^3 -> 5647.820851 | C132: -0.09150651239 | D132: -0.08538278181 | E132: -0.07921777403
A133: Peel | B133: =SUMPRODUCT(Peel!B$88:B$90,Peel!C$34:C$36)/10^3 -> 986.9454351 | C133: 0.0950355944 | D133: 0.2045391538 | E133: 0.3249930692
A134: Lachlan | B134: =SUMPRODUCT(Lachlan!B$88:B$90,Lachlan!C$34:C$36)/10^3 -> 7655.604849 | C134: -0.1130129635 | D134: -0.09513376637 | E134: -0.0768941742
A135: Macquarie | B135: =SUMPRODUCT(Macquarie!B$88:B$90,Macquarie!C$34:C$36)/10^3 -> 7074.832306 | C135: -0.07818898848 | D135: -0.06088175477 | E135: -0.04324957338
A136: Murray | B136: =SUMPRODUCT(Murray!B$88:B$90,Murray!C$34:C$36)/10^3 -> 12912.11746 | C136: 0.259068058 | D136: 0.2662795374 | E136: 0.1729564651
A137: Murrumbidgee | B137: =SUMPRODUCT(Murrumbidgee!B$88:B$90,Murrumbidgee!C$34:C$36)/10^3 -> 11547.44203 | C137: 0.06396026835 | D137: 0.06130167121 | E137: 0.04133139426
A138: Lowbidgee
A139: Fish River | B139: ='Fish River'!B196/10^3 -> 10876.79923 | C139: -0.1316655335 | D139: -0.1221310782 | E139: -0.112491933

Sheet MDBA & BCR Tariffs
A1: MDBA & BCR Tariffs | B1: Check | C1: =IF(D1>0.001,"Error","Ok") -> Ok | D1: =SUM(Border!D1,Gwydir!D1,Namoi!D1,Peel!D1,Lachlan!D1,Macquarie!D1,Murray!D1,Murrumbidgee!D1,Lowbidgee!D1,'Fish River'!D1) -> 4.687080946e-09
B3: 2014-15 | C3: 2015-16 | D3: 2016-17
A4: CPI Forecast | B4: =Inputs!H86 -> 0.029296875 | C4: =Inputs!C83 -> 0.0255 | D4: =Inputs!D83 -> 0.0255
A5: CPI Index | B5: =1+B4 -> 1.029296875 | C5: =B5*(1+C4) -> 1.055543945 | D5: =C5*(1+D4) -> 1.082460316
C7: Indicative Prices | G7: Indicative Prices | K7: Indicative Prices
A8: Tariffs ($ Nominal) | B8: 2014-15 | C8: 2015-16 | D8: 2016-17 | F8: 2014-15 | G8: 2015-16 | H8: 2016-17 | J8: 2014-15 | K8: 2015-16 | L8: 2016-17
B9: High Security Entitlement ($/ML) | F9: General Security Entitlement ($/ML) | J9: Usage ($/ML delivered)
A10: Border | B10: =Border!C$67 -> 3.138659871 | C10: =IF($B50=0,0,B10*$C50/$B50) -> 3.218695697 | D10: =IF($C50=0,0,C10*$D50/$C50) -> 3.300772438 | F10: =Border!C$68 -> 1.057614132 | G10: =IF($B50=0,0,F10*$C50/$B50) -> 1.084583292 | H10: =IF($C50=0,0,G10*$D50/$C50) -> 1.112240166 | J10: =Border!C$69 -> 3.07303165 | K10: =IF($B50=0,0,J10*$C50/$B50) -> 3.151393957 | L10: =IF($C50=0,0,K10*$D50/$C50) -> 3.231754503
A11: Gwydir | B11: =Gwydir!C$67 -> 0 | C11: =IF($B51=0,0,B11*$C51/$B51) -> 0 | D11: =IF($C51=0,0,C11*$D51/$C51) -> 0 | F11: =Gwydir!C$68 -> 0 | G11: =IF($B51=0,0,F11*$C51/$B51) -> 0 | H11: =IF($C51=0,0,G11*$D51/$C51) -> 0 | J11: =Gwydir!C$69 -> 0 | K11: =IF($B51=0,0,J11*$C51/$B51) -> 0 | L11: =IF($C51=0,0,K11*$D51/$C51) -> 0
A12: Namoi | B12: =Namoi!C$67 -> 0 | C12: =IF($B52=0,0,B12*$C52/$B52) -> 0 | D12: 0 | F12: =Namoi!C$68 -> 0 | G12: =IF($B52=0,0,F12*$C52/$B52) -> 0 | H12: 0 | J12: =Namoi!C$69 -> 0 | K12: =IF($B52=0,0,J12*$C52/$B52) -> 0 | L12: 0
A13: Peel | B13: =Peel!C$67 -> 0 | C13: =IF($B53=0,0,B13*$C53/$B53) -> 0 | D13: 0 | F13: =Peel!C$68 -> 0 | G13: =IF($B53=0,0,F13*$C53/$B53) -> 0 | H13: 0 | J13: =Peel!C$69 -> 0 | K13: =IF($B53=0,0,J13*$C53/$B53) -> 0 | L13: 0
A14: Lachlan | B14: =Lachlan!C$67 -> 0 | C14: =IF($B54=0,0,B14*$C54/$B54) -> 0 | D14: 0 | F14: =Lachlan!C$68 -> 0 | G14: =IF($B54=0,0,F14*$C54/$B54) -> 0 | H14: 0 | J14: =Lachlan!C$69 -> 0 | K14: =IF($B54=0,0,J14*$C54/$B54) -> 0 | L14: 0
A15: Macquarie | B15: =Macquarie!C$67 -> 0 | C15: =IF($B55=0,0,B15*$C55/$B55) -> 0 | D15: 0 | F15: =Macquarie!C$68 -> 0 | G15: =IF($B55=0,0,F15*$C55/$B55) -> 0 | H15: 0 | J15: =Macquarie!C$69 -> 0 | K15: =IF($B55=0,0,J15*$C55/$B55) -> 0 | L15: 0
A16: Murray | B16: =Murray!C$67 -> 2.919900447 | C16: =IF($B56=0,0,B16*$C56/$B56) -> 3.053070808 | D16: 2.799768679 | F16: =Murray!C$68 -> 1.655376631 | G16: =IF($B56=0,0,F16*$C56/$B56) -> 1.730874789 | H16: 1.587270432 | J16: =Murray!C$69 -> 4.315506358 | K16: =IF($B56=0,0,J16*$C56/$B56) -> 4.512327295 | L16: 4.137955987
A17: Murrumbidgee | B17: =Murrumbidgee!C$67 -> 0.6675537951 | C17: =IF($B57=0,0,B17*$C57/$B57) -> 0.6845764169 | D17: 0.6409867577 | F17: =Murrumbidgee!C$68 -> 0.2899324859 | G17: =IF($B57=0,0,F17*$C57/$B57) -> 0.2973257642 | H17: 0.2783938694 | J17: =Murrumbidgee!C$69 -> 0.8071815996 | K17: =IF($B57=0,0,J17*$C57/$B57) -> 0.8277647304 | L17: 0.7750577109
A18: Lowbidgee | B18: =Lowbidgee!C$67 -> 0 | C18: 0 | D18: 0 | F18: =Lowbidgee!C$68 -> 0 | G18: =IF($B58=0,0,F18*$C58/$B58) -> 0 | H18: 0 | J18: =Lowbidgee!C$69 -> 0 | K18: =IF($B58=0,0,J18*$C58/$B58) -> 0 | L18: 0
A20: Fish River | B20: Access ($/KL) | F20: Usage < MAQ ($/KL) | J20: Usage > 200kl ($/KL)
A21: Raw water - major customers
A22: Raw water - minor customers *
A23: Filtered water - major customers
A24: Filtered water - minor customers *
A25: * Note : Access Fee for minor customers is an Annual Charge
C28: Indicative Prices | G28: Indicative Prices | K28: Indicative Prices
A29: Tariffs ($ Real 2013-14) | B29: 2014-15 | C29: 2015-16 | D29: 2016-17 | F29: 2014-15 | G29: 2015-16 | H29: 2016-17 | J29: 2014-15 | K29: 2015-16 | L29: 2016-17
B30: High Security Entitlement ($/ML) | F30: General Security Entitlement ($/ML) | J30: Usage ($/ML delivered)
A31: Border | B31: =B10/B$5 -> 3.049324201 | C31: 3.049324201 | D31: 3.049324201 | F31: =F10/B$5 -> 1.027511263 | G31: 1.027511263 | H31: 1.027511263 | J31: =J10/B$5 -> 2.985563956 | K31: 2.985563956 | L31: 2.985563956
A32: Gwydir | B32: 0 | C32: 0 | D32: 0 | F32: 0 | G32: 0 | H32: 0 | J32: 0 | K32: 0 | L32: 0
A33: Namoi | B33: 0 | C33: 0 | D33: 0 | F33: 0 | G33: 0 | H33: 0 | J33: 0 | K33: 0 | L33: 0
A34: Peel | B34: 0 | C34: 0 | D34: 0 | F34: 0 | G34: 0 | H34: 0 | J34: 0 | K34: 0 | L34: 0
A35: Lachlan | B35: 0 | C35: 0 | D35: 0 | F35: 0 | G35: 0 | H35: 0 | J35: 0 | K35: 0 | L35: 0
A36: Macquarie | B36: 0 | C36: 0 | D36: 0 | F36: 0 | G36: 0 | H36: 0 | J36: 0 | K36: 0 | L36: 0
A37: Murray | B37: 2.836791326 | C37: 2.892414685 | D37: 2.586486209 | F37: 1.608259649 | G37: 1.639794152 | H37: 1.466354386 | J37: 4.192674109 | K37: 4.274883405 | L37: 3.822732276
A38: Murrumbidgee | B38: 0.6485532127 | C38: 0.6485532127 | D38: 0.5921572812 | F38: 0.2816801381 | G38: 0.2816801381 | H38: 0.257186213 | J38: 0.7842067912 | K38: 0.7842067912 | L38: 0.7160148963
A39: Lowbidgee | F39: =F18/B$5 -> 0 | G39: =G18/C$5 -> 0 | H39: =H18/D$5 -> 0 | J39: =J18/B$5 -> 0 | K39: =K18/C$5 -> 0 | L39: =L18/D$5 -> 0
A41: Fish River | B41: Access ($/KL) | F41: Usage < MAQ ($/KL) | J41: Usage > 200kl ($/KL)
A42: Raw water - major customers
A43: Raw water - minor customers
A44: Filtered water - major customers
A45: Filtered water - minor customers
B48: MDBA / BCR costs ($'000 Nominal) | F48: MDBA / BCR costs ($'000 Real 2013-14)
A49: Revenue Requirement - MDBA / BCR costs | B49: 2014-15 | C49: 2015-16 | D49: 2016-17 | F49: 2014-15 | G49: 2015-16 | H49: 2016-17
A50: Border | B50: =Border!C$54 -> 720.5078125 | C50: =Border!D$54 -> 738.8807617 | D50: =Border!E$54 -> 757.7222211 | F50: =B50/B$5 -> 700 | G50: =C50/C$5 -> 700 | H50: 700
A51: Gwydir | B51: =Gwydir!C$54 -> 0 | C51: =Gwydir!D$54 -> 0 | D51: =Gwydir!E$54 -> 0 | F51: =B51/B$5 -> 0 | G51: 0 | H51: 0
A52: Namoi | B52: =Namoi!C$54 -> 0 | C52: =Namoi!D$54 -> 0 | D52: =Namoi!E$54 -> 0 | F52: 0 | G52: 0 | H52: 0
A53: Peel | B53: =Peel!C$54 -> 0 | C53: =Peel!D$54 -> 0 | D53: =Peel!E$54 -> 0 | F53: 0 | G53: 0 | H53: 0
A54: Lachlan | B54: =Lachlan!C$54 -> 0 | C54: =Lachlan!D$54 -> 0 | D54: =Lachlan!E$54 -> 0 | F54: 0 | G54: 0 | H54: 0
A55: Macquarie | B55: =Macquarie!C$54 -> 0 | C55: =Macquarie!D$54 -> 0 | D55: =Macquarie!E$54 -> 0 | F55: 0 | G55: 0 | H55: 0
A56: Murray | B56: =Murray!C$54 -> 10498.82812 | C56: =Murray!D$54 -> 10977.65703 | D56: =Murray!E$54 -> 10066.88094 | F56: 10200 | G56: 10400 | H56: 9300
A57: Murrumbidgee | B57: =Murrumbidgee!C$54 -> 2367.382812 | C57: =Murrumbidgee!D$54 -> 2427.751074 | D57: =Murrumbidgee!E$54 -> 2273.166663 | F57: 2300 | G57: 2300 | H57: 2100
A58: Lowbidgee | B58: =Lowbidgee!C$54 -> 0 | C58: =Lowbidgee!D$54 -> 0 | D58: =Lowbidgee!E$54 -> 0 | F58: 0 | G58: 0 | H58: 0
A59: Fish River

Sheet SW Costs Tariffs
A1: SW Costs Tariffs | B1: Check | C1: =IF(D1>0.001,"Error","Ok") -> Ok | D1: =SUM(Border!D1,Gwydir!D1,Namoi!D1,Peel!D1,Lachlan!D1,Macquarie!D1,Murray!D1,Murrumbidgee!D1,Lowbidgee!D1,'Fish River'!D1) -> 4.687080946e-09
B3: 2014-15 | C3: 2015-16 | D3: 2016-17 | I3: Macro to Smooth Revenue Requirement
A4: CPI Forecast | B4: =Inputs!H86 -> 0.029296875 | C4: =Inputs!C83 -> 0.0255 | D4: =Inputs!D83 -> 0.0255
A5: CPI Index | B5: =1+B4 -> 1.029296875 | C5: =B5*(1+C4) -> 1.055543945 | D5: =C5*(1+D4) -> 1.082460316
C7: Indicative Prices | G7: Indicative Prices | K7: Indicative Prices
A8: Tariffs ($ Nominal) | B8: 2014-15 | C8: 2015-16 | D8: 2016-17 | F8: 2014-15 | G8: 2015-16 | H8: 2016-17 | J8: 2014-15 | K8: 2015-16 | L8: 2016-17
B9: High Security Entitlement ($/ML) | F9: General Security Entitlement ($/ML) | J9: Usage ($/ML delivered)
A10: Border | B10: =Border!C$40 -> 6.693925663 | C10: =B10*(1+C$4)*(1+Border!D$24) -> 6.899644895 | D10: =C10*(1+D$4)*(1+Border!E$24) -> 7.111686337 | F10: =Border!C$41 -> 2.255609296 | G10: =F10*(1+C$4)*(1+Border!D$24) -> 2.324929189 | H10: =G10*(1+D$4)*(1+Border!E$24) -> 2.396379437 | J10: =Border!C$42 -> 6.553958145 | K10: =J10*(1+C$4)*(1+Border!D$24) -> 6.755375864 | L10: =K10*(1+D$4)*(1+Border!E$24) -> 6.962983598
A11: Gwydir | B11: =Gwydir!C$40 -> 13.5662053 | C11: =B11*(1+C$4)*(1+Gwydir!D$24) -> 14.10698202 | D11: =C11*(1+D$4)*(1+Gwydir!E$24) -> 14.6693152 | F11: =Gwydir!C$41 -> 3.33614007 | G11: =F11*(1+C$4)*(1+Gwydir!D$24) -> 3.469125443 | H11: =G11*(1+D$4)*(1+Gwydir!E$24) -> 3.607411885 | J11: =Gwydir!C$42 -> 12.14886838 | K11: =J11*(1+C$4)*(1+Gwydir!D$24) -> 12.63314715 | L11: =K11*(1+D$4)*(1+Gwydir!E$24) -> 13.13673025
A12: Namoi | B12: =Namoi!C$40 -> 16.51074492 | C12: =B12*(1+C$4)*(1+Namoi!D$24) -> 17.04589807 | D12: =C12*(1+D$4)*(1+Namoi!E$24) -> 17.59839682 | F12: =Namoi!C$41 -> 7.677019575 | G12: =F12*(1+C$4)*(1+Namoi!D$24) -> 7.925850333 | H12: =G12*(1+D$4)*(1+Namoi!E$24) -> 8.182746298 | J12: =Namoi!C$42 -> 19.93444413 | K12: =J12*(1+C$4)*(1+Namoi!D$24) -> 20.58056764 | L12: =K12*(1+D$4)*(1+Namoi!E$24) -> 21.24763358
A13: ="Peel Valley (" &Peel!H36*100& "% price cap)" -> Peel Valley (10% price cap) | B13: =Peel!H$40 -> 28.39207006 | C13: =Peel!I$40 -> 32.02767463 | D13: =Peel!J$40 -> 36.12881837 | F13: =Peel!H$41 -> 3.122113301 | G13: =Peel!I$41 -> 3.52189991 | H13: =Peel!J$41 -> 3.972879193 | J13: =Peel!H$42 -> 46.89932652 | K13: =Peel!I$42 -> 52.90478529 | L13: =Peel!J$42 -> 59.67924304
A14: Lachlan | B14: =Lachlan!C$40 -> 12.83861419 | C14: =B14*(1+C$4)*(1+Lachlan!D$24) -> 13.43138885 | D14: =C14*(1+D$4)*(1+Lachlan!E$24) -> 14.05153265 | F14: =Lachlan!C$41 -> 3.185437237 | G14: =F14*(1+C$4)*(1+Lachlan!D$24) -> 3.332512806 | H14: =G14*(1+D$4)*(1+Lachlan!E$24) -> 3.486379035 | J14: =Lachlan!C$42 -> 18.41751516 | K14: =J14*(1+C$4)*(1+Lachlan!D$24) -> 19.26787456 | L14: =K14*(1+D$4)*(1+Lachlan!E$24) -> 20.15749611
A15: Macquarie | B15: =Macquarie!C$40 -> 12.54856596 | C15: =B15*(1+C$4)*(1+Macquarie!D$24) -> 13.11016474 | D15: =C15*(1+D$4)*(1+Macquarie!E$24) -> 13.69689732 | F15: =Macquarie!C$41 -> 3.404132255 | G15: =F15*(1+C$4)*(1+Macquarie!D$24) -> 3.55648086 | H15: =G15*(1+D$4)*(1+Macquarie!E$24) -> 3.715647678 | J15: =Macquarie!C$42 -> 14.40134406 | K15: =J15*(1+C$4)*(1+Macquarie!D$24) -> 15.0458621 | L15: =K15*(1+D$4)*(1+Macquarie!E$24) -> 15.71922493
A16: Murray | B16: =Murray!C$40 -> 1.733972762 | C16: =B16*(1+C$4)*(1+Murray!D$24) -> 1.746811564 | D16: =C16*(1+D$4)*(1+Murray!E$24) -> 1.759745427 | F16: =Murray!C$41 -> 0.9830396761 | G16: =F16*(1+C$4)*(1+Murray!D$24) -> 0.9903183667 | H16: =G16*(1+D$4)*(1+Murray!E$24) -> 0.9976509508 | J16: =Murray!C$42 -> 2.562748496 | K16: =J16*(1+C$4)*(1+Murray!D$24) -> 2.581723777 | L16: =K16*(1+D$4)*(1+Murray!E$24) -> 2.600839555
A17: Murrumbidgee | B17: =Murrumbidgee!C$40 -> 2.898350099 | C17: =B17*(1+C$4)*(1+Murrumbidgee!D$24) -> 2.96312042 | D17: =C17*(1+D$4)*(1+Murrumbidgee!E$24) -> 3.029338184 | F17: =Murrumbidgee!C$41 -> 1.258813679 | G17: =F17*(1+C$4)*(1+Murrumbidgee!D$24) -> 1.286944776 | H17: =G17*(1+D$4)*(1+Murrumbidgee!E$24) -> 1.315704527 | J17: =Murrumbidgee!C$42 -> 3.504578786 | K17: =J17*(1+C$4)*(1+Murrumbidgee!D$24) -> 3.582896687 | L17: =K17*(1+D$4)*(1+Murrumbidgee!E$24) -> 3.662964781
A18: Lowbidgee | F18: =Lowbidgee!C$41 -> 0.7313673838 | G18: =F18*(1+C$4)*(1+Lowbidgee!D$24) -> 0.7921168913 | H18: =G18*(1+D$4)*(1+Lowbidgee!E$24) -> 0.85791243
A20: Fish River | B20: Access ($/KL) | F20: Usage < MAQ ($/KL) | J20: Usage > 200kl ($/KL)
A21: Raw water - major customers | B21: ='Fish River'!C62 -> 0.3312539443 | C21: =B21*(1+C$4)*(1+'Fish River'!D$24) -> 0.3434308918 | D21: =C21*(1+D$4)*(1+'Fish River'!E$24) -> 0.3560554659 | F21: ='Fish River'!C84 -> 0.3721564695 | G21: =F21*(1+C$4)*(1+'Fish River'!D$24) -> 0.3858370004 | H21: =G21*(1+D$4)*(1+'Fish River'!E$24) -> 0.4000204298
A22: Raw water - minor customers * | B22: ='Fish River'!C75 -> 66.25078886 | C22: =B22*(1+C$4)*(1+'Fish River'!D$24) -> 68.68617837 | D22: =C22*(1+D$4)*(1+'Fish River'!E$24) -> 71.21109319 | F22: ='Fish River'!C97 -> 0.3721564695 | G22: =F22*(1+C$4)*(1+'Fish River'!D$24) -> 0.3858370004 | H22: =G22*(1+D$4)*(1+'Fish River'!E$24) -> 0.4000204298 | J22: ='Fish River'!C111 -> 0.7034104138 | K22: =J22*(1+C$4)*(1+'Fish River'!D$24) -> 0.7292678923 | L22: =K22*(1+D$4)*(1+'Fish River'!E$24) -> 0.7560758957
A23: Filtered water - major customers | B23: ='Fish River'!C146 -> 0.6411123221 | C23: =B23*(1+C$4)*(1+'Fish River'!D$24) -> 0.6646797129 | D23: =C23*(1+D$4)*(1+'Fish River'!E$24) -> 0.6891134446 | F23: ='Fish River'!C159 -> 0.6442997992 | G23: =F23*(1+C$4)*(1+'Fish River'!D$24) -> 0.6679843621 | H23: =G23*(1+D$4)*(1+'Fish River'!E$24) -> 0.6925395733
A24: Filtered water - minor customers * | B24: ='Fish River'!C150 -> 128.2224644 | C24: =B24*(1+C$4)*(1+'Fish River'!D$24) -> 132.9359426 | D24: =C24*(1+D$4)*(1+'Fish River'!E$24) -> 137.8226889 | F24: ='Fish River'!C163 -> 0.6442997992 | G24: =F24*(1+C$4)*(1+'Fish River'!D$24) -> 0.6679843621 | H24: =G24*(1+D$4)*(1+'Fish River'!E$24) -> 0.6925395733 | J24: ='Fish River'!C176 -> 1.285412121 | K24: =J24*(1+C$4)*(1+'Fish River'!D$24) -> 1.332664075 | L24: =K24*(1+D$4)*(1+'Fish River'!E$24) -> 1.381653018
A25: * Note : Access Fee for minor customers is an Annual Charge
C28: Indicative Prices | G28: Indicative Prices | K28: Indicative Prices
A29: Tariffs ($ Real 2013-14) | B29: 2014-15 | C29: 2015-16 | D29: 2016-17 | F29: 2014-15 | G29: 2015-16 | H29: 2016-17 | J29: 2014-15 | K29: 2015-16 | L29: 2016-17
B30: High Security Entitlement ($/ML) | F30: General Security Entitlement ($/ML) | J30: Usage ($/ML delivered)
A31: Border | B31: =B10/B$5 -> 6.50339647 | C31: 6.536577587 | D31: 6.569927999 | F31: =F10/B$5 -> 2.191407892 | G31: =G10/C$5 -> 2.202588721 | H31: =H10/D$5 -> 2.213826596 | J31: =J10/B$5 -> 6.367412847 | K31: =K10/C$5 -> 6.39990016 | L31: =L10/D$5 -> 6.432553227
A32: Gwydir | B32: 13.18007043 | C32: 13.36465628 | D32: 13.55182725 | F32: 3.241183521 | G32: 3.286576043 | H32: 3.332604283 | J32: 11.80307516 | K32: 11.96837631 | L32: 12.13599248
A33: Namoi | B33: 16.04079962 | C33: 16.14892316 | D33: 16.25777552 | F33: 7.458508581 | G33: 7.508782906 | H33: 7.559396107 | J33: 19.36705008 | K33: 19.49759433 | L33: 19.62901851
A34: =A13 -> Peel Valley (10% price cap) | B34: 27.58394662 | C34: 30.34234129 | D34: 33.37657541 | F34: 3.033248596 | G34: 3.336573456 | H34: 3.670230802 | J34: 45.56443108 | K34: 50.12087419 | L34: 55.13296161
A35: Lachlan | B35: 12.47318874 | C35: 12.72461361 | D35: 12.98110651 | F35: 3.094770143 | G35: 3.157152121 | H35: 3.220791546 | J35: 17.89329746 | K35: 18.25397668 | L35: 18.62192619
A36: Macquarie | B36: 12.19139615 | C36: 12.42029268 | D36: 12.6534868 | F36: 3.307240445 | G36: 3.369334717 | H36: 3.432594824 | J36: 13.99143863 | K36: 14.25413141 | L36: 14.52175631
A37: Murray | B37: 1.684618699 | C37: 1.654892315 | D37: 1.625690477 | F37: 0.9550594196 | G37: 0.9382066669 | H37: 0.9216512939 | J37: 2.489804991 | K37: 2.44587048 | L37: 2.402711228
A38: Murrumbidgee | B38: 2.815854365 | C38: 2.807197591 | D38: 2.79856743 | F38: 1.222984068 | G38: 1.219224251 | H38: 1.215475993 | J38: 3.404827966 | K38: 3.394360512 | L38: 3.383925237
A39: Lowbidgee | F39: 0.7105504754 | G39: 0.7504347828 | H39: 0.7925578586 | J39: =J18/B$5 -> 0 | K39: =K18/C$5 -> 0 | L39: =L18/D$5 -> 0
A41: Fish River | B41: Access ($/KL) | F41: Usage < MAQ ($/KL) | J41: Usage > 200kl ($/KL)
A42: Raw water - major customers | B42: =B21/B$5 -> 0.3218254639 | C42: =C21/C$5 -> 0.3253591604 | D42: =D21/D$5 -> 0.3289316575 | F42: =F21/B$5 -> 0.3615637806 | G42: =G21/C$5 -> 0.3655338104 | H42: =H21/D$5 -> 0.3695474318
A43: Raw water - minor customers | B43: =B22/B$5 -> 64.36509278 | C43: 65.07183209 | D43: 65.78633151 | F43: =F22/B$5 -> 0.3615637806 | G43: 0.3655338104 | H43: 0.3695474318 | J43: =J22/B$5 -> 0.6833892445 | K43: 0.6908929709 | L43: 0.6984790893
A44: Filtered water - major customers | B44: =B23/B$5 -> 0.6228643433 | C44: 0.6297034963 | D44: 0.6366177443 | F44: =F23/B$5 -> 0.6259610953 | G44: 0.6328342511 | H44: 0.6397828753
A45: Filtered water - minor customers | B45: =B24/B$5 -> 124.5728687 | C45: 125.9406993 | D45: 127.3235489 | F45: =F24/B$5 -> 0.6259610953 | G45: 0.6328342511 | H45: 0.6397828753 | J45: =J24/B$5 -> 1.248825439 | K45: 1.262537747 | L45: 1.27640062
B48: Smoothed Revenue ($'000 Nominal) | F48: Smoothed Revenue ($'000 Real 2013-14)
A49: Smoothed Revenue | B49: 2014-15 | C49: 2015-16 | D49: 2016-17 | F49: 2014-15 | G49: 2015-16 | H49: 2016-17
A50: Border | B50: =Border!C$22 -> 1536.651289 | C50: =Border!D$22 -> 1583.876003 | D50: =Border!E$22 -> 1632.552037 | F50: =B50/B$5 -> 1492.913586 | G50: =C50/C$5 -> 1500.530613 | H50: =D50/D$5 -> 1508.186502
A51: Gwydir | B51: =Gwydir!C$22 -> 4978.540264 | C51: =Gwydir!D$22 -> 5176.995071 | D51: =Gwydir!E$22 -> 5383.360693 | F51: =B51/B$5 -> 4836.836082 | G51: 4904.575592 | H51: 4973.26379
A52: Namoi | B52: =Namoi!C$22 -> 5281.330975 | C52: =Namoi!D$22 -> 5452.511677 | D52: =Namoi!E$22 -> 5629.240758 | F52: 5131.008462 | G52: 5165.594195 | H52: 5200.413055
A53: =A34 -> Peel Valley (10% price cap) | B53: =Peel!H$49 -> 1112.402697 | C53: =Peel!I$49 -> 1254.845862 | D53: =Peel!J$49 -> 1415.528875 | F53: 1080.740381 | G53: 1188.814419 | H53: 1307.695861
A54: Lachlan | B54: =Lachlan!C$22 -> 6989.36041 | C54: =Lachlan!D$22 -> 7312.067805 | D54: =Lachlan!E$22 -> 7649.675 | F54: 6790.422257 | G54: 6927.298326 | H54: 7066.933436
A55: Macquarie | B55: =Macquarie!C$22 -> 6712.722533 | C55: =Macquarie!D$22 -> 7013.143855 | D55: =Macquarie!E$22 -> 7327.010239 | F55: 6521.658324 | G55: 6644.1041 | H55: 6768.848827
A56: Murray | B56: =Murray!C$22 -> 6234.6927 | C56: =Murray!D$22 -> 6280.856045 | D56: =Murray!E$22 -> 6327.361196 | F56: 6057.234654 | G56: 5950.350123 | H56: 5845.351652
A57: Murrumbidgee | B57: =Murrumbidgee!C$22 -> 10278.57868 | C57: =Murrumbidgee!D$22 -> 10508.27724 | D57: =Murrumbidgee!E$22 -> 10743.10895 | F57: 9986.019517 | G57: 9955.319521 | H57: 9924.713906
A58: Lowbidgee | B58: =Lowbidgee!C$22 -> 546.3314357 | C58: =Lowbidgee!D$22 -> 591.7113178 | D58: =Lowbidgee!E$22 -> 640.8605852 | F58: 530.7812051 | G58: 560.5747827 | H58: 592.0407204
A59: Fish River | B59: ='Fish River'!C$22 -> 9721.399845 | C59: ='Fish River'!D$22 -> 10078.76005 | D59: ='Fish River'!E$22 -> 10449.25686 | F59: 9444.699659 | G59: 9548.404016 | H59: 9653.247062
B67: =Border!$A$12 -> Border | E67: =Gwydir!$A$12 -> Gwydir | H67: =Namoi!$A$12 -> Namoi | K67: =Peel!$A$12 -> Peel | N67: =Lachlan!$A$12 -> Lachlan
B68: 2015-16 | C68: 2016-17 | E68: 2015-16 | F68: 2016-17 | H68: 2015-16 | I68: 2016-17 | K68: 2015-16 | L68: 2016-17 | N68: 2015-16 | O68: 2016-17
A69: Real Growth in Smoothed Revenue | B69: 0.005102121296 | C69: =B69 -> 0.005102121296 | E69: 0.01400492173 | F69: =E69 -> 0.01400492173 | H69: 0.006740533266 | I69: =H69 -> 0.006740533266 | K69: 0.003097657437 | L69: =K69 -> 0.003097657437 | N69: 0.02015722489 | O69: =N69 -> 0.02015722489
A70: Difference in NPVs | B70: =Border!$B$26 -> -9.094947018e-12 | C70: =B70*10^6 -> -9.094947018e-06 | E70: =Gwydir!$B$26 -> -5.675246939e-10 | F70: =E70*10^6 -> -0.0005675246939 | H70: =Namoi!$B$26 -> 0 | I70: =H70*10^6 -> 0 | K70: =Peel!$B$26 -> -1.728039933e-11 | L70: =K70*10^6 -> -1.728039933e-05 | N70: =Lachlan!$B$26 -> 0 | O70: =N70*10^6 -> 0
A71: Difference between final year revenue and requirement | B71: =Border!$E$26 -> 0.01033951741 | E71: =Gwydir!$E$26 -> -0.0008018791361 | H71: =Namoi!$E$26 -> 0.001298672333 | K71: =Peel!$E$26 -> 0.003540134181 | N71: =Lachlan!$E$26 -> 0.004525203864
A72: 2014-15 Average Real Price Increase \ (Decrease) | B72: =Border!$E$43 -> 0.04964038422 | E72: =Gwydir!$E$43 -> -0.1220333213 | H72: =Namoi!$E$43 -> -0.0801563294 | K72: =Peel!$E$43 -> 0 | N72: =Lachlan!$E$43 -> -0.1130129635
B75: =Macquarie!$A$12 -> Macquarie | E75: =Murray!$A$12 -> Murray | H75: =Murrumbidgee!$A$12 -> Murrumbidgee | K75: =Lowbidgee!$A$12 -> Lowbidgee | N75: ='Fish River'!$A$12 -> Fish River
B76: 2015-16 | C76: 2016-17 | E76: 2015-16 | F76: 2016-17 | H76: 2015-16 | I76: 2016-17 | K76: 2015-16 | L76: 2016-17 | N76: 2015-16 | O76: 2016-17
A77: Real Growth in Smoothed Revenue | B77: 0.01877525165 | C77: =B77 -> 0.01877525165 | E77: -0.01764576356 | F77: =E77 -> -0.01764576356 | H77: -0.00307429765 | I77: =H77 -> -0.00307429765 | K77: 0.05613156108 | L77: =K77 -> 0.05613156108 | N77: 0.01098016452 | O77: =N77 -> 0.01098016452
A78: Difference in NPVs | B78: =Macquarie!$B$26 -> 0 | C78: =B78*10^6 -> 0 | E78: =Murray!$B$26 -> -7.821654435e-10 | F78: =E78*10^6 -> -0.0007821654435 | H78: =Murrumbidgee!$B$26 -> 0 | I78: =H78*10^6 -> 0 | K78: =Lowbidgee!$B$26 -> 0 | L78: =K78*10^6 -> 0 | N78: ='Fish River'!$B$26 -> 5.129550118e-10 | O78: =N78*10^6 -> 0.0005129550118
A79: Difference between final year revenue and requirement | B79: =Macquarie!$E$26 -> -0.006986087052 | E79: =Murray!$E$26 -> -0.007676852315 | H79: =Murrumbidgee!$E$26 -> 0.002819290035 | K79: =Lowbidgee!$E$26 -> -0.0253652371 | N79: ='Fish River'!$E$26 -> 0.001306627458
A80: 2014-15 Average Real Price Increase \ (Decrease) | B80: =Macquarie!$E$43 -> -0.07273603453 | E80: =Murray!$E$43 -> -0.1344320658 | H80: =Murrumbidgee!$E$43 -> -0.0223939513 | K80: =Lowbidgee!$E$43 -> 0 | N80: ='Fish River'!E196 -> -0.1316655335
A87: State Water bulk water charges - ACCC Final Decision | F87: Comparison of proposed prices against 2013-14
A88: Prices ($ Real 2013-14)
B89: IPART-set | C89: ACCCFinal Decision | G89: =$B89 -> IPART-set | H89: =$C89 -> ACCCFinal Decision | L89: =$B89 -> IPART-set | M89: =$C89 -> ACCCFinal Decision
D90: Indicative Prices | I90: =$D90 -> Indicative Prices | N90: =$D90 -> Indicative Prices
B91: 2013-14 | C91: 2014-15 | D91: 2015-16 | E91: 2016-17 | G91: 2013-14 | H91: 2014-15 | I91: 2015-16 | J91: 2016-17 | L91: 2013-14 | M91: 2014-15 | N91: 2015-16 | O91: 2016-17
B92: High Security Entitlement ($/ML) | G92: General Security Entitlement ($/ML) | L92: Usage ($/ML delivered)
A93: Border | B93: =Inputs!G5 -> 7.377911775 | C93: =B31 -> 6.50339647 | D93: 6.536577587 | E93: 6.569927999 | G93: =Inputs!H5 -> 2.068392734 | H93: =F31 -> 2.191407892 | I93: =G31 -> 2.202588721 | J93: =H31 -> 2.213826596 | L93: =Inputs!I5 -> 6.076306379 | M93: =J31 -> 6.367412847 | N93: 6.39990016 | O93: 6.432553227
A94: Gwydir | B94: =Inputs!G6 -> 14.38978164 | C94: 13.18007043 | D94: 13.36465628 | E94: 13.55182725 | G94: =Inputs!H6 -> 4.015293021 | H94: 3.241183521 | I94: 3.286576043 | J94: 3.332604283 | L94: =Inputs!I6 -> 12.82717992 | M94: 11.80307516 | N94: 11.96837631 | O94: 12.13599248
A95: Namoi | B95: =Inputs!G7 -> 16.01985733 | C95: 16.04079962 | D95: 16.14892316 | E95: 16.25777552 | G95: =Inputs!H7 -> 8.977836198 | H95: 7.458508581 | I95: 7.508782906 | J95: 7.559396107 | L95: =Inputs!I7 -> 19.73346174 | M95: 19.36705008 | N95: 19.49759433 | O95: 19.62901851
A96: Peel | B96: =Inputs!G8 -> 25.07631511 | C96: 27.58394662 | D96: 30.34234129 | E96: 33.37657541 | G96: =Inputs!H8 -> 2.757498724 | H96: 3.033248596 | I96: 3.336573456 | J96: 3.670230802 | L96: =Inputs!I8 -> 41.42221008 | M96: 45.56443108 | N96: 50.12087419 | O96: 55.13296161
A97: Lachlan | B97: =Inputs!G9 -> 12.36 | C97: 12.47318874 | D97: 12.72461361 | E97: 12.98110651 | G97: =Inputs!H9 -> 4.42 | H97: 3.094770143 | I97: 3.157152121 | J97: 3.220791546 | L97: =Inputs!I9 -> 18.04 | M97: 17.89329746 | N97: 18.25397668 | O97: 18.62192619
A98: Macquarie | B98: =Inputs!G10 -> 11.3528425 | C98: 12.19139615 | D98: 12.42029268 | E98: 12.6534868 | G98: =Inputs!H10 -> 4.215065865 | H98: 3.307240445 | I98: 3.369334717 | J98: 3.432594824 | L98: =Inputs!I10 -> 13.89778792 | M98: 13.99143863 | N98: 14.25413141 | O98: 14.52175631
A99: Murray | B99: =Inputs!G11 -> 1.701787852 | C99: 1.684618699 | D99: 1.654892315 | E99: 1.625690477 | G99: =Inputs!H11 -> 1.262791622 | H99: 0.9550594196 | I99: 0.9382066669 | J99: 0.9216512939 | L99: =Inputs!I11 -> 2.693594147 | M99: 2.489804991 | N99: 2.44587048 | O99: 2.402711228
A100: Murrumbidgee | B100: =Inputs!G12 -> 2.636082537 | C100: 2.815854365 | D100: 2.807197591 | E100: 2.79856743 | G100: =Inputs!H12 -> 1.406500414 | H100: 1.222984068 | I100: 1.219224251 | J100: 1.215475993 | L100: =Inputs!I12 -> 3.343755701 | M100: 3.404827966 | N100: 3.394360512 | O100: 3.383925237
A101: Lowbidgee | H101: 0.7105504754 | I101: 0.7504347828 | J101: 0.7925578586 | M101: =M100 -> 3.404827966 | N101: =N100 -> 3.394360512 | O101: 3.383925237
A103: Fish River | B103: Access | G103: Usage < MAQ | L103: Usage > MAQ
A104: Raw water - major customers | B104: =Inputs!G17 -> 0.38 | C104: =B42 -> 0.3218254639 | D104: 0.3253591604 | E104: 0.3289316575 | G104: =Inputs!H17 -> 0.43 | H104: =F42 -> 0.3615637806 | I104: 0.3655338104 | J104: 0.3695474318 | L104: =Inputs!I17 -> 0.81
A105: Raw water - minor customers | B105: =Inputs!G18*'Fish River'!C36 -> 94 | C105: 64.36509278 | D105: 65.07183209 | E105: 65.78633151 | G105: =Inputs!H18 -> 0.85 | H105: 0.3615637806 | I105: 0.3655338104 | J105: 0.3695474318 | L105: =Inputs!I18 -> 1.33 | M105: =J43 -> 0.6833892445 | N105: =K43 -> 0.6908929709 | O105: =L43 -> 0.6984790893
A106: Filtered water - major customers | B106: =Inputs!G19 -> 0.57 | C106: 0.6228643433 | D106: 0.6297034963 | E106: 0.6366177443 | G106: =Inputs!H19 -> 0.61 | H106: 0.6259610953 | I106: 0.6328342511 | J106: 0.6397828753 | L106: =Inputs!I19 -> 1.18
A107: Filtered water - minor customers | B107: =Inputs!G20*'Fish River'!C49 -> 134.6627247 | C107: 124.5728687 | D107: 125.9406993 | E107: 127.3235489 | G107: =Inputs!H20 -> 1.04 | H107: 0.6259610953 | I107: 0.6328342511 | J107: 0.6397828753 | L107: =Inputs!I20 -> 1.71 | M107: =J45 -> 1.248825439 | N107: =K45 -> 1.262537747 | O107: =L45 -> 1.27640062
A110: Positive change implies real increase in price | B110: % Real change in prices over 2013-14 | G110: =$B110 -> % Real change in prices over 2013-14 | L110: =$B110 -> % Real change in prices over 2013-14
A111: Border | C111: =C93/$B93-1 -> -0.1185315483 | D111: =D93/$B93-1 -> -0.1140341893 | E111: -0.1095138843 | H111: =H93/$G93-1 -> 0.05947379188 | I111: =I93/$G93-1 -> 0.06487935568 | J111: 0.07031249931 | M111: =M93/$L93-1 -> 0.04790845784 | N111: =N93/$L93-1 -> 0.0532550139 | O111: 0.05862884873
A112: Gwydir | C112: =C94/$B94-1 -> -0.08406737782 | D112: -0.07123981314 | E112: -0.05823259942 | H112: =H94/$G94-1 -> -0.1927902883 | I112: -0.1814853795 | J112: -0.1700221463 | M112: =M94/$L94-1 -> -0.07983865225 | N112: -0.0669518646 | O112: -0.0538845985
A113: Namoi | C113: 0.001307270617 | D113: 0.008056615585 | E113: 0.01485145474 | H113: -0.1692309353 | I113: -0.1636311088 | J113: -0.1579935365 | M113: -0.01856803749 | N113: -0.0119526627 | O113: -0.005292696752
A114: Peel | C114: 0.1 | D114: 0.21 | E114: 0.331 | H114: 0.1 | I114: 0.21 | J114: 0.331 | M114: 0.1 | N114: 0.21 | O114: 0.331
A115: Lachlan | C115: 0.009157664867 | D115: 0.02949948287 | E115: 0.05025133547 | H115: -0.2998257595 | I115: -0.2857121898 | J115: -0.2713141298 | M115: -0.008132069881 | N115: 0.01186123505 | O115: 0.03225754952
A116: Macquarie | C116: 0.07386288116 | D116: 0.094024927 | E116: 0.1145655203 | H116: -0.2153763307 | I116: -0.2006448239 | J116: -0.1856367293 | M116: 0.006738533156 | N116: 0.02564030246 | O116: 0.04489695725
A117: Murray | C117: -0.01008889156 | D117: -0.02755662892 | E117: -0.04471613472 | H117: -0.2436919895 | I117: -0.2570376218 | J117: -0.2701477603 | M117: -0.07565696446 | N117: -0.09196770311 | O117: -0.1079906263
A118: Murrumbidgee | C118: 0.06819658571 | D118: 0.06491263146 | E118: 0.06163877306 | H118: -0.1304772783 | I118: -0.1331504499 | J118: -0.1358154035 | M118: 0.01826457166 | N118: 0.01513412328 | O118: 0.01201329883
A119: Lowbidgee
A121: Fish River | B121: Access | G121: Usage < MAQ | L121: Usage > MAQ
A122: Raw water - major customers | C122: =C104/$B104-1 -> -0.1530908845 | D122: -0.1437916831 | E122: -0.1343903749 | H122: =H104/$G104-1 -> -0.1591539985 | I122: =I104/$G104-1 -> -0.1499213711 | J122: -0.1405873679
A123: Raw water - minor customers | C123: =C105/$B105-1 -> -0.3152649704 | D123: -0.3077464672 | E123: -0.3001454095 | H123: =H105/$G105-1 -> -0.5746308463 | I123: -0.569960223 | J123: -0.5652383155 | M123: =M105/$L105-1 -> -0.4861735004 | N123: -0.4805316009 | O123: -0.4748277524
A124: Filtered water - major customers | C124: =C106/$B106-1 -> 0.09274446199 | D124: 0.104742976 | E124: 0.1168732356 | H124: =H106/$G106-1 -> 0.02616572994 | I124: 0.03743319848 | J124: 0.04882438568
A125: Filtered water - minor customers | C125: =C107/$B107-1 -> -0.07492686678 | D125: -0.06476941158 | E125: -0.05450042586 | H125: =H107/$G107-1 -> -0.3981143315 | I125: -0.3915055278 | J125: -0.3848241584 | M125: =M107/$L107-1 -> -0.269692726 | N125: -0.2616738319 | O125: -0.2535668892
A128: Positive change implies real increase in price | B128: % Average real change in prices over 2013-14
C129: 2014-15 | D129: 2015-16 | E129: 2016-17
A130: Border | B130: =SUMPRODUCT(Border!B$40:B$42,Border!C$34:C$36)/10^3 -> 1422.309592 | C130: =F50/$B130-1 -> 0.04964038422 | D130: =G50/$B130-1 -> 0.05499577677 | E130: =H50/$B130-1 -> 0.06037849319
A131: Gwydir | B131: =SUMPRODUCT(Gwydir!B$40:B$42,Gwydir!C$34:C$36)/10^3 -> 5509.134001 | C131: -0.1220333213 | D131: -0.1097374667 | E131: -0.09726940958
A132: Namoi | B132: =SUMPRODUCT(Namoi!B$40:B$42,Namoi!C$34:C$36)/10^3 -> 5578.130965 | C132: -0.0801563294 | D132: -0.07395609254 | E132: -0.06771406277
A133: Peel | B133: =SUMPRODUCT(Peel!B$40:B$42,Peel!C$34:C$36)/10^3 -> 982.4912556 | C133: 0.1 | D133: 0.21 | E133: 0.331
A134: Lachlan | B134: =SUMPRODUCT(Lachlan!B$40:B$42,Lachlan!C$34:C$36)/10^3 -> 7655.604849 | C134: -0.1130129635 | D134: -0.09513376637 | E134: -0.0768941742
A135: Macquarie | B135: =SUMPRODUCT(Macquarie!B$40:B$42,Macquarie!C$34:C$36)/10^3 -> 7033.227395 | C135: -0.07273603453 | D135: -0.05532642023 | E135: -0.03758993604
A136: Murray | B136: =SUMPRODUCT(Murray!B$40:B$42,Murray!C$34:C$36)/10^3 -> 6997.988736 | C136: -0.1344320658 | D136: -0.1497056729 | E136: -0.1647097655
A137: Murrumbidgee | B137: =SUMPRODUCT(Murrumbidgee!B$40:B$42,Murrumbidgee!C$34:C$36)/10^3 -> 10214.76855 | C137: -0.0223939513 | D137: -0.02539940328 | E137: -0.02839561561
A138: Lowbidgee
A139: Fish River | B139: ='Fish River'!B196/10^3 -> 10876.79923 | C139: -0.1316655335 | D139: -0.1221310782 | E139: -0.112491933

Sheet Border
B1: Check | C1: =IF(D1>0.001,"Error","Ok") -> Ok | D1: =SUM(ABS(B26),C50,C77,C98) -> 9.549694369e-12
C3: 2014-15 | D3: 2015-16 | E3: 2016-17
A4: CPI Forecast | C4: =Inputs!H86 -> 0.029296875 | D4: =Inputs!C83 -> 0.0255 | E4: =Inputs!D83 -> 0.0255
A5: CPI Index | C5: =1+C4 -> 1.029296875 | D5: =C5*(1+D4) -> 1.055543945 | E5: =D5*(1+E4) -> 1.082460316
A6: Real Vanilla WACC | C6: =Inputs!B$85 -> 0.04257220868 | D6: =Inputs!C$85 -> 0.04257220868 | E6: =Inputs!D$85 -> 0.04257220868
A7: Nominal Vanilla WACC | C7: =(1+C6)*(1+C4)-1 -> 0.07311631635 | D7: =(1+D6)*(1+D4)-1 -> 0.0691578 | E7: 0.0691578
A8: Accumulated Discount rate | C8: =1/(1+C7) -> 0.9318654323 | D8: =C8/(1+D7) -> 0.8715883027 | E8: =D8/(1+E7) -> 0.8152101614
A10: Target Variable / Fixed ratio (%) | C10: =Inputs!B$36 -> 0.6 | D10: =Inputs!C$36 -> 0.6 | E10: =Inputs!D$36 -> 0.6
A12: Border
A13: ($'000 Nominal)
A14: Revenue Requirement - State Water Costs | C14: 2014-15 | D14: 2015-16 | E14: 2016-17
A15: PTRM Building block requirement (user share) - Unsmoothed | C15: =Inputs!G$90*C$5 -> 1536.651289 | D15: =Inputs!H$90*D$5 -> 1599.502375 | E15: =Inputs!I$90*E$5 -> 1615.84498
A16: ICD Rebates | C16: =Inputs!B$104*C$5 -> 0 | D16: =Inputs!C$104*D$5 -> 0 | E16: =Inputs!D$104*E$5 -> 0
A18: Total Revenue Requirement (user share) - Unsmoothed | C18: =SUM(C15:C17) -> 1536.651289 | D18: =SUM(D15:D17) -> 1599.502375 | E18: =SUM(E15:E17) -> 1615.84498
A19: NPV | B19: =SUMPRODUCT(C$8:E$8,C18:E18) -> 4143.313025
A20: Real Growth in Unsmoothed Revenue Requirement | D20: =(D18/(1+D$4))/C18-1 -> 0.01501836438 | E20: =(E18/(1+E$4))/D18-1 -> -0.01490267578
A22: Smoothed revenue requirement | C22: =C18 -> 1536.651289 | D22: =C22*(1+D$4)*(1+D24) -> 1583.876003 | E22: =D22*(1+E$4)*(1+E24) -> 1632.552037
A23: NPV | B23: =SUMPRODUCT(C$8:E$8,C22:E22) -> 4143.313025
A24: Real Growth in Smoothed Revenue | D24: ='SW Costs Tariffs'!B69 -> 0.005102121296 | E24: ='SW Costs Tariffs'!C69 -> 0.005102121296
A26: Difference in NPVs | B26: =B19-B23 -> -9.094947018e-12 | E26: =E22/E18-1 -> 0.01033951741 | F26: Difference between final year revenue and requirement
A29: Tariff Revenue | C29: 2014-15
A30: Variable Charge Revenue | C30: =C$10*C22 -> 921.9907735
A31: High security premium (times) | C31: =Inputs!D$24 -> 2.967679587
A33: Forecast sales quantities | C33: 2014-15
A34: High Security Entitlement (ML) | C34: =Inputs!B$48 -> 3122
A35: General Security Entitlement (ML) | C35: =Inputs!C$48 -> 263238
A36: Forecast water volumes (ML) | C36: =Inputs!D$48 -> 140676.9395
E38: Real Price Increase \ (Decrease)
A39: Tariffs ($ Nominal) | B39: 2013-14 | C39: 2014-15 | E39: 2014-15
A40: =Inputs!B$3 -> High Security Entitlement ($/ML) | B40: =Inputs!G$5 -> 7.377911775 | C40: =C41*C31 -> 6.693925663 | E40: =C40/(1+C$4)/B40-1 -> -0.1185315483
A41: =Inputs!C$3 -> General Security Entitlement ($/ML) | B41: =Inputs!H$5 -> 2.068392734 | C41: =(C22-C30)*10^3/(C35+C34*C31) -> 2.255609296 | E41: =C41/(1+C$4)/B41-1 -> 0.05947379188
A42: =Inputs!D$3 -> Usage ($/ML delivered) | B42: =Inputs!I$5 -> 6.076306379 | C42: =C30*10^3/C36 -> 6.553958145 | E42: 0.04790845784
E43: =C49/(1+C$4)/(SUMPRODUCT(B40:B42,C34:C36)/10^3)-1 -> 0.04964038422 | F43: Average
A45: Tariffs Revenue ($'000 Nominal) | C45: 2014-15
A46: High Security Entitlement | C46: =C34*C40/10^3 -> 20.89843592
A47: General Security Entitlement | C47: =C35*C41/10^3 -> 593.7620798
A48: Usage | C48: =C36*C42/10^3 -> 921.9907735
C49: =SUM(C46:C48) -> 1536.651289
A50: Check | C50: =ABS(C49-C22) -> 0
A53: Revenue Requirement - MDBA / BCR costs | C53: 2014-15 | D53: 2015-16 | E53: 2016-17
A54: MDBA / BCR costs ($'000 Nominal) | C54: =Inputs!B$117*C$5 -> 720.5078125 | D54: =Inputs!C$117*D$5 -> 738.8807617 | E54: =Inputs!D$117*E$5 -> 757.7222211
A56: Tariff Revenue | C56: 2014-15
A57: Variable Charge Revenue | C57: =C$10*C54 -> 432.3046875
A58: High security premium (times) | C58: =C31 -> 2.967679587
A60: Forecast sales quantities
A61: High Security Entitlement (ML) | C61: =C34 -> 3122
A62: General Security Entitlement (ML) | C62: =C35 -> 263238
A63: Forecast water volumes (ML) | C63: 140676.9395
A66: Tariffs ($ Nominal) | C66: 2014-15
A67: =Inputs!B$3 -> High Security Entitlement ($/ML) | C67: =C68*C58 -> 3.138659871
A68: =Inputs!C$3 -> General Security Entitlement ($/ML) | C68: =(C54-C57)*10^3/(C62+C61*C58) -> 1.057614132
A69: =Inputs!D$3 -> Usage ($/ML delivered) | C69: =C57*10^3/C63 -> 3.07303165
A72: Tariff Revenue ($'000 Nominal) | C72: 2014-15
A73: High Security Entitlement | C73: =C61*C67/10^3 -> 9.798896116
A74: General Security Entitlement | C74: =C62*C68/10^3 -> 278.4042289
A75: Usage | C75: =C63*C69/10^3 -> 432.3046875
C76: =SUM(C73:C75) -> 720.5078125
A77: Check | C77: =ABS(C76-C54) -> 0
A80: Total Revenue Requirement | C80: 2014-15
A81: =A14 -> Revenue Requirement - State Water Costs | C81: =C22 -> 1536.651289
A82: =A53 -> Revenue Requirement - MDBA / BCR costs | C82: =C54 -> 720.5078125
C83: =SUM(C81:C82) -> 2257.159102
E86: Real Price Increase \ (Decrease)
A87: Tariffs ($ Nominal) | B87: 2013-14 | C87: 2014-15 | E87: 2014-15
A88: =Inputs!B$3 -> High Security Entitlement ($/ML) | B88: =Inputs!B$5 -> 11.45 | C88: =SUM(C40,C67) -> 9.832585534 | E88: =C88/(1+C$4)/B88-1 -> -0.1657012515
A89: =Inputs!C$3 -> General Security Entitlement ($/ML) | B89: =Inputs!C$5 -> 3.21 | C89: =SUM(C41,C68) -> 3.313223428 | E89: =C89/(1+C$4)/B89-1 -> 0.002778553107
A90: =Inputs!D$3 -> Usage ($/ML delivered) | B90: =Inputs!D$5 -> 9.43 | C90: =SUM(C42,C69) -> 9.626989795 | E90: -0.008167889387
E91: =C97/(1+C$4)/(SUMPRODUCT(B88:B90,C34:C36)/10^3)-1 -> -0.00652864296 | F91: Average
A93: Total Tariff Revenue ($'000 Nominal) | C93: 2014-15
A94: High Security Entitlement | C94: =C34*C88/10^3 -> 30.69733204
A95: General Security Entitlement | C95: =C35*C89/10^3 -> 872.1663086
A96: Usage | C96: =C36*C90/10^3 -> 1354.295461
C97: =SUM(C94:C96) -> 2257.159102
A98: Check | C98: =ABS(C97-C83) -> 4.547473509e-13

Sheet Gwydir
B1: Check | C1: =IF(D1>0.001,"Error","Ok") -> Ok | D1: =SUM(ABS(B26),C50,C77,C98) -> 5.675246939e-10
C3: 2014-15 | D3: 2015-16 | E3: 2016-17
A4: CPI Forecast | C4: =Inputs!H86 -> 0.029296875 | D4: =Inputs!C83 -> 0.0255 | E4: =Inputs!D83 -> 0.0255
A5: CPI Index | C5: =1+C4 -> 1.029296875 | D5: =C5*(1+D4) -> 1.055543945 | E5: =D5*(1+E4) -> 1.082460316
A6: Real Vanilla WACC | C6: =Inputs!B$85 -> 0.04257220868 | D6: =Inputs!C$85 -> 0.04257220868 | E6: =Inputs!D$85 -> 0.04257220868
A7: Nominal Vanilla WACC | C7: =(1+C6)*(1+C4)-1 -> 0.07311631635 | D7: =(1+D6)*(1+D4)-1 -> 0.0691578 | E7: 0.0691578
A8: Accumulated Discount rate | C8: =1/(1+C7) -> 0.9318654323 | D8: =C8/(1+D7) -> 0.8715883027 | E8: =D8/(1+E7) -> 0.8152101614
A10: Target Variable / Fixed ratio (%) | C10: =Inputs!B$36 -> 0.6 | D10: =Inputs!C$36 -> 0.6 | E10: =Inputs!D$36 -> 0.6
A12: Gwydir
A13: ($'000 Nominal)
A14: Revenue Requirement - State Water Costs | C14: 2014-15 | D14: 2015-16 | E14: 2016-17
A15: PTRM Building block requirement (user share) - Unsmoothed | C15: =Inputs!G$91*C$5 -> 4978.540264 | D15: =Inputs!H$91*D$5 -> 5172.954256 | E15: =Inputs!I$91*E$5 -> 5387.680962
A16: ICD Rebates | C16: =Inputs!B$105*C$5 -> 0 | D16: =Inputs!C$105*D$5 -> 0 | E16: =Inputs!D$105*E$5 -> 0
A18: Total Revenue Requirement (user share) - Unsmoothed | C18: =SUM(C15:C17) -> 4978.540264 | D18: =SUM(D15:D17) -> 5172.954256 | E18: =SUM(E15:E17) -> 5387.680962
A19: NPV | B19: =SUMPRODUCT(C$8:E$8,C18:E18) -> 13540.10826
A20: Real Growth in Unsmoothed Revenue Requirement | D20: =(D18/(1+D$4))/C18-1 -> 0.0132134575 | E20: =(E18/(1+E$4))/D18-1 -> 0.01561140179
A22: Smoothed revenue requirement | C22: =C18 -> 4978.540264 | D22: =C22*(1+D$4)*(1+D24) -> 5176.995071 | E22: =D22*(1+E$4)*(1+E24) -> 5383.360693
A23: NPV | B23: =SUMPRODUCT(C$8:E$8,C22:E22) -> 13540.10826
A24: Real Growth in Smoothed Revenue | D24: ='SW Costs Tariffs'!E69 -> 0.01400492173 | E24: ='SW Costs Tariffs'!F69 -> 0.01400492173
A26: Difference in NPVs | B26: =B19-B23 -> -5.675246939e-10 | E26: =E22/E18-1 -> -0.0008018791361 | F26: Difference between final year revenue and requirement
A29: Tariff Revenue | C29: 2014-15
A30: Variable Charge Revenue | C30: =C$10*C22 -> 2987.124158
A31: High security premium (times) | C31: =Inputs!D$25 -> 4.066437565
A33: Forecast sales quantities | C33: 2014-15
A34: High Security Entitlement (ML) | C34: =Inputs!B$49 -> 21457.9
A35: General Security Entitlement (ML) | C35: =Inputs!C$49 -> 509665
A36: Forecast water volumes (ML) | C36: =Inputs!D$49 -> 245876.7405
E38: Real Price Increase \ (Decrease)
A39: Tariffs ($ Nominal) | B39: 2013-14 | C39: 2014-15 | E39: 2014-15
A40: =Inputs!B$3 -> High Security Entitlement ($/ML) | B40: =Inputs!G$6 -> 14.38978164 | C40: =C41*C31 -> 13.5662053 | E40: =C40/(1+C$4)/B40-1 -> -0.08406737782
A41: =Inputs!C$3 -> General Security Entitlement ($/ML) | B41: =Inputs!H$6 -> 4.015293021 | C41: =(C22-C30)*10^3/(C35+C34*C31) -> 3.33614007 | E41: =C41/(1+C$4)/B41-1 -> -0.1927902883
A42: =Inputs!D$3 -> Usage ($/ML delivered) | B42: =Inputs!I$6 -> 12.82717992 | C42: =C30*10^3/C36 -> 12.14886838 | E42: -0.07983865225
E43: =C49/(1+C$4)/(SUMPRODUCT(B40:B42,C34:C36)/10^3)-1 -> -0.1220333213 | F43: Average
A45: Tariffs Revenue ($'000 Nominal) | C45: 2014-15
A46: High Security Entitlement | C46: =C34*C40/10^3 -> 291.1022768
A47: General Security Entitlement | C47: =C35*C41/10^3 -> 1700.313829
A48: Usage | C48: =C36*C42/10^3 -> 2987.124158
C49: =SUM(C46:C48) -> 4978.540264
A50: Check | C50: =ABS(C49-C22) -> 0
A53: Revenue Requirement - MDBA / BCR costs | C53: 2014-15 | D53: 2015-16 | E53: 2016-17
A54: MDBA / BCR costs ($'000 Nominal) | C54: =Inputs!B$118*C$5 -> 0 | D54: =Inputs!C$118*D$5 -> 0 | E54: =Inputs!D$118*E$5 -> 0
A56: Tariff Revenue | C56: 2014-15
A57: Variable Charge Revenue | C57: =C$10*C54 -> 0
A58: High security premium (times) | C58: =C31 -> 4.066437565
A60: Forecast sales quantities
A61: High Security Entitlement (ML) | C61: =C34 -> 21457.9
A62: General Security Entitlement (ML) | C62: =C35 -> 509665
A63: Forecast water volumes (ML) | C63: =C36 -> 245876.7405
A66: Tariffs ($ Nominal) | C66: 2014-15
A67: =Inputs!B$3 -> High Security Entitlement ($/ML) | C67: =C68*C58 -> 0
A68: =Inputs!C$3 -> General Security Entitlement ($/ML) | C68: =(C54-C57)*10^3/(C62+C61*C58) -> 0
A69: =Inputs!D$3 -> Usage ($/ML delivered) | C69: =C57*10^3/C63 -> 0
A72: Tariff Revenue ($'000 Nominal) | C72: 2014-15
A73: High Security Entitlement | C73: =C61*C67/10^3 -> 0
A74: General Security Entitlement | C74: =C62*C68/10^3 -> 0
A75: Usage | C75: =C63*C69/10^3 -> 0
C76: =SUM(C73:C75) -> 0
A77: Check | C77: =ABS(C76-C54) -> 0
A80: Total Revenue Requirement | C80: 2014-15
A81: =A14 -> Revenue Requirement - State Water Costs | C81: =C22 -> 4978.540264
A82: =A53 -> Revenue Requirement - MDBA / BCR costs | C82: =C54 -> 0
C83: =SUM(C81:C82) -> 4978.540264
E86: Real Price Increase \ (Decrease)
A87: Tariffs ($ Nominal) | B87: 2013-14 | C87: 2014-15 | E87: 2014-15
A88: =Inputs!B$3 -> High Security Entitlement ($/ML) | B88: =Inputs!B$6 -> 14.55 | C88: =SUM(C40,C67) -> 13.5662053 | E88: =C88/(1+C$4)/B88-1 -> -0.0941532352
A89: =Inputs!C$3 -> General Security Entitlement ($/ML) | B89: =Inputs!C$6 -> 4.06 | C89: =SUM(C41,C68) -> 3.33614007 | E89: =C89/(1+C$4)/B89-1 -> -0.2016789356
A90: =Inputs!D$3 -> Usage ($/ML delivered) | B90: =Inputs!D$6 -> 12.97 | C90: =SUM(C42,C69) -> 12.14886838 | E90: -0.08997107454
E91: =C97/(1+C$4)/(SUMPRODUCT(B88:B90,C34:C36)/10^3)-1 -> -0.131701114 | F91: Average
A93: Total Tariff Revenue ($'000 Nominal) | C93: 2014-15
A94: High Security Entitlement | C94: =C34*C88/10^3 -> 291.1022768
A95: General Security Entitlement | C95: =C35*C89/10^3 -> 1700.313829
A96: Usage | C96: =C36*C90/10^3 -> 2987.124158
C97: =SUM(C94:C96) -> 4978.540264
A98: Check | C98: =ABS(C97-C83) -> 0

Sheet Namoi
B1: Check | C1: =IF(D1>0.001,"Error","Ok") -> Ok | D1: =SUM(ABS(B26),C50,C77,C98) -> 1.818989404e-12
C3: 2014-15 | D3: 2015-16 | E3: 2016-17
A4: CPI Forecast | C4: =Inputs!H86 -> 0.029296875 | D4: =Inputs!C83 -> 0.0255 | E4: =Inputs!D83 -> 0.0255
A5: CPI Index | C5: =1+C4 -> 1.029296875 | D5: =C5*(1+D4) -> 1.055543945 | E5: =D5*(1+E4) -> 1.082460316
A6: Real Vanilla WACC | C6: =Inputs!B$85 -> 0.04257220868 | D6: =Inputs!C$85 -> 0.04257220868 | E6: =Inputs!D$85 -> 0.04257220868
A7: Nominal Vanilla WACC | C7: =(1+C6)*(1+C4)-1 -> 0.07311631635 | D7: =(1+D6)*(1+D4)-1 -> 0.0691578 | E7: 0.0691578
A8: Accumulated Discount rate | C8: =1/(1+C7) -> 0.9318654323 | D8: =C8/(1+D7) -> 0.8715883027 | E8: =D8/(1+E7) -> 0.8152101614
A10: Target Variable / Fixed ratio (%) | C10: =Inputs!B$36 -> 0.6 | D10: =Inputs!C$36 -> 0.6 | E10: =Inputs!D$36 -> 0.6
A12: Namoi
A13: ($'000 Nominal)
A14: Revenue Requirement - State Water Costs | C14: 2014-15 | D14: 2015-16 | E14: 2016-17
A15: PTRM Building block requirement (user share) - Unsmoothed | C15: =Inputs!G$92*C$5 -> 5281.330975 | D15: =Inputs!H$92*D$5 -> 5459.34047 | E15: =Inputs!I$92*E$5 -> 5621.939701
A16: ICD Rebates | C16: =Inputs!B$106*C$5 -> 0 | D16: =Inputs!C$106*D$5 -> 0 | E16: =Inputs!D$106*E$5 -> 0
A18: Total Revenue Requirement (user share) - Unsmoothed | C18: =SUM(C15:C17) -> 5281.330975 | D18: =SUM(D15:D17) -> 5459.34047 | E18: =SUM(E15:E17) -> 5621.939701
A19: NPV | B19: =SUMPRODUCT(C$8:E$8,C18:E18) -> 14262.84944
A20: Real Growth in Unsmoothed Revenue Requirement | D20: =(D18/(1+D$4))/C18-1 -> 0.008001387593 | E20: =(E18/(1+E$4))/D18-1 -> 0.00417715898
A22: Smoothed revenue requirement | C22: =C18 -> 5281.330975 | D22: =C22*(1+D$4)*(1+D24) -> 5452.511677 | E22: =D22*(1+E$4)*(1+E24) -> 5629.240758
A23: NPV | B23: =SUMPRODUCT(C$8:E$8,C22:E22) -> 14262.84944
A24: Real Growth in Smoothed Revenue | D24: ='SW Costs Tariffs'!H69 -> 0.006740533266 | E24: ='SW Costs Tariffs'!I69 -> 0.006740533266
A26: Difference in NPVs | B26: =B19-B23 -> 0 | E26: =E22/E18-1 -> 0.001298672333 | F26: Difference between final year revenue and requirement
A29: Tariff Revenue | C29: 2014-15
A30: Variable Charge Revenue | C30: =C$10*C22 -> 3168.798585
A31: High security premium (times) | C31: =Inputs!D$26 -> 2.150671203
A33: Forecast sales quantities | C33: 2014-15
A34: High Security Entitlement (ML) | C34: =Inputs!B$50 -> 8881
A35: General Security Entitlement (ML) | C35: =Inputs!C$50 -> 256076
A36: Forecast water volumes (ML) | C36: =Inputs!D$50 -> 158960.9705
E38: Real Price Increase \ (Decrease)
A39: Tariffs ($ Nominal) | B39: 2013-14 | C39: 2014-15 | E39: 2014-15
A40: =Inputs!B$3 -> High Security Entitlement ($/ML) | B40: =Inputs!G$7 -> 16.01985733 | C40: =C41*C31 -> 16.51074492 | E40: =C40/(1+C$4)/B40-1 -> 0.001307270617
A41: =Inputs!C$3 -> General Security Entitlement ($/ML) | B41: =Inputs!H$7 -> 8.977836198 | C41: =(C22-C30)*10^3/(C35+C34*C31) -> 7.677019575 | E41: =C41/(1+C$4)/B41-1 -> -0.1692309353
A42: =Inputs!D$3 -> Usage ($/ML delivered) | B42: =Inputs!I$7 -> 19.73346174 | C42: =C30*10^3/C36 -> 19.93444413 | E42: -0.01856803749
E43: =C49/(1+C$4)/(SUMPRODUCT(B40:B42,C34:C36)/10^3)-1 -> -0.0801563294 | F43: Average
A45: Tariffs Revenue ($'000 Nominal) | C45: 2014-15
A46: High Security Entitlement | C46: =C34*C40/10^3 -> 146.6319256
A47: General Security Entitlement | C47: =C35*C41/10^3 -> 1965.900465
A48: Usage | C48: =C36*C42/10^3 -> 3168.798585
C49: =SUM(C46:C48) -> 5281.330975
A50: Check | C50: =ABS(C49-C22) -> 9.094947018e-13
A53: Revenue Requirement - MDBA / BCR costs | C53: 2014-15 | D53: 2015-16 | E53: 2016-17
A54: MDBA / BCR costs ($'000 Nominal) | C54: =Inputs!B$119*C$5 -> 0 | D54: =Inputs!C$119*D$5 -> 0 | E54: =Inputs!D$119*E$5 -> 0
A56: Tariff Revenue | C56: 2014-15
A57: Variable Charge Revenue | C57: =C$10*C54 -> 0
A58: High security premium (times) | C58: =C31 -> 2.150671203
A60: Forecast sales quantities
A61: High Security Entitlement (ML) | C61: =C34 -> 8881
A62: General Security Entitlement (ML) | C62: =C35 -> 256076
A63: Forecast water volumes (ML) | C63: =C36 -> 158960.9705
A66: Tariffs ($ Nominal) | C66: 2014-15
A67: =Inputs!B$3 -> High Security Entitlement ($/ML) | C67: =C68*C58 -> 0
A68: =Inputs!C$3 -> General Security Entitlement ($/ML) | C68: =(C54-C57)*10^3/(C62+C61*C58) -> 0
A69: =Inputs!D$3 -> Usage ($/ML delivered) | C69: =C57*10^3/C63 -> 0
A72: Tariff Revenue ($'000 Nominal) | C72: 2014-15
A73: High Security Entitlement | C73: =C61*C67/10^3 -> 0
A74: General Security Entitlement | C74: =C62*C68/10^3 -> 0
A75: Usage | C75: =C63*C69/10^3 -> 0
C76: =SUM(C73:C75) -> 0
A77: Check | C77: =ABS(C76-C54) -> 0
A80: Total Revenue Requirement | C80: 2014-15
A81: =A14 -> Revenue Requirement - State Water Costs | C81: =C22 -> 5281.330975
A82: =A53 -> Revenue Requirement - MDBA / BCR costs | C82: =C54 -> 0
C83: =SUM(C81:C82) -> 5281.330975
E86: Real Price Increase \ (Decrease)
A87: Tariffs ($ Nominal) | B87: 2013-14 | C87: 2014-15 | E87: 2014-15
A88: =Inputs!B$3 -> High Security Entitlement ($/ML) | B88: =Inputs!B$7 -> 16.22 | C88: =SUM(C40,C67) -> 16.51074492 | E88: =C88/(1+C$4)/B88-1 -> -0.01104811227
A89: =Inputs!C$3 -> General Security Entitlement ($/ML) | B89: =Inputs!C$7 -> 9.09 | C89: =SUM(C41,C68) -> 7.677019575 | E89: =C89/(1+C$4)/B89-1 -> -0.1794820043
A90: =Inputs!D$3 -> Usage ($/ML delivered) | B90: =Inputs!D$7 -> 19.98 | C90: =SUM(C42,C69) -> 19.93444413 | E90: -0.03067817394
E91: =C97/(1+C$4)/(SUMPRODUCT(B88:B90,C34:C36)/10^3)-1 -> -0.09150651239 | F91: Average
A93: Total Tariff Revenue ($'000 Nominal) | C93: 2014-15
A94: High Security Entitlement | C94: =C34*C88/10^3 -> 146.6319256
A95: General Security Entitlement | C95: =C35*C89/10^3 -> 1965.900465
A96: Usage | C96: =C36*C90/10^3 -> 3168.798585
C97: =SUM(C94:C96) -> 5281.330975
A98: Check | C98: =ABS(C97-C83) -> 9.094947018e-13

Sheet Peel
B1: Check | C1: =IF(D1>0.001,"Error","Ok") -> Ok | D1: =SUM(ABS(B26),C50,C77,C98) -> 1.728039933e-11
C3: 2014-15 | D3: 2015-16 | E3: 2016-17
A4: CPI Forecast | C4: =Inputs!H86 -> 0.029296875 | D4: =Inputs!C83 -> 0.0255 | E4: =Inputs!D83 -> 0.0255
A5: CPI Index | C5: =1+C4 -> 1.029296875 | D5: =C5*(1+D4) -> 1.055543945 | E5: =D5*(1+E4) -> 1.082460316
A6: Real Vanilla WACC | C6: =Inputs!B$85 -> 0.04257220868 | D6: =Inputs!C$85 -> 0.04257220868 | E6: =Inputs!D$85 -> 0.04257220868
A7: Nominal Vanilla WACC | C7: =(1+C6)*(1+C4)-1 -> 0.07311631635 | D7: =(1+D6)*(1+D4)-1 -> 0.0691578 | E7: 0.0691578
A8: Accumulated Discount rate | C8: =1/(1+C7) -> 0.9318654323 | D8: =C8/(1+D7) -> 0.8715883027 | E8: =D8/(1+E7) -> 0.8152101614
A10: Target Variable / Fixed ratio (%) | C10: =Inputs!B$36 -> 0.6 | D10: =Inputs!C$36 -> 0.6 | E10: =Inputs!D$36 -> 0.6
A12: Peel
A13: ($'000 Nominal)
A14: Revenue Requirement - State Water Costs | C14: 2014-15 | D14: 2015-16 | E14: 2016-17
A15: PTRM Building block requirement (user share) - Unsmoothed | C15: =Inputs!G$93*C$5 -> 1343.340588 | D15: =Inputs!H$93*D$5 -> 1386.553247 | E15: =Inputs!I$93*E$5 -> 1416.47578
A16: ICD Rebates | C16: =Inputs!B$107*C$5 -> 0 | D16: =Inputs!C$107*D$5 -> 0 | E16: =Inputs!D$107*E$5 -> 0
A18: Total Revenue Requirement (user share) - Unsmoothed | C18: =SUM(C15:C17) -> 1343.340588 | D18: =SUM(D15:D17) -> 1386.553247 | E18: =SUM(E15:E17) -> 1416.47578
A19: NPV | B19: =SUMPRODUCT(C$8:E$8,C18:E18) -> 3615.041698
A20: Real Growth in Unsmoothed Revenue Requirement | D20: =(D18/(1+D$4))/C18-1 -> 0.006502250939 | E20: =(E18/(1+E$4))/D18-1 -> -0.003822023396
A22: Smoothed revenue requirement | C22: =C18 -> 1343.340588 | D22: =C22*(1+D$4)*(1+D24) -> 1381.863093 | E22: =D22*(1+E$4)*(1+E24) -> 1421.490294
A23: NPV | B23: =SUMPRODUCT(C$8:E$8,C22:E22) -> 3615.041698
A24: Real Growth in Smoothed Revenue | D24: ='SW Costs Tariffs'!K69 -> 0.003097657437 | E24: ='SW Costs Tariffs'!L69 -> 0.003097657437
A26: Difference in NPVs | B26: =B19-B23 -> -1.728039933e-11 | E26: =E22/E18-1 -> 0.003540134181 | F26: Difference between final year revenue and requirement
A29: Tariff Revenue | C29: 2014-15
A30: Variable Charge Revenue | C30: =C$10*C22 -> 806.0043529
A31: High security premium (times) | C31: =Inputs!D$27 -> 9.875275128
A33: Forecast sales quantities | C33: 2014-15
A34: High Security Entitlement (ML) | C34: =Inputs!B$51 -> 17382 | G34: ="Peel Valley prices capped at " &H36*100& "% annual real increase" -> Peel Valley prices capped at 10% annual real increase
A35: General Security Entitlement (ML) | C35: =Inputs!C$51 -> 30528 | H35: 2014-15 | I35: 2015-16 | J35: 2016-17
A36: Forecast water volumes (ML) | C36: =Inputs!D$51 -> 11163.91 | G36: Annual real price increase cap | H36: =Inputs!B44 -> 0.1 | I36: =Inputs!C44 -> 0.1 | J36: =Inputs!D44 -> 0.1
D38: Indicative Prices | I38: Indicative Prices
A39: Tariffs ($ Nominal) - Cost Reflective | B39: 2013-14 | C39: 2014-15 | D39: 2015-16 | E39: 2016-17 | G39: Tariffs ($ Nominal) - Capped | H39: 2014-15 | I39: 2015-16 | J39: 2016-17
A40: =Inputs!B$3 -> High Security Entitlement ($/ML) | B40: =Inputs!G$8 -> 25.07631511 | C40: =C41*C31 -> 26.24563415 | D40: =C40*(1+D$4)*(1+D$24) -> 26.99827095 | E40: =D40*(1+E$4)*(1+E$24) -> 27.77249086 | G40: =A40 -> High Security Entitlement ($/ML) | H40: =B40*(1+C$4)*(1+H$36) -> 28.39207006 | I40: =H40*(1+D$4)*(1+I$36) -> 32.02767463 | J40: 36.12881837
A41: =Inputs!C$3 -> General Security Entitlement ($/ML) | B41: =Inputs!H$8 -> 2.757498724 | C41: =(C22-C30)*10^3/(C35+C34*C31) -> 2.65771169 | D41: =C41*(1+D$4)*(1+D$24) -> 2.733925952 | E41: 2.812325783 | G41: =A41 -> General Security Entitlement ($/ML) | H41: =B41*(1+C$4)*(1+H$36) -> 3.122113301 | I41: 3.52189991 | J41: 3.972879193
A42: =Inputs!D$3 -> Usage ($/ML delivered) | B42: =Inputs!I$8 -> 41.42221008 | C42: =C30*10^3/C36 -> 72.19731733 | D42: =C42*(1+D$4)*(1+D$24) -> 74.26769436 | E42: 76.39744287 | G42: Usage ($/ML delivered) | H42: =B42*(1+C$4)*(1+H$36) -> 46.89932652 | I42: 52.90478529 | J42: 59.67924304
I44: Indicative Revenue
A45: Tariffs Revenue ($'000 Nominal) - Cost Reflective | C45: 2014-15 | D45: 2015-16 | E45: 2016-17 | G45: Tariffs Revenue ($'000 Nominal) | H45: 2014-15 | I45: 2015-16 | J45: 2016-17
A46: High Security Entitlement | C46: =$C34*C40/10^3 -> 456.2016128 | D46: =$C34*D40/10^3 -> 469.2839457 | E46: 482.7414361 | G46: High Security Entitlement | H46: =$C34*H40/10^3 -> 493.5109618 | I46: =$C34*I40/10^3 -> 556.7050404 | J46: 627.9911208
A47: General Security Entitlement | C47: =$C35*C41/10^3 -> 81.13462247 | D47: =$C35*D41/10^3 -> 83.46129145 | E47: 85.8546815 | G47: General Security Entitlement | H47: =$C35*H41/10^3 -> 95.31187487 | I47: =$C35*I41/10^3 -> 107.5165604 | J47: 121.284056
A48: Usage | C48: =$C36*C42/10^3 -> 806.0043529 | D48: =$C36*D42/10^3 -> 829.1178557 | E48: 852.8941764 | G48: Usage | H48: =$C36*H42/10^3 -> 523.5798604 | I48: =$C36*I42/10^3 -> 590.6242615 | J48: 666.2536982
C49: =SUM(C46:C48) -> 1343.340588 | D49: =SUM(D46:D48) -> 1381.863093 | E49: 1421.490294 | H49: =SUM(H46:H48) -> 1112.402697 | I49: =SUM(I46:I48) -> 1254.845862 | J49: 1415.528875
A50: Check | C50: =ABS(C49-C22) -> 0 | D50: =ABS(D49-D22) -> 2.273736754e-13 | E50: 2.273736754e-13
G51: Subsidy required
G52: Under recovery ($'000 Nominal) | H52: =C49-H49 -> 230.9378911 | I52: =D49-I49 -> 127.0172305 | J52: =E49-J49 -> 5.961418959
A53: Revenue Requirement - MDBA / BCR costs | C53: 2014-15 | D53: 2015-16 | E53: 2016-17 | G53: Under recovery ($ Real 2013-14) | H53: =H52/C5 -> 224.3647064 | I53: =I52/D5 -> 120.3334367 | J53: =J52/E5 -> 5.507286384
A54: MDBA / BCR costs ($'000 Nominal) | C54: =Inputs!B$120*C$5 -> 0 | D54: =Inputs!C$120*D$5 -> 0 | E54: =Inputs!D$120*E$5 -> 0
A56: Tariff Revenue | C56: 2014-15
A57: Variable Charge Revenue | C57: =C$10*C54 -> 0
A58: High security premium (times) | C58: =C31 -> 9.875275128
A60: Forecast sales quantities
A61: High Security Entitlement (ML) | C61: =C34 -> 17382
A62: General Security Entitlement (ML) | C62: =C35 -> 30528
A63: Forecast water volumes (ML) | C63: =C36 -> 11163.91
A66: Tariffs ($ Nominal) | C66: 2014-15
A67: =Inputs!B$3 -> High Security Entitlement ($/ML) | C67: =C68*C58 -> 0
A68: =Inputs!C$3 -> General Security Entitlement ($/ML) | C68: =(C54-C57)*10^3/(C62+C61*C58) -> 0
A69: =Inputs!D$3 -> Usage ($/ML delivered) | C69: =C57*10^3/C63 -> 0
A72: Tariff Revenue ($'000 Nominal) | C72: 2014-15
A73: High Security Entitlement | C73: =C61*C67/10^3 -> 0
A74: General Security Entitlement | C74: =C62*C68/10^3 -> 0
A75: Usage | C75: =C63*C69/10^3 -> 0
C76: =SUM(C73:C75) -> 0
A77: Check | C77: =ABS(C76-C54) -> 0
A80: Total Revenue Requirement | C80: 2014-15
A81: =A14 -> Revenue Requirement - State Water Costs | C81: =C22 -> 1343.340588
A82: =A53 -> Revenue Requirement - MDBA / BCR costs | C82: =C54 -> 0
C83: =SUM(C81:C82) -> 1343.340588
E86: Real Price Increase \ (Decrease)
A87: Tariffs ($ Nominal) | B87: 2013-14 | C87: 2014-15 | E87: 2014-15
A88: =Inputs!B$3 -> High Security Entitlement ($/ML) | B88: =Inputs!B$8 -> 25.19 | C88: =SUM(C40,C67) -> 26.24563415 | E88: =C88/(1+C$4)/B88-1 -> 0.01225108036
A89: =Inputs!C$3 -> General Security Entitlement ($/ML) | B89: =Inputs!C$8 -> 2.77 | C89: =SUM(C41,C68) -> 2.65771169 | E89: =C89/(1+C$4)/B89-1 -> -0.0678464812
A90: =Inputs!D$3 -> Usage ($/ML delivered) | B90: =Inputs!D$8 -> 41.61 | C90: =SUM(C42,C69) -> 72.19731733 | E90: 0.68570933
E91: =C97/(1+C$4)/(SUMPRODUCT(B88:B90,C34:C36)/10^3)-1 -> 0.3223680267 | F91: Average
A93: Total Tariff Revenue ($'000 Nominal) | C93: 2014-15
A94: High Security Entitlement | C94: =C34*C88/10^3 -> 456.2016128
A95: General Security Entitlement | C95: =C35*C89/10^3 -> 81.13462247
A96: Usage | C96: =C36*C90/10^3 -> 806.0043529
C97: =SUM(C94:C96) -> 1343.340588
A98: Check | C98: =ABS(C97-C83) -> 0

Sheet Lachlan
B1: Check | C1: =IF(D1>0.001,"Error","Ok") -> Ok | D1: =SUM(ABS(B26),C50,C77,C98) -> 0
C3: 2014-15 | D3: 2015-16 | E3: 2016-17
A4: CPI Forecast | C4: =Inputs!H86 -> 0.029296875 | D4: =Inputs!C83 -> 0.0255 | E4: =Inputs!D83 -> 0.0255
A5: CPI Index | C5: =1+C4 -> 1.029296875 | D5: =C5*(1+D4) -> 1.055543945 | E5: =D5*(1+E4) -> 1.082460316
A6: Real Vanilla WACC | C6: =Inputs!B$85 -> 0.04257220868 | D6: =Inputs!C$85 -> 0.04257220868 | E6: =Inputs!D$85 -> 0.04257220868
A7: Nominal Vanilla WACC | C7: =(1+C6)*(1+C4)-1 -> 0.07311631635 | D7: =(1+D6)*(1+D4)-1 -> 0.0691578 | E7: 0.0691578
A8: Accumulated Discount rate | C8: =1/(1+C7) -> 0.9318654323 | D8: =C8/(1+D7) -> 0.8715883027 | E8: =D8/(1+E7) -> 0.8152101614
A10: Target Variable / Fixed ratio (%) | C10: =Inputs!B$36 -> 0.6 | D10: =Inputs!C$36 -> 0.6 | E10: =Inputs!D$36 -> 0.6
A12: Lachlan
A13: ($'000 Nominal)
A14: Revenue Requirement - State Water Costs | C14: 2014-15 | D14: 2015-16 | E14: 2016-17
A15: PTRM Building block requirement (user share) - Unsmoothed | C15: =Inputs!G$94*C$5 -> 6919.936818 | D15: =Inputs!H$94*D$5 -> 7279.220422 | E15: =Inputs!I$94*E$5 -> 7551.044116
A16: ICD Rebates | C16: =Inputs!B$108*C$5 -> 69.42359178 | D16: =Inputs!C$108*D$5 -> 65.07873257 | E16: =Inputs!D$108*E$5 -> 64.17048524
A18: Total Revenue Requirement (user share) - Unsmoothed | C18: =SUM(C15:C17) -> 6989.36041 | D18: =SUM(D15:D17) -> 7344.299155 | E18: =SUM(E15:E17) -> 7615.214601
A19: NPV | B19: =SUMPRODUCT(C$8:E$8,C18:E18) -> 19122.34892
A20: Real Growth in Unsmoothed Revenue Requirement | D20: =(D18/(1+D$4))/C18-1 -> 0.02465404368 | E20: =(E18/(1+E$4))/D18-1 -> 0.01110468611
A22: Smoothed revenue requirement | C22: =C18 -> 6989.36041 | D22: =C22*(1+D$4)*(1+D24) -> 7312.067805 | E22: =D22*(1+E$4)*(1+E24) -> 7649.675
A23: NPV | B23: =SUMPRODUCT(C$8:E$8,C22:E22) -> 19122.34892
A24: Real Growth in Smoothed Revenue | D24: ='SW Costs Tariffs'!N69 -> 0.02015722489 | E24: ='SW Costs Tariffs'!O69 -> 0.02015722489
A26: Difference in NPVs | B26: =B19-B23 -> 0 | E26: =E22/E18-1 -> 0.004525203864 | F26: Difference between final year revenue and requirement
A29: Tariff Revenue | C29: 2014-15
A30: Variable Charge Revenue | C30: =C$10*C22 -> 4193.616246
A31: High security premium (times) | C31: =Inputs!D$28 -> 4.030408774
A33: Forecast sales quantities | C33: 2014-15
A34: High Security Entitlement (ML) | C34: =Inputs!B$52 -> 60745
A35: General Security Entitlement (ML) | C35: =Inputs!C$52 -> 632837
A36: Forecast water volumes (ML) | C36: =Inputs!D$52 -> 227697.179
E38: Real Price Increase \ (Decrease)
A39: Tariffs ($ Nominal) | B39: 2013-14 | C39: 2014-15 | E39: 2014-15
A40: =Inputs!B$3 -> High Security Entitlement ($/ML) | B40: =Inputs!G$9 -> 12.36 | C40: =C41*C31 -> 12.83861419 | E40: =C40/(1+C$4)/B40-1 -> 0.009157664867
A41: =Inputs!C$3 -> General Security Entitlement ($/ML) | B41: =Inputs!H$9 -> 4.42 | C41: =(C22-C30)*10^3/(C35+C34*C31) -> 3.185437237 | E41: =C41/(1+C$4)/B41-1 -> -0.2998257595
A42: =Inputs!D$3 -> Usage ($/ML delivered) | B42: =Inputs!I$9 -> 18.04 | C42: =C30*10^3/C36 -> 18.41751516 | E42: -0.008132069881
E43: =C49/(1+C$4)/(SUMPRODUCT(B40:B42,C34:C36)/10^3)-1 -> -0.1130129635 | F43: Average
A45: Tariffs Revenue ($'000 Nominal) | C45: 2014-15
A46: High Security Entitlement | C46: =C34*C40/10^3 -> 779.8816189
A47: General Security Entitlement | C47: =C35*C41/10^3 -> 2015.862545
A48: Usage | C48: =C36*C42/10^3 -> 4193.616246
C49: =SUM(C46:C48) -> 6989.36041
A50: Check | C50: =ABS(C49-C22) -> 0
A53: Revenue Requirement - MDBA / BCR costs | C53: 2014-15 | D53: 2015-16 | E53: 2016-17
A54: MDBA / BCR costs ($'000 Nominal) | C54: =Inputs!B$121*C$5 -> 0 | D54: =Inputs!C$121*D$5 -> 0 | E54: =Inputs!D$121*E$5 -> 0
A56: Tariff Revenue | C56: 2014-15
A57: Variable Charge Revenue | C57: =C$10*C54 -> 0
A58: High security premium (times) | C58: =C31 -> 4.030408774
A60: Forecast sales quantities
A61: High Security Entitlement (ML) | C61: =C34 -> 60745
A62: General Security Entitlement (ML) | C62: =C35 -> 632837
A63: Forecast water volumes (ML) | C63: =C36 -> 227697.179
A66: Tariffs ($ Nominal) | C66: 2014-15
A67: =Inputs!B$3 -> High Security Entitlement ($/ML) | C67: =C68*C58 -> 0
A68: =Inputs!C$3 -> General Security Entitlement ($/ML) | C68: =(C54-C57)*10^3/(C62+C61*C58) -> 0
A69: =Inputs!D$3 -> Usage ($/ML delivered) | C69: =C57*10^3/C63 -> 0
A72: Tariff Revenue ($'000 Nominal) | C72: 2014-15
A73: High Security Entitlement | C73: =C61*C67/10^3 -> 0
A74: General Security Entitlement | C74: =C62*C68/10^3 -> 0
A75: Usage | C75: =C63*C69/10^3 -> 0
C76: =SUM(C73:C75) -> 0
A77: Check | C77: =ABS(C76-C54) -> 0
A80: Total Revenue Requirement | C80: 2014-15
A81: =A14 -> Revenue Requirement - State Water Costs | C81: =C22 -> 6989.36041
A82: =A53 -> Revenue Requirement - MDBA / BCR costs | C82: =C54 -> 0
C83: =SUM(C81:C82) -> 6989.36041
E86: Real Price Increase \ (Decrease)
A87: Tariffs ($ Nominal) | B87: 2013-14 | C87: 2014-15 | E87: 2014-15
A88: =Inputs!B$3 -> High Security Entitlement ($/ML) | B88: =Inputs!B$9 -> 12.36 | C88: =SUM(C40,C67) -> 12.83861419 | E88: =C88/(1+C$4)/B88-1 -> 0.009157664867
A89: =Inputs!C$3 -> General Security Entitlement ($/ML) | B89: =Inputs!C$9 -> 4.42 | C89: =SUM(C41,C68) -> 3.185437237 | E89: =C89/(1+C$4)/B89-1 -> -0.2998257595
A90: =Inputs!D$3 -> Usage ($/ML delivered) | B90: =Inputs!D$9 -> 18.04 | C90: =SUM(C42,C69) -> 18.41751516 | E90: -0.008132069881
E91: =C97/(1+C$4)/(SUMPRODUCT(B88:B90,C34:C36)/10^3)-1 -> -0.1130129635 | F91: Average
A93: Total Tariff Revenue ($'000 Nominal) | C93: 2014-15
A94: High Security Entitlement | C94: =C34*C88/10^3 -> 779.8816189
A95: General Security Entitlement | C95: =C35*C89/10^3 -> 2015.862545
A96: Usage | C96: =C36*C90/10^3 -> 4193.616246
C97: =SUM(C94:C96) -> 6989.36041
A98: Check | C98: =ABS(C97-C83) -> 0

Sheet Macquarie
B1: Check | C1: =IF(D1>0.001,"Error","Ok") -> Ok | D1: =SUM(ABS(B26),C50,C77,C98) -> 1.818989404e-12
C3: 2014-15 | D3: 2015-16 | E3: 2016-17
A4: CPI Forecast | C4: =Inputs!H86 -> 0.029296875 | D4: =Inputs!C83 -> 0.0255 | E4: =Inputs!D83 -> 0.0255
A5: CPI Index | C5: =1+C4 -> 1.029296875 | D5: =C5*(1+D4) -> 1.055543945 | E5: =D5*(1+E4) -> 1.082460316
A6: Real Vanilla WACC | C6: =Inputs!B$85 -> 0.04257220868 | D6: =Inputs!C$85 -> 0.04257220868 | E6: =Inputs!D$85 -> 0.04257220868
A7: Nominal Vanilla WACC | C7: =(1+C6)*(1+C4)-1 -> 0.07311631635 | D7: =(1+D6)*(1+D4)-1 -> 0.0691578 | E7: 0.0691578
A8: Accumulated Discount rate | C8: =1/(1+C7) -> 0.9318654323 | D8: =C8/(1+D7) -> 0.8715883027 | E8: =D8/(1+E7) -> 0.8152101614
A10: Target Variable / Fixed ratio (%) | C10: =Inputs!B$36 -> 0.6 | D10: =Inputs!C$36 -> 0.6 | E10: =Inputs!D$36 -> 0.6
A12: Macquarie
A13: ($'000 Nominal)
A14: Revenue Requirement - State Water Costs | C14: 2014-15 | D14: 2015-16 | E14: 2016-17
A15: PTRM Building block requirement (user share) - Unsmoothed | C15: =Inputs!G$95*C$5 -> 6712.722533 | D15: =Inputs!H$95*D$5 -> 6964.930911 | E15: =Inputs!I$95*E$5 -> 7378.557484
A16: ICD Rebates | C16: =Inputs!B$109*C$5 -> 0 | D16: =Inputs!C$109*D$5 -> 0 | E16: =Inputs!D$109*E$5 -> 0
A18: Total Revenue Requirement (user share) - Unsmoothed | C18: =SUM(C15:C17) -> 6712.722533 | D18: =SUM(D15:D17) -> 6964.930911 | E18: =SUM(E15:E17) -> 7378.557484
A19: NPV | B19: =SUMPRODUCT(C$8:E$8,C18:E18) -> 18340.98143
A20: Real Growth in Unsmoothed Revenue Requirement | D20: =(D18/(1+D$4))/C18-1 -> 0.01177152338 | E20: =(E18/(1+E$4))/D18-1 -> 0.03304439954
A22: Smoothed revenue requirement | C22: =C18 -> 6712.722533 | D22: =C22*(1+D$4)*(1+D24) -> 7013.143855 | E22: =D22*(1+E$4)*(1+E24) -> 7327.010239
A23: NPV | B23: =SUMPRODUCT(C$8:E$8,C22:E22) -> 18340.98143
A24: Real Growth in Smoothed Revenue | D24: ='SW Costs Tariffs'!B77 -> 0.01877525165 | E24: ='SW Costs Tariffs'!C77 -> 0.01877525165
A26: Difference in NPVs | B26: =B19-B23 -> 0 | E26: =E22/E18-1 -> -0.006986087052 | F26: Difference between final year revenue and requirement
A29: Tariff Revenue | C29: 2014-15
A30: Variable Charge Revenue | C30: =C$10*C22 -> 4027.63352
A31: High security premium (times) | C31: =Inputs!D$29 -> 3.68627451
A33: Forecast sales quantities | C33: 2014-15
A34: High Security Entitlement (ML) | C34: =Inputs!B$53 -> 42606
A35: General Security Entitlement (ML) | C35: =Inputs!C$53 -> 631716
A36: Forecast water volumes (ML) | C36: =Inputs!D$53 -> 279670.6685
E38: Real Price Increase \ (Decrease)
A39: Tariffs ($ Nominal) | B39: 2013-14 | C39: 2014-15 | E39: 2014-15
A40: =Inputs!B$3 -> High Security Entitlement ($/ML) | B40: =Inputs!G$10 -> 11.3528425 | C40: =C41*C31 -> 12.54856596 | E40: =C40/(1+C$4)/B40-1 -> 0.07386288116
A41: =Inputs!C$3 -> General Security Entitlement ($/ML) | B41: =Inputs!H$10 -> 4.215065865 | C41: =(C22-C30)*10^3/(C35+C34*C31) -> 3.404132255 | E41: =C41/(1+C$4)/B41-1 -> -0.2153763307
A42: =Inputs!D$3 -> Usage ($/ML delivered) | B42: =Inputs!I$10 -> 13.89778792 | C42: =C30*10^3/C36 -> 14.40134406 | E42: 0.006738533156
E43: =C49/(1+C$4)/(SUMPRODUCT(B40:B42,C34:C36)/10^3)-1 -> -0.07273603453 | F43: Average
A45: Tariffs Revenue ($'000 Nominal) | C45: 2014-15
A46: High Security Entitlement | C46: =C34*C40/10^3 -> 534.6442013
A47: General Security Entitlement | C47: =C35*C41/10^3 -> 2150.444812
A48: Usage | C48: =C36*C42/10^3 -> 4027.63352
C49: =SUM(C46:C48) -> 6712.722533
A50: Check | C50: =ABS(C49-C22) -> 9.094947018e-13
A53: Revenue Requirement - MDBA / BCR costs | C53: 2014-15 | D53: 2015-16 | E53: 2016-17
A54: MDBA / BCR costs ($'000 Nominal) | C54: =Inputs!B$122*C$5 -> 0 | D54: =Inputs!C$122*D$5 -> 0 | E54: =Inputs!D$122*E$5 -> 0
A56: Tariff Revenue | C56: 2014-15
A57: Variable Charge Revenue | C57: =C$10*C54 -> 0
A58: High security premium (times) | C58: =C31 -> 3.68627451
A60: Forecast sales quantities
A61: High Security Entitlement (ML) | C61: =C34 -> 42606
A62: General Security Entitlement (ML) | C62: =C35 -> 631716
A63: Forecast water volumes (ML) | C63: =C36 -> 279670.6685
A66: Tariffs ($ Nominal) | C66: 2014-15
A67: =Inputs!B$3 -> High Security Entitlement ($/ML) | C67: =C68*C58 -> 0
A68: =Inputs!C$3 -> General Security Entitlement ($/ML) | C68: =(C54-C57)*10^3/(C62+C61*C58) -> 0
A69: =Inputs!D$3 -> Usage ($/ML delivered) | C69: =C57*10^3/C63 -> 0
A72: Tariff Revenue ($'000 Nominal) | C72: 2014-15
A73: High Security Entitlement | C73: =C61*C67/10^3 -> 0
A74: General Security Entitlement | C74: =C62*C68/10^3 -> 0
A75: Usage | C75: =C63*C69/10^3 -> 0
C76: =SUM(C73:C75) -> 0
A77: Check | C77: =ABS(C76-C54) -> 0
A80: Total Revenue Requirement | C80: 2014-15
A81: =A14 -> Revenue Requirement - State Water Costs | C81: =C22 -> 6712.722533
A82: =A53 -> Revenue Requirement - MDBA / BCR costs | C82: =C54 -> 0
C83: =SUM(C81:C82) -> 6712.722533
E86: Real Price Increase \ (Decrease)
A87: Tariffs ($ Nominal) | B87: 2013-14 | C87: 2014-15 | E87: 2014-15
A88: =Inputs!B$3 -> High Security Entitlement ($/ML) | B88: =Inputs!B$10 -> 11.42 | C88: =SUM(C40,C67) -> 12.54856596 | E88: =C88/(1+C$4)/B88-1 -> 0.06754782412
A89: =Inputs!C$3 -> General Security Entitlement ($/ML) | B89: =Inputs!C$10 -> 4.24 | C89: =SUM(C41,C68) -> 3.404132255 | E89: =C89/(1+C$4)/B89-1 -> -0.219990461
A90: =Inputs!D$3 -> Usage ($/ML delivered) | B90: =Inputs!D$10 -> 13.98 | C90: =SUM(C42,C69) -> 14.40134406 | E90: 0.0008182137366
E91: =C97/(1+C$4)/(SUMPRODUCT(B88:B90,C34:C36)/10^3)-1 -> -0.07818898848 | F91: Average
A93: Total Tariff Revenue ($'000 Nominal) | C93: 2014-15
A94: High Security Entitlement | C94: =C34*C88/10^3 -> 534.6442013
A95: General Security Entitlement | C95: =C35*C89/10^3 -> 2150.444812
A96: Usage | C96: =C36*C90/10^3 -> 4027.63352
C97: =SUM(C94:C96) -> 6712.722533
A98: Check | C98: =ABS(C97-C83) -> 9.094947018e-13

Sheet Murray
B1: Check | C1: =IF(D1>0.001,"Error","Ok") -> Ok | D1: =SUM(ABS(B26),C50,C77,C98) -> 7.821654435e-10
C3: 2014-15 | D3: 2015-16 | E3: 2016-17
A4: CPI Forecast | C4: =Inputs!H86 -> 0.029296875 | D4: =Inputs!C83 -> 0.0255 | E4: =Inputs!D83 -> 0.0255
A5: CPI Index | C5: =1+C4 -> 1.029296875 | D5: =C5*(1+D4) -> 1.055543945 | E5: =D5*(1+E4) -> 1.082460316
A6: Real Vanilla WACC | C6: =Inputs!B$85 -> 0.04257220868 | D6: =Inputs!C$85 -> 0.04257220868 | E6: =Inputs!D$85 -> 0.04257220868
A7: Nominal Vanilla WACC | C7: =(1+C6)*(1+C4)-1 -> 0.07311631635 | D7: =(1+D6)*(1+D4)-1 -> 0.0691578 | E7: 0.0691578
A8: Accumulated Discount rate | C8: =1/(1+C7) -> 0.9318654323 | D8: =C8/(1+D7) -> 0.8715883027 | E8: =D8/(1+E7) -> 0.8152101614
A10: Target Variable / Fixed ratio (%) | C10: =Inputs!B$36 -> 0.6 | D10: =Inputs!C$36 -> 0.6 | E10: =Inputs!D$36 -> 0.6
A12: Murray
A13: ($'000 Nominal)
A14: Revenue Requirement - State Water Costs | C14: 2014-15 | D14: 2015-16 | E14: 2016-17
A15: PTRM Building block requirement (user share) - Unsmoothed | C15: =Inputs!G$96*C$5 -> 5121.952571 | D15: =Inputs!H$96*D$5 -> 5167.139231 | E15: =Inputs!I$96*E$5 -> 5312.582768
A16: ICD Rebates | C16: =Inputs!B$110*C$5 -> 1112.74013 | D16: =Inputs!C$110*D$5 -> 1067.933115 | E16: =Inputs!D$110*E$5 -> 1063.728427
A18: Total Revenue Requirement (user share) - Unsmoothed | C18: =SUM(C15:C17) -> 6234.6927 | D18: =SUM(D15:D17) -> 6235.072346 | E18: =SUM(E15:E17) -> 6376.311195
A19: NPV | B19: =SUMPRODUCT(C$8:E$8,C18:E18) -> 16442.34441
A20: Real Growth in Unsmoothed Revenue Requirement | D20: =(D18/(1+D$4))/C18-1 -> -0.02480654081 | E20: =(E18/(1+E$4))/D18-1 -> -0.002776870528
A22: Smoothed revenue requirement | C22: =C18 -> 6234.6927 | D22: =C22*(1+D$4)*(1+D24) -> 6280.856045 | E22: =D22*(1+E$4)*(1+E24) -> 6327.361196
A23: NPV | B23: =SUMPRODUCT(C$8:E$8,C22:E22) -> 16442.34441
A24: Real Growth in Smoothed Revenue | D24: ='SW Costs Tariffs'!E77 -> -0.01764576356 | E24: ='SW Costs Tariffs'!F77 -> -0.01764576356
A26: Difference in NPVs | B26: =B19-B23 -> -7.821654435e-10 | E26: =E22/E18-1 -> -0.007676852315 | F26: Difference between final year revenue and requirement
A29: Tariff Revenue | C29: 2014-15
A30: Variable Charge Revenue | C30: =C$10*C22 -> 3740.81562
A31: High security premium (times) | C31: =Inputs!D$30 -> 1.763888889
A33: Forecast sales quantities | C33: 2014-15
A34: High Security Entitlement (ML) | C34: =Inputs!B$54 -> 261400.7
A35: General Security Entitlement (ML) | C35: =Inputs!C$54 -> 2075822
A36: Forecast water volumes (ML) | C36: =Inputs!D$54 -> 1459688.934
E38: Real Price Increase \ (Decrease)
A39: Tariffs ($ Nominal) | B39: 2013-14 | C39: 2014-15 | E39: 2014-15
A40: =Inputs!B$3 -> High Security Entitlement ($/ML) | B40: =Inputs!G$11 -> 1.701787852 | C40: =C41*C31 -> 1.733972762 | E40: =C40/(1+C$4)/B40-1 -> -0.01008889156
A41: =Inputs!C$3 -> General Security Entitlement ($/ML) | B41: =Inputs!H$11 -> 1.262791622 | C41: =(C22-C30)*10^3/(C35+C34*C31) -> 0.9830396761 | E41: =C41/(1+C$4)/B41-1 -> -0.2436919895
A42: =Inputs!D$3 -> Usage ($/ML delivered) | B42: =Inputs!I$11 -> 2.693594147 | C42: =C30*10^3/C36 -> 2.562748496 | E42: -0.07565696446
E43: =C49/(1+C$4)/(SUMPRODUCT(B40:B42,C34:C36)/10^3)-1 -> -0.1344320658 | F43: Average
A45: Tariffs Revenue ($'000 Nominal) | C45: 2014-15
A46: High Security Entitlement | C46: =C34*C40/10^3 -> 453.2616938
A47: General Security Entitlement | C47: =C35*C41/10^3 -> 2040.615386
A48: Usage | C48: =C36*C42/10^3 -> 3740.81562
C49: =SUM(C46:C48) -> 6234.6927
A50: Check | C50: =ABS(C49-C22) -> 0
A53: Revenue Requirement - MDBA / BCR costs | C53: 2014-15 | D53: 2015-16 | E53: 2016-17
A54: MDBA / BCR costs ($'000 Nominal) | C54: =Inputs!B$123*C$5 -> 10498.82812 | D54: =Inputs!C$123*D$5 -> 10977.65703 | E54: =Inputs!D$123*E$5 -> 10066.88094
A56: Tariff Revenue | C56: 2014-15
A57: Variable Charge Revenue | C57: =C$10*C54 -> 6299.296875
A58: High security premium (times) | C58: =C31 -> 1.763888889
A60: Forecast sales quantities
A61: High Security Entitlement (ML) | C61: =C34 -> 261400.7
A62: General Security Entitlement (ML) | C62: =C35 -> 2075822
A63: Forecast water volumes (ML) | C63: =C36 -> 1459688.934
A66: Tariffs ($ Nominal) | C66: 2014-15
A67: =Inputs!B$3 -> High Security Entitlement ($/ML) | C67: =C68*C58 -> 2.919900447
A68: =Inputs!C$3 -> General Security Entitlement ($/ML) | C68: =(C54-C57)*10^3/(C62+C61*C58) -> 1.655376631
A69: =Inputs!D$3 -> Usage ($/ML delivered) | C69: =C57*10^3/C63 -> 4.315506358
A72: Tariff Revenue ($'000 Nominal) | C72: 2014-15
A73: High Security Entitlement | C73: =C61*C67/10^3 -> 763.2640207
A74: General Security Entitlement | C74: =C62*C68/10^3 -> 3436.267229
A75: Usage | C75: =C63*C69/10^3 -> 6299.296875
C76: =SUM(C73:C75) -> 10498.82812
A77: Check | C77: =ABS(C76-C54) -> 0
A80: Total Revenue Requirement | C80: 2014-15
A81: =A14 -> Revenue Requirement - State Water Costs | C81: =C22 -> 6234.6927
A82: =A53 -> Revenue Requirement - MDBA / BCR costs | C82: =C54 -> 10498.82812
C83: =SUM(C81:C82) -> 16733.52083
E86: Real Price Increase \ (Decrease)
A87: Tariffs ($ Nominal) | B87: 2013-14 | C87: 2014-15 | E87: 2014-15
A88: =Inputs!B$3 -> High Security Entitlement ($/ML) | B88: =Inputs!B$11 -> 3.14 | C88: =SUM(C40,C67) -> 4.653873209 | E88: =C88/(1+C$4)/B88-1 -> 0.4399394982
A89: =Inputs!C$3 -> General Security Entitlement ($/ML) | B89: =Inputs!C$11 -> 2.33 | C89: =SUM(C41,C68) -> 2.638416307 | E89: =C89/(1+C$4)/B89-1 -> 0.1001369394
A90: =Inputs!D$3 -> Usage ($/ML delivered) | B90: =Inputs!D$11 -> 4.97 | C90: =SUM(C42,C69) -> 6.878254854 | E90: 0.3445631991
E91: =C97/(1+C$4)/(SUMPRODUCT(B88:B90,C34:C36)/10^3)-1 -> 0.259068058 | F91: Average
A93: Total Tariff Revenue ($'000 Nominal) | C93: 2014-15
A94: High Security Entitlement | C94: =C34*C88/10^3 -> 1216.525714
A95: General Security Entitlement | C95: =C35*C89/10^3 -> 5476.882616
A96: Usage | C96: =C36*C90/10^3 -> 10040.1125
C97: =SUM(C94:C96) -> 16733.52083
A98: Check | C98: =ABS(C97-C83) -> 0

Sheet Murrumbidgee
B1: Check | C1: =IF(D1>0.001,"Error","Ok") -> Ok | D1: =SUM(ABS(B26),C50,C77,C98) -> 0
C3: 2014-15 | D3: 2015-16 | E3: 2016-17
A4: CPI Forecast | C4: =Inputs!H86 -> 0.029296875 | D4: =Inputs!C83 -> 0.0255 | E4: =Inputs!D83 -> 0.0255
A5: CPI Index | C5: =1+C4 -> 1.029296875 | D5: =C5*(1+D4) -> 1.055543945 | E5: =D5*(1+E4) -> 1.082460316
A6: Real Vanilla WACC | C6: =Inputs!B$85 -> 0.04257220868 | D6: =Inputs!C$85 -> 0.04257220868 | E6: =Inputs!D$85 -> 0.04257220868
A7: Nominal Vanilla WACC | C7: =(1+C6)*(1+C4)-1 -> 0.07311631635 | D7: =(1+D6)*(1+D4)-1 -> 0.0691578 | E7: 0.0691578
A8: Accumulated Discount rate | C8: =1/(1+C7) -> 0.9318654323 | D8: =C8/(1+D7) -> 0.8715883027 | E8: =D8/(1+E7) -> 0.8152101614
A10: Target Variable / Fixed ratio (%) | C10: =Inputs!B$36 -> 0.6 | D10: =Inputs!C$36 -> 0.6 | E10: =Inputs!D$36 -> 0.6
A12: Murrumbidgee
A13: ($'000 Nominal)
A14: Revenue Requirement - State Water Costs | C14: 2014-15 | D14: 2015-16 | E14: 2016-17
A15: PTRM Building block requirement (user share) - Unsmoothed | C15: =Inputs!G$97*C$5 -> 9314.553407 | D15: =Inputs!H$97*D$5 -> 9590.787531 | E15: =Inputs!I$97*E$5 -> 9761.278075
A16: ICD Rebates | C16: =Inputs!B$111*C$5 -> 964.0252759 | D16: =Inputs!C$111*D$5 -> 945.738854 | E16: =Inputs!D$111*E$5 -> 951.6280849
A18: Total Revenue Requirement (user share) - Unsmoothed | C18: =SUM(C15:C17) -> 10278.57868 | D18: =SUM(D15:D17) -> 10536.52639 | E18: =SUM(E15:E17) -> 10712.90616
A19: NPV | B19: =SUMPRODUCT(C$8:E$8,C18:E18) -> 27495.03528
A20: Real Growth in Unsmoothed Revenue Requirement | D20: =(D18/(1+D$4))/C18-1 -> -0.0003942870059 | E20: =(E18/(1+E$4))/D18-1 -> -0.008542329734
A22: Smoothed revenue requirement | C22: =C18 -> 10278.57868 | D22: =C22*(1+D$4)*(1+D24) -> 10508.27724 | E22: =D22*(1+E$4)*(1+E24) -> 10743.10895
A23: NPV | B23: =SUMPRODUCT(C$8:E$8,C22:E22) -> 27495.03528
A24: Real Growth in Smoothed Revenue | D24: ='SW Costs Tariffs'!H77 -> -0.00307429765 | E24: ='SW Costs Tariffs'!I77 -> -0.00307429765
A26: Difference in NPVs | B26: =B19-B23 -> 0 | E26: =E22/E18-1 -> 0.002819290035 | F26: Difference between final year revenue and requirement
A29: Tariff Revenue | C29: 2014-15
A30: Variable Charge Revenue | C30: =C$10*C22 -> 6167.14721
A31: High security premium (times) | C31: =Inputs!D$31 -> 2.302445665
A33: Forecast sales quantities | C33: 2014-15
A34: High Security Entitlement (ML) | C34: =Inputs!B$55 -> 436928
A35: General Security Entitlement (ML) | C35: =Inputs!C$55 -> 2260113
A36: Forecast water volumes (ML) | C36: =Inputs!D$55 -> 1759739.925
E38: Real Price Increase \ (Decrease)
A39: Tariffs ($ Nominal) | B39: 2013-14 | C39: 2014-15 | E39: 2014-15
A40: =Inputs!B$3 -> High Security Entitlement ($/ML) | B40: =Inputs!G$12 -> 2.636082537 | C40: =C41*C31 -> 2.898350099 | E40: =C40/(1+C$4)/B40-1 -> 0.06819658571
A41: =Inputs!C$3 -> General Security Entitlement ($/ML) | B41: =Inputs!H$12 -> 1.406500414 | C41: =(C22-C30)*10^3/(C35+C34*C31) -> 1.258813679 | E41: =C41/(1+C$4)/B41-1 -> -0.1304772783
A42: =Inputs!D$3 -> Usage ($/ML delivered) | B42: =Inputs!I$12 -> 3.343755701 | C42: =C30*10^3/C36 -> 3.504578786 | E42: 0.01826457166
E43: =C49/(1+C$4)/(SUMPRODUCT(B40:B42,C34:C36)/10^3)-1 -> -0.0223939513 | F43: Average
A45: Tariffs Revenue ($'000 Nominal) | C45: 2014-15
A46: High Security Entitlement | C46: =C34*C40/10^3 -> 1266.370312
A47: General Security Entitlement | C47: =C35*C41/10^3 -> 2845.061161
A48: Usage | C48: =C36*C42/10^3 -> 6167.14721
C49: =SUM(C46:C48) -> 10278.57868
A50: Check | C50: =ABS(C49-C22) -> 0
A53: Revenue Requirement - MDBA / BCR costs | C53: 2014-15 | D53: 2015-16 | E53: 2016-17
A54: MDBA / BCR costs ($'000 Nominal) | C54: =Inputs!B$124*C$5 -> 2367.382812 | D54: =Inputs!C$124*D$5 -> 2427.751074 | E54: =Inputs!D$124*E$5 -> 2273.166663
A56: Tariff Revenue | C56: 2014-15
A57: Variable Charge Revenue | C57: =C$10*C54 -> 1420.429688
A58: High security premium (times) | C58: =C31 -> 2.302445665
A60: Forecast sales quantities
A61: High Security Entitlement (ML) | C61: =C34 -> 436928
A62: General Security Entitlement (ML) | C62: =C35 -> 2260113
A63: Forecast water volumes (ML) | C63: =C36 -> 1759739.925
A66: Tariffs ($ Nominal) | C66: 2014-15
A67: =Inputs!B$3 -> High Security Entitlement ($/ML) | C67: =C68*C58 -> 0.6675537951
A68: =Inputs!C$3 -> General Security Entitlement ($/ML) | C68: =(C54-C57)*10^3/(C62+C61*C58) -> 0.2899324859
A69: =Inputs!D$3 -> Usage ($/ML delivered) | C69: =C57*10^3/C63 -> 0.8071815996
A72: Tariff Revenue ($'000 Nominal) | C72: 2014-15
A73: High Security Entitlement | C73: =C61*C67/10^3 -> 291.6729446
A74: General Security Entitlement | C74: =C62*C68/10^3 -> 655.2801804
A75: Usage | C75: =C63*C69/10^3 -> 1420.429688
C76: =SUM(C73:C75) -> 2367.382812
A77: Check | C77: =ABS(C76-C54) -> 0
A80: Total Revenue Requirement | C80: 2014-15
A81: =A14 -> Revenue Requirement - State Water Costs | C81: =C22 -> 10278.57868
A82: =A53 -> Revenue Requirement - MDBA / BCR costs | C82: =C54 -> 2367.382812
C83: =SUM(C81:C82) -> 12645.9615
E86: Real Price Increase \ (Decrease)
A87: Tariffs ($ Nominal) | B87: 2013-14 | C87: 2014-15 | E87: 2014-15
A88: =Inputs!B$3 -> High Security Entitlement ($/ML) | B88: =Inputs!B$12 -> 2.98 | C88: =SUM(C40,C67) -> 3.565903894 | E88: =C88/(1+C$4)/B88-1 -> 0.1625528785
A89: =Inputs!C$3 -> General Security Entitlement ($/ML) | B89: =Inputs!C$12 -> 1.59 | C89: =SUM(C41,C68) -> 1.548746165 | E89: =C89/(1+C$4)/B89-1 -> -0.05367031068
A90: =Inputs!D$3 -> Usage ($/ML delivered) | B90: =Inputs!D$12 -> 3.78 | C90: =SUM(C42,C69) -> 4.311760385 | E90: 0.1082102534
E91: =C97/(1+C$4)/(SUMPRODUCT(B88:B90,C34:C36)/10^3)-1 -> 0.06396026835 | F91: Average
A93: Total Tariff Revenue ($'000 Nominal) | C93: 2014-15
A94: High Security Entitlement | C94: =C34*C88/10^3 -> 1558.043257
A95: General Security Entitlement | C95: =C35*C89/10^3 -> 3500.341342
A96: Usage | C96: =C36*C90/10^3 -> 7587.576897
C97: =SUM(C94:C96) -> 12645.9615
A98: Check | C98: =ABS(C97-C83) -> 0

Sheet Lowbidgee
B1: Check | C1: =IF(D1>0.001,"Error","Ok") -> Ok | D1: =SUM(ABS(B26),C50,C77,C98) -> 0
C3: 2014-15 | D3: 2015-16 | E3: 2016-17
A4: CPI Forecast | C4: =Inputs!H86 -> 0.029296875 | D4: =Inputs!C83 -> 0.0255 | E4: =Inputs!D83 -> 0.0255
A5: CPI Index | C5: =1+C4 -> 1.029296875 | D5: =C5*(1+D4) -> 1.055543945 | E5: =D5*(1+E4) -> 1.082460316
A6: Real Vanilla WACC | C6: =Inputs!B$85 -> 0.04257220868 | D6: =Inputs!C$85 -> 0.04257220868 | E6: =Inputs!D$85 -> 0.04257220868
A7: Nominal Vanilla WACC | C7: =(1+C6)*(1+C4)-1 -> 0.07311631635 | D7: =(1+D6)*(1+D4)-1 -> 0.0691578 | E7: 0.0691578
A8: Accumulated Discount rate | C8: =1/(1+C7) -> 0.9318654323 | D8: =C8/(1+D7) -> 0.8715883027 | E8: =D8/(1+E7) -> 0.8152101614
A10: Target Variable / Fixed ratio (%) | C10: 0 | D10: 0 | E10: 0
A12: Lowbidgee
A13: ($'000 Nominal)
A14: Revenue Requirement - State Water Costs | C14: 2014-15 | D14: 2015-16 | E14: 2016-17
A15: PTRM Building block requirement (user share) - Unsmoothed | C15: =Inputs!G$98*C$5 -> 546.3314357 | D15: =Inputs!H$98*D$5 -> 576.1115267 | E15: =Inputs!I$98*E$5 -> 657.5392235
A16: ICD Rebates | C16: =Inputs!B$112*C$5 -> 0 | D16: =Inputs!C$112*D$5 -> 0 | E16: =Inputs!D$112*E$5 -> 0
A18: Total Revenue Requirement (user share) - Unsmoothed | C18: =SUM(C15:C17) -> 546.3314357 | D18: =SUM(D15:D17) -> 576.1115267 | E18: =SUM(E15:E17) -> 657.5392235
A19: NPV | B19: =SUMPRODUCT(C$8:E$8,C18:E18) -> 1547.272104
A20: Real Growth in Unsmoothed Revenue Requirement | D20: =(D18/(1+D$4))/C18-1 -> 0.02828786229 | E20: =(E18/(1+E$4))/D18-1 -> 0.1129596904
A22: Smoothed revenue requirement | C22: =C18 -> 546.3314357 | D22: =C22*(1+D$4)*(1+D24) -> 591.7113178 | E22: =D22*(1+E$4)*(1+E24) -> 640.8605852
A23: NPV | B23: =SUMPRODUCT(C$8:E$8,C22:E22) -> 1547.272104
A24: Real Growth in Smoothed Revenue | D24: ='SW Costs Tariffs'!K77 -> 0.05613156108 | E24: ='SW Costs Tariffs'!L77 -> 0.05613156108
A26: Difference in NPVs | B26: =B19-B23 -> 0 | E26: =E22/E18-1 -> -0.0253652371 | F26: Difference between final year revenue and requirement
A29: Tariff Revenue | C29: 2014-15
A30: Variable Charge Revenue | C30: =C$10*C22 -> 0
A31: High security premium (times) | C31: =Inputs!D$32 -> 0
A33: Forecast sales quantities | C33: 2014-15
A34: High Security Entitlement (ML) | C34: =Inputs!B$56 -> 0
A35: General Security Entitlement (ML) | C35: =Inputs!C$56 -> 747000
A36: Forecast water volumes (ML) | C36: =Inputs!D$56 -> 0
A39: Tariffs ($ Nominal) | C39: 2014-15
A40: =Inputs!B$3 -> High Security Entitlement ($/ML) | C40: =C41*C31 -> 0
A41: =Inputs!C$3 -> General Security Entitlement ($/ML) | C41: =(C22-C30)*10^3/(C35+C34*C31) -> 0.7313673838
A42: =Inputs!D$3 -> Usage ($/ML delivered) | C42: 0
A45: Tariffs Revenue ($'000 Nominal) | C45: 2014-15
A46: High Security Entitlement | C46: =C34*C40/10^3 -> 0
A47: General Security Entitlement | C47: =C35*C41/10^3 -> 546.3314357
A48: Usage | C48: =C36*C42/10^3 -> 0
C49: =SUM(C46:C48) -> 546.3314357
A50: Check | C50: =ABS(C49-C22) -> 0
A53: Revenue Requirement - MDBA / BCR costs | C53: 2014-15 | D53: 2015-16 | E53: 2016-17
A54: MDBA / BCR costs ($'000 Nominal) | C54: =Inputs!B$125*C$5 -> 0 | D54: =Inputs!C$125*D$5 -> 0 | E54: =Inputs!D$125*E$5 -> 0
A56: Tariff Revenue | C56: 2014-15
A57: Variable Charge Revenue | C57: =C$10*C54 -> 0
A58: High security premium (times) | C58: =C31 -> 0
A60: Forecast sales quantities
A61: High Security Entitlement (ML) | C61: =C34 -> 0
A62: General Security Entitlement (ML) | C62: =C35 -> 747000
A63: Forecast water volumes (ML) | C63: =C36 -> 0
A66: Tariffs ($ Nominal) | C66: 2014-15
A67: =Inputs!B$3 -> High Security Entitlement ($/ML) | C67: =C68*C58 -> 0
A68: =Inputs!C$3 -> General Security Entitlement ($/ML) | C68: =(C54-C57)*10^3/(C62+C61*C58) -> 0
A69: =Inputs!D$3 -> Usage ($/ML delivered) | C69: 0
A72: Tariff Revenue ($'000 Nominal) | C72: 2014-15
A73: High Security Entitlement | C73: =C61*C67/10^3 -> 0
A74: General Security Entitlement | C74: =C62*C68/10^3 -> 0
A75: Usage | C75: =C63*C69/10^3 -> 0
C76: =SUM(C73:C75) -> 0
A77: Check | C77: =ABS(C76-C54) -> 0
A80: Total Revenue Requirement | C80: 2014-15
A81: =A14 -> Revenue Requirement - State Water Costs | C81: =C22 -> 546.3314357
A82: =A53 -> Revenue Requirement - MDBA / BCR costs | C82: =C54 -> 0
C83: =SUM(C81:C82) -> 546.3314357
A87: Tariffs ($ Nominal) | C87: 2014-15
A88: =Inputs!B$3 -> High Security Entitlement ($/ML) | C88: =SUM(C40,C67) -> 0
A89: =Inputs!C$3 -> General Security Entitlement ($/ML) | C89: =SUM(C41,C68) -> 0.7313673838
A90: =Inputs!D$3 -> Usage ($/ML delivered) | C90: =SUM(C42,C69) -> 0
A93: Total Tariff Revenue ($'000 Nominal) | C93: 2014-15
A94: High Security Entitlement | C94: =C34*C88/10^3 -> 0
A95: General Security Entitlement | C95: =C35*C89/10^3 -> 546.3314357
A96: Usage | C96: =C36*C90/10^3 -> 0
C97: =SUM(C94:C96) -> 546.3314357
A98: Check | C98: =ABS(C97-C83) -> 0

Sheet Fish River
B1: Check | C1: =IF(D1>0.001,"Error","Ok") -> Ok | D1: =SUM(ABS(B26),C197,C217,C224,C230,D204,D205,D209,D210,) -> 3.306922736e-09
C3: 2014-15 | D3: 2015-16 | E3: 2016-17
A4: CPI Forecast | C4: =Inputs!H86 -> 0.029296875 | D4: =Inputs!C83 -> 0.0255 | E4: =Inputs!D83 -> 0.0255
A5: CPI Index | C5: =1+C4 -> 1.029296875 | D5: =C5*(1+D4) -> 1.055543945 | E5: =D5*(1+E4) -> 1.082460316
A6: Nominal Vanilla WACC | C6: =(1+Inputs!B$85)*(1+C4)-1 -> 0.07311631635 | D6: =(1+Inputs!C$85)*(1+D4)-1 -> 0.0691578 | E6: =(1+Inputs!D$85)*(1+E4)-1 -> 0.0691578
A7: Accumulated Discount rate | C7: =1/(1+C6) -> 0.9318654323 | D7: =C7/(1+D6) -> 0.8715883027 | E7: =D7/(1+E6) -> 0.8152101614
A8: Raw Water /Filtered Water (%) | C8: =Inputs!B39 -> 0.8 | D8: =Inputs!C39 -> 0.8 | E8: =Inputs!D39 -> 0.8
A9: Target Variable / Fixed ratio (%)
A10: Raw Water | C10: =Inputs!B41 -> 0.45 | D10: =Inputs!C41 -> 0.45 | E10: =Inputs!D41 -> 0.45
A11: Filtered Water | C11: =Inputs!B42 -> 0.4 | D11: =Inputs!C42 -> 0.4 | E11: =Inputs!D42 -> 0.4
A12: Fish River
A13: ($'000 Nominal)
A14: Revenue Requirement | C14: 2014-15 | D14: 2015-16 | E14: 2016-17
A15: PTRM Building block requirement (user share) - Unsmoothed | C15: =Inputs!G$99*C$5 -> 9721.399845 | D15: =Inputs!H$99*D$5 -> 10091.51351 | E15: =Inputs!I$99*E$5 -> 10435.6214
A16: ICD Rebates | C16: =Inputs!B$113*C$5 -> 0 | D16: =Inputs!C$113*D$5 -> 0 | E16: =Inputs!D$113*E$5 -> 0
A18: Total Revenue Requirement (user share) - Unsmoothed | C18: =SUM(C15:C17) -> 9721.399845 | D18: =SUM(D15:D17) -> 10091.51351 | E18: =SUM(E15:E17) -> 10435.6214
A19: NPV | B19: =SUMPRODUCT(C$7:E$7,C18:E18) -> 26361.90621
A20: Real Growth in Unsmoothed Revenue Requirement | D20: =(D18/(1+D$4))/C18-1 -> 0.01225943923 | E20: =(E18/(1+E$4))/D18-1 -> 0.0083849231
A22: Smoothed revenue requirement | C22: =C18 -> 9721.399845 | D22: =C22*(1+D$4)*(1+D24) -> 10078.76005 | E22: =D22*(1+E$4)*(1+E24) -> 10449.25686
A23: NPV | B23: =SUMPRODUCT(C$7:E$7,C22:E22) -> 26361.90621
A24: Real Growth in Smoothed Revenue | D24: ='SW Costs Tariffs'!N77 -> 0.01098016452 | E24: ='SW Costs Tariffs'!O77 -> 0.01098016452
A26: Difference in NPVs | B26: =B19-B23 -> 5.129550118e-10 | E26: =E22/E18-1 -> 0.001306627458 | F26: Difference between final year revenue and requirement
A29: Tariff Revenue
A30: Tariff quantities (ML) | B30: 2013-14 | C30: 2014-15
A31: BULK RAW WATER
A32: Minimum Annual Quantity (MAQ)
A33: - Delta Electricity | B33: =C33 -> 8184 | C33: =Inputs!B62 -> 8184
A34: - Sydney Catchment Authority | B34: =C34 -> 3650 | C34: =Inputs!B63 -> 3650
A35: - Oberon Council | B35: 750 | C35: =Inputs!B64 -> 1064
A36: - Individual Minor Customers | B36: =41.4 -> 41.4 | C36: =Inputs!B65 -> 200
A38: Number of Minor Customers | C38: =Inputs!B66 -> 74
A40: Usage
A41: - Delta Electricity | B41: =C41 -> 6189.8482 | C41: =Inputs!B68 -> 6189.8482
A42: - Sydney Catchment Authority | B42: 2411.62875 | C42: =Inputs!B69 -> 2411.62875
A43: - Oberon Council | B43: 717.08692 | C43: =Inputs!B70 -> 717.08692
A44: - Individual Minor Customers | B44: 52.09287623 | C44: =Inputs!B71 -> 52.09287623
A46: BULK FILTERED WATER
A47: Minimum Annual Quantity (MAQ)
A48: - Lithgow Council | B48: 2092 | C48: =Inputs!B74 -> 1778
A49: - Individual Minor Customers | B49: =13.4 -> 13.4 | C49: =Inputs!B75 -> 200
A51: Number of Minor Customers | C51: =Inputs!B76 -> 208
A53: Usage
A54: - Lithgow Council | B54: =C54 -> 985.5005 | C54: =Inputs!B78 -> 985.5005
A55: - Individual Minor Customers | B55: 131.8055767 | C55: =Inputs!B79 -> 131.8055767
A58: Tariff Revenue | E58: Real Price Increase \ (Decrease)
A59: BULK RAW WATER | B59: =B$30 -> 2013-14 | C59: =C$30 -> 2014-15 | E59: =C59 -> 2014-15
A60: Raw Water: Major customer Minimum Annual Quantity (MAQ) access charge
A61: Delta
A62: Price $ | B62: =Inputs!$B$17 -> 0.38 | C62: =C266/SUM(C63,C67,C71,C76) -> 0.3312539443 | E62: =C62/(1+C$4)/B62-1 -> -0.1530908845
A63: Quantity (per kL) | B63: =B33*10^3 -> 8184000 | C63: =C33*10^3 -> 8184000
A64: Revenue $ | B64: =B62*B63 -> 3109920 | C64: =C62*C63 -> 2710982.28
A65: Sydney Catchment
A66: Price $ | B66: =Inputs!$B$17 -> 0.38 | C66: =C$62 -> 0.3312539443
A67: Quantity (per kL) | B67: =B34*10^3 -> 3650000 | C67: =C34*10^3 -> 3650000
A68: Revenue $ | B68: =B66*B67 -> 1387000 | C68: =C66*C67 -> 1209076.897
A69: Oberon Council
A70: Price $ | B70: =Inputs!$B$17 -> 0.38 | C70: =C$62 -> 0.3312539443
A71: Quantity (per kL) | B71: =B35*10^3 -> 750000 | C71: =C35*10^3 -> 1064000
A72: Revenue $ | B72: =B70*B71 -> 285000 | C72: =C70*C71 -> 352454.1967
A74: Raw Water: Individual Minor Customer access charge
A75: Price $ (Annual Service Charge 2014-15 onwards) | B75: =Inputs!$B$18 -> 0.47 | C75: =C62*C36 -> 66.25078886
A76: Quantity (per unit) | B76: =B36*10^3 -> 41400 | C76: =C36*C38 -> 14800
A77: Number of Minor Customers | C77: =C38 -> 74
A78: Revenue $ | B78: =B75*B76 -> 19458 | C78: =C75*C77 -> 4902.558375
A80: Sub total | B80: =SUM(B64,B68,B72,B78) -> 4801378 | C80: =SUM(C64,C68,C72,C78) -> 4277415.932
A82: Raw Water: Usage up to MAQ | B82: =B$30 -> 2013-14 | C82: =C$30 -> 2014-15
A83: Delta
A84: Price $ | B84: =Inputs!$C$17 -> 0.43 | C84: =(C265-C109)/SUM(C85,C89,C93,C98,C103) -> 0.3721564695 | E84: =C84/(1+C$4)/B84-1 -> -0.1591539985
A85: Quantity (per kL) | B85: =MIN(B41,B33)*10^3 -> 6189848.2 | C85: =MIN(C41,C33)*10^3 -> 6189848.2
A86: Revenue $ | B86: =B84*B85 -> 2661634.726 | C86: =C84*C85 -> 2303592.053
A87: Sydney Catchment
A88: Price $ | B88: =Inputs!$C$17 -> 0.43 | C88: =C$84 -> 0.3721564695
A89: Quantity (per kL) | B89: =MIN(B42,B34)*10^3 -> 2411628.75 | C89: =MIN(C42,C34)*10^3 -> 2411628.75
A90: Revenue $ | B90: =B88*B89 -> 1037000.362 | C90: =C88*C89 -> 897503.2414
A91: Oberon Council
A92: Price $ | B92: =Inputs!$C$17 -> 0.43 | C92: =C$84 -> 0.3721564695
A93: Quantity (per kL) | B93: =MIN(B43,B35)*10^3 -> 717086.92 | C93: =MIN(C43,C35)*10^3 -> 717086.92
A94: Revenue $ | B94: =B92*B93 -> 308347.3756 | C94: =C92*C93 -> 266868.5365
A96: Individual Minor Customer tier 1
A97: Price $ | B97: =Inputs!$C$18 -> 0.85 | C97: =C$84 -> 0.3721564695
A98: Quantity (per kL) | B98: =MIN(B44,B36)*10^3 -> 41400 | C98: =C36*C38 -> 14800
A99: Revenue $ | B99: =B97*B98 -> 35190 | C99: =C97*C98 -> 5507.915749
A101: Individual Minor Customer tier 2
A102: Price $ | C102: =C97 -> 0.3721564695
A103: Quantity (per unit) | C103: =C44*10^3-C98 -> 37292.87623
A104: Revenue $ | C104: =C102*C103 -> 13878.78516
A106: Raw Water: Individual Minor Customer access charge in excess of deemed MAQ
A107: Price $ | C107: =C$62 -> 0.3312539443
A108: Quantity (per unit) | C108: =C44*10^3-C76 -> 37292.87623
A109: Revenue $ | C109: =C107*C108 -> 12353.41234
A111: Tier 2 usage charge | C111: =SUM(C102,C107) -> 0.7034104138
A112: Quantity (kL) | C112: =C108 -> 37292.87623
A113: Revenue | C113: =C111*C112 -> 26232.1975
A115: Sub total | B115: =SUM(B86,B90,B94,B99,B113) -> 4042172.464 | C115: =SUM(C86,C90,C94,C99,C113) -> 3499703.944
A117: Raw Water: Usage in excess of MAQ | B117: =B$30 -> 2013-14 | C117: =C$30 -> 2014-15
A118: Delta
A119: Price $ | B119: =Inputs!$D$17 -> 0.81
A120: Quantity (per kL) | B120: =MAX(B41-B33,0)*10^3 -> 0
A121: Revenue $ | B121: =B119*B120 -> 0
A122: Sydney Catchment
A123: Price $ | B123: =Inputs!$D$17 -> 0.81
A124: Quantity (per kL) | B124: =MAX(B42-B34,0)*10^3 -> 0
A125: Revenue $ | B125: =B123*B124 -> 0
A126: Oberon Council
A127: Price $ | B127: =Inputs!$D$17 -> 0.81
A128: Quantity (per kL) | B128: =MAX(B43-B35,0)*10^3 -> 0
A129: Revenue $ | B129: =B127*B128 -> 0
A131: Individual Minor Customer
A132: Price $ | B132: =Inputs!$D$18 -> 1.33
A133: Quantity (per kL) | B133: =MAX(B44-B36,0)*10^3 -> 10692.87623
A134: Revenue $ | B134: =B132*B133 -> 14221.52539
A136: Sub total | B136: =SUM(B120,B124,B128,B134) -> 14221.52539 | C136: =SUM(C120,C124,C128,C134) -> 0
A138: Total Raw Water Revenue | B138: =SUM(B80,B115,B136) -> 8857771.989 | C138: =SUM(C80,C115,C136) -> 7777119.876
A143: BULK FILTERED WATER | B143: =B$30 -> 2013-14 | C143: =C$30 -> 2014-15
A144: Filtered Water: Minimum Annual Quantity (MAQ)
A145: Lithgow Council
A146: Price $ | B146: =Inputs!$B$19 -> 0.57 | C146: =C271/SUM(C147,C151) -> 0.6411123221 | E146: =C146/(1+C$4)/B146-1 -> 0.09274446199
A147: Quantity (per kL) | B147: =B48*10^3 -> 2092000 | C147: =C48*10^3 -> 1778000
A148: Revenue $ | B148: =B146*B147 -> 1192440 | C148: =C146*C147 -> 1139897.709
A149: Filtered Water: Individual Minor Customer access charge
A150: Price $ (Annual Service Charge 2014-15 onwards) | B150: =Inputs!$B$20 -> 0.6733136235 | C150: =C146*C49 -> 128.2224644
A151: Quantity (per kL) | B151: =B49*10^3 -> 13400 | C151: =C49*C51 -> 41600
A152: Number of Minor Customers | C152: =C51 -> 208
A153: Revenue $ | B153: =B150*B151 -> 9022.402555 | C153: =C150*C152 -> 26670.2726
A155: Sub total | B155: =SUM(B148,B153) -> 1201462.403 | C155: =SUM(C148,C153) -> 1166567.981
A157: Usage up to MAQ | B157: =B$30 -> 2013-14 | C157: =C$30 -> 2014-15
A158: Lithgow Council
A159: Price $ | B159: =Inputs!$C$19 -> 0.61 | C159: =(C270-C174)/SUM(C160,C164,C168) -> 0.6442997992 | E159: =C159/(1+C$4)/B159-1 -> 0.02616572994
A160: Quantity (per kL) | B160: =MIN(B54,B48)*10^3 -> 985500.5 | C160: =MIN(C54,C48)*10^3 -> 985500.5
A161: Revenue $ | B161: =B159*B160 -> 601155.305 | C161: =C159*C160 -> 634957.7743
A162: Individual Minor Customer tier 1
A163: Price $ | B163: =Inputs!$C$20 -> 1.04 | C163: =C$159 -> 0.6442997992
A164: Quantity (per kL) | B164: =MIN(B55,B49)*10^3 -> 13400 | C164: =C49*C51 -> 41600
A165: Revenue $ | B165: =B163*B164 -> 13936 | C165: =C163*C164 -> 26802.87165
A166: Individual Minor Customer tier 2
A167: Price $ | C167: =C163 -> 0.6442997992
A168: Quantity (per kL) | C168: =C55*10^3-C164 -> 90205.57665
A169: Revenue $ | C169: =C167*C168 -> 58119.43493
A171: FIltered Water: Individual Minor Customer access charge in excess of deemed MAQ
A172: Price $ | C172: =C146 -> 0.6411123221
A173: Quantity (per unit) | C173: =C55*10^3-C151 -> 90205.57665
A174: Revenue $ | C174: =C172*C173 -> 57831.90672
A176: Tier 2 usage charge | C176: =SUM(C167,C172) -> 1.285412121
A177: Quantity (kL) | C177: =C173 -> 90205.57665
A178: Revenue | C178: =C176*C177 -> 115951.3416
A180: Sub total | B180: =SUM(B161,B165,B178) -> 615091.305 | C180: =SUM(C161,C165,C178) -> 777711.9876
A182: Usage in excess of MAQ | B182: =B$30 -> 2013-14 | C182: =C$30 -> 2014-15
A183: Lithgow Council
A184: Price $ | B184: =Inputs!$D$19 -> 1.18
A185: Quantity (per kL) | B185: =MAX(B54-B48,0)*10^3 -> 0
A186: Revenue $ | B186: =B184*B185 -> 0
A187: Individual Minor Customer
A188: Price $ | B188: =Inputs!$D$20 -> 1.71
A189: Quantity (per kL) | B189: =MAX(B55-B49,0)*10^3 -> 118405.5767
A190: Revenue $ | B190: =B188*B189 -> 202473.5361
A192: Sub total | B192: =SUM(B186,B190) -> 202473.5361 | C192: =SUM(C186,C190) -> 0
A194: Total Filtered Water Revenue | B194: =SUM(B155,B180,B192) -> 2019027.244 | C194: =SUM(C155,C180,C192) -> 1944279.969
A196: Total revenue | B196: =SUM(B138,B194) -> 10876799.23 | C196: =SUM(C138,C194) -> 9721399.845 | E196: =C196/(1+C$4)/B196-1 -> -0.1316655335 | F196: Average Real Price Increase \ (Decrease)
A197: Check | C197: =ABS(C196/10^3-C22) -> 0
A203: BULK RAW WATER | B203: =B$30 -> 2013-14 | C203: =C$30 -> 2014-15 | D203: Check
A204: Minimum Annual Quantity (MAQ) access charge | B204: =B80 -> 4801378 | C204: =C80 -> 4277415.932 | D204: =ABS(C204-C266) -> 9.313225746e-10
A205: Usage | B205: =SUM(B115,B136) -> 4056393.989 | C205: =SUM(C115,C136) -> 3499703.944 | D205: =ABS(C205-C265) -> 0
B206: =SUM(B204:B205) -> 8857771.989 | C206: =SUM(C204:C205) -> 7777119.876
A208: BULK FILTERED WATER | B208: =B$30 -> 2013-14 | C208: =C$30 -> 2014-15
A209: Minimum Annual Quantity (MAQ) access charge | B209: =B155 -> 1201462.403 | C209: =C155 -> 1166567.981 | D209: =ABS(C209-C271) -> 0
A210: Usage | B210: =SUM(B180,B192) -> 817564.8411 | C210: =SUM(C180,C192) -> 777711.9876 | D210: =ABS(C210-C270) -> 0
B211: =SUM(B209:B210) -> 2019027.244 | C211: 1944279.969
A213: Total | B213: =B$30 -> 2013-14 | C213: =C$30 -> 2014-15
A214: Minimum Annual Quantity (MAQ) access charge | B214: =SUM(B204,B209) -> 6002840.403 | C214: =SUM(C204,C209) -> 5443983.913
A215: Usage | B215: =SUM(B205,B210) -> 4873958.831 | C215: 4277415.932
B216: =SUM(B214:B215) -> 10876799.23 | C216: =SUM(C214:C215) -> 9721399.845
A217: Check | B217: =ABS(B196-B216) -> 0 | C217: =ABS(C196-C216) -> 1.862645149e-09
B220: =B$30 -> 2013-14 | C220: =C$30 -> 2014-15
A221: Usage | B221: =SUM(B222:B223) -> 0.4481059847 | C221: =SUM(C222:C223) -> 0.44
A222: =A$203 -> BULK RAW WATER | B222: =B205/B$216 -> 0.3729400445 | C222: =C205/C$216 -> 0.36
A223: =A$208 -> BULK FILTERED WATER | B223: =B210/B$216 -> 0.07516594023 | C223: =C210/C$216 -> 0.08
A224: Check | B224: =B215/B216-B221 -> 0 | C224: =C215/C216-C221 -> 0
B226: =B$30 -> 2013-14 | C226: =C$30 -> 2014-15
A227: =A$204 -> Minimum Annual Quantity (MAQ) access charge | B227: =SUM(B228:B229) -> 0.5518940153 | C227: =SUM(C228:C229) -> 0.56
A228: =A$203 -> BULK RAW WATER | B228: =B204/B$216 -> 0.4414329893 | C228: =C204/C$216 -> 0.44
A229: =A$208 -> BULK FILTERED WATER | B229: =B209/B$216 -> 0.110461026 | C229: =C209/C$216 -> 0.12
A230: Check | B230: =B214/B216-B227 -> 0 | C230: =C214/C216-C227 -> 0
B232: =B$30 -> 2013-14 | C232: =C$30 -> 2014-15
A233: Total Revenue | B233: =SUM(B234:B235) -> 1 | C233: =SUM(C234:C235) -> 1
A234: =A$203 -> BULK RAW WATER | B234: =SUM(B222,B228) -> 0.8143730338 | C234: =SUM(C222,C228) -> 0.8
A235: =A$208 -> BULK FILTERED WATER | B235: =SUM(B223,B229) -> 0.1856269662 | C235: =SUM(C223,C229) -> 0.2
A240: Target (%) 2014-15 | B240: =B$30 -> 2013-14 | C240: =C$30 -> 2014-15
A241: =A$221 -> Usage | B241: =B221 -> 0.4481059847 | C241: =SUM(C242:C243) -> 0.44
A242: =A$203 -> BULK RAW WATER | B242: =B222 -> 0.3729400445 | C242: =C255*C250 -> 0.36
A243: =A$208 -> BULK FILTERED WATER | B243: =B223 -> 0.07516594023 | C243: =C259*C251 -> 0.08
A245: =A$204 -> Minimum Annual Quantity (MAQ) access charge | B245: =B227 -> 0.5518940153 | C245: =SUM(C246:C247) -> 0.56
A246: =A$203 -> BULK RAW WATER | B246: =B228 -> 0.4414329893 | C246: =C256*C250 -> 0.44
A247: =A$208 -> BULK FILTERED WATER | B247: =B229 -> 0.110461026 | C247: =C260*C251 -> 0.12
A249: Total Revenue | B249: =B233 -> 1 | C249: =SUM(C250:C251) -> 1
A250: =A$203 -> BULK RAW WATER | B250: =B234 -> 0.8143730338 | C250: =C8 -> 0.8
A251: =A$208 -> BULK FILTERED WATER | B251: =B235 -> 0.1856269662 | C251: =1-C250 -> 0.2
A254: =A$203 -> BULK RAW WATER
A255: =A$221 -> Usage | B255: =B205/B206 -> 0.4579474381 | C255: =C10 -> 0.45
A256: =A$204 -> Minimum Annual Quantity (MAQ) access charge | B256: =B204/B206 -> 0.5420525619 | C256: =1-C255 -> 0.55
A258: =A$208 -> BULK FILTERED WATER
... 12 more rows
